Workbook

Sheet Contents
B1: =SheetHeader -> REGULATORY REPORTING STATEMENT
B2: =dms_TradingName -> Victorian DNSP Reset
B3: =CONCATENATE(FRCP_y1," to ",FRCP_y5) -> 2016 to 2020
B4: CONTENTS
E7: 1. Business details | L7: 2. Expenditure | S7: 3. Economic benchmarking
E27: 4. Alternative control services | L27: 5. Network information | S27: 6. Service & quality
E34: 7. Other templates

Sheet Instructions
B1: =SheetHeader -> REGULATORY REPORTING STATEMENT
B2: =dms_TradingName -> Victorian DNSP Reset
B3: =CONCATENATE(FRCP_y1," to ",FRCP_y5) -> 2016 to 2020
B4: INSTRUCTIONS
B6: INSTRUCTIONS FOR USE
B7: =CONCATENATE(dms_TradingName, " must fill out and submit the regulatory templates in this spreadsheet as part of its regulatory proposal.") -> Victorian DNSP Reset must fill out and submit the regulatory templates in this spreadsheet as part of its regulatory proposal.
B8: Please ensure that tab 1.0 Business and other details is complete before populating data cells.

Sheet 1.0 Business & other details
B1: =(LOOKUP(dms_Model,J15:J22,K15:K31)) -> REGULATORY REPORTING STATEMENT | J1: Data is in this column used for data validation and database purposes.
B2: =dms_TradingName -> Victorian DNSP Reset
B3: =CONCATENATE(FRCP_y1," to ",FRCP_y5) -> 2016 to 2020 | C3: =CONCATENATE(LEFT(FRCP_y1,4),"-",LEFT(FRCP_y5,2),RIGHT(FRCP_y5,2)) -> 2016-2020
B4: 1.0 BUSINESS & OTHER DETAILS
B7: Instructions
B8: Complete the following business details regulatory template before entering data or values in any other regulatory template. This regulatory template is linked to other cells within the spreadsheet and automatically generates column headings.
B10: TABLE 1.2.1 - SUBMISSION PARTICULARS INPUT SHEETS
B12: Entity details
B14: Trading name | C14: Victorian DNSP Reset
B15: ACN / ABN | C15: =INDEX(dms_ABN_List,MATCH(dms_TradingName,dms_TradingName_List)) -> 33333333333 | J15: CA | K15: CATEGORY ANALYSIS
J16: CAM/Service change Backcast | K16: REGULATORY REPORTING STATEMENT
J17: CPI | K17: CPI
B18: Business address | C18: Address 1 | E18: 321 Ferntree Gully Road | J18: EB | K18: ECONOMIC BENCHMARKING
D19: Address 2 | J19: PTRM | K19: POST TAX REVENUE MODEL
C20: Suburb | E20: Mount Waverley | J20: Reset | K20: REGULATORY REPORTING STATEMENT
D21: State | E21: Vic | G21: 3149 | J21: RFM | K21: ROLL FORWARD MODEL
J22: WACC | K22: WEIGHTED AVERAGE COST OF CAPITAL
B23: Postal address | C23: Address 1 | E23: 321 Ferntree Gully Road
D24: Address 2
C25: Suburb | E25: Mount Waverley
D26: State | E26: Vic | F26: p/code | G26: 3149
J27: ActewAGL Distribution | K27: 76670568688
J28: Ausgrid | K28: 67505337385
B29: Contact name/s | C29: Matthew Serpell | F29: Robert McMillan | J29: AusNet (D) | K29: 91064651118
B30: Contact phone/s | C30: (03) 8544 9000 | F30: (03) 8544 9000 | J30: AusNet (T) | K30: 78079798173
B31: Contact email address/s | C31: matthew.serpell@jemena.com.au | F31: robert.mcmillan@jemena.com.au | J31: Citipower | K31: 76064651056
J32: Electranet | K32: 41094482416
B33: Regulatory control period details | J33: Endeavour Energy | K33: 59253130878
J34: Energex | K34: 40078849055
B35: Forthcoming regulatory control period | C35: =CONCATENATE(IF(dms_RPT="Calendar",G38+1,(LEFT(G38,4)+1&"-"&IF(MID(G38,6,2)<"09","0"&RIGHT(G38,1)+1,RIGHT(G38,2)+1)))) -> 2016 | D35: =CONCATENATE(IF(dms_RPT="Calendar",C35+1,(LEFT(C35,4)+1&"-"&IF(MID(C35,6,2)<"09","0"&RIGHT(C35,1)+1,RIGHT(C35,2)+1)))) -> 2017 | E35: =CONCATENATE(IF(dms_RPT="Calendar",D35+1,(LEFT(D35,4)+1&"-"&IF(MID(D35,6,2)<"09","0"&RIGHT(D35,1)+1,RIGHT(D35,2)+1)))) -> 2018 | F35: =CONCATENATE(IF(dms_RPT="Calendar",E35+1,(LEFT(E35,4)+1&"-"&IF(MID(E35,6,2)<"09","0"&RIGHT(E35,1)+1,RIGHT(E35,2)+1)))) -> 2019 | G35: =CONCATENATE(IF(dms_RPT="Calendar",F35+1,(LEFT(F35,4)+1&"-"&IF(MID(F35,6,2)<"09","0"&RIGHT(F35,1)+1,RIGHT(F35,2)+1)))) -> 2020 | J35: Ergon Energy | K35: 50087646062
J36: Essential Energy | K36: 37428185226
J37: Jemena Electricity | K37: 82064651083
B38: Current regulatory control period | C38: 2011 | D38: =CONCATENATE(IF(dms_RPT="Calendar",C38+1,(LEFT(C38,4)+1&"-"&IF(MID(C38,6,2)<"09","0"&RIGHT(C38,1)+1,RIGHT(C38,2)+1)))) -> 2012 | E38: =CONCATENATE(IF(dms_RPT="Calendar",D38+1,(LEFT(D38,4)+1&"-"&IF(MID(D38,6,2)<"09","0"&RIGHT(D38,1)+1,RIGHT(D38,2)+1)))) -> 2013 | F38: =CONCATENATE(IF(dms_RPT="Calendar",E38+1,(LEFT(E38,4)+1&"-"&IF(MID(E38,6,2)<"09","0"&RIGHT(E38,1)+1,RIGHT(E38,2)+1)))) -> 2014 | G38: =CONCATENATE(IF(dms_RPT="Calendar",F38+1,(LEFT(F38,4)+1&"-"&IF(MID(F38,6,2)<"09","0"&RIGHT(F38,1)+1,RIGHT(F38,2)+1)))) -> 2015 | J38: Powercor Australia | K38: 89064651109
J39: Powerlink | K39: 82078849233
J40: Qld,SA &ACT Gas Reset | K40: 22222222222
B41: Previous regulatory control period | C41: =CONCATENATE(IF(dms_RPT="Calendar",D41-1,(LEFT(D41,4)-1&"-"&IF(MID(D41,3,1)="0","0"&RIGHT(D41,2)-1,RIGHT(D41,2)-1)))) -> 2006 | D41: =CONCATENATE(IF(dms_RPT="Calendar",E41-1,(LEFT(E41,4)-1&"-"&IF(MID(E41,3,1)="0","0"&RIGHT(E41,2)-1,RIGHT(E41,2)-1)))) -> 2007 | E41: =CONCATENATE(IF(dms_RPT="Calendar",F41-1,(LEFT(F41,4)-1&"-"&IF(MID(F41,3,1)="0","0"&RIGHT(F41,2)-1,RIGHT(F41,2)-1)))) -> 2008 | F41: =CONCATENATE(IF(dms_RPT="Calendar",G41-1,(LEFT(G41,4)-1&"-"&IF(MID(G41,3,1)="0","0"&RIGHT(G41,2)-1,RIGHT(G41,2)-1)))) -> 2009 | G41: =CONCATENATE(IF(dms_RPT="Calendar",C38-1,(LEFT(C38,4)-1&"-"&IF(MID(C38,3,1)="0","0"&RIGHT(C38,2)-1,RIGHT(C38,2)-1)))) -> 2010 | J41: SA Power Networks | K41: 13332330749
J42: TasNetworks (D) | K42: 24167357299
J43: TasNetworks (T) | K43: 24167357299
B44: Sector | C44: Electricity | J44: TransGrid | K44: 19622755774
B45: Segment | C45: Distribution | J45: United Energy | K45: 70064651029
B46: Source | C46: Regulatory proposal | J46: Victorian DNSP Backcasting | K46: 33333333666
B47: Regulatory Year Ending | C47: =CONCATENATE(LEFT(G38, 2) &IF(G38>"2009-10",,"") &RIGHT(G38,2)) -> 2015 | J47: Victorian DNSP Reset | K47: 33333333333
B48: Reporting Period Type | C48: =IF(LEN(CRCP_y1)>4,"Financial","Calendar") -> Calendar
B49: Model or RIN Type | C49: Reset
B50: Security Classification | C50: Confidential
B51: Data quality (Actual, estimate, public, consolidated) | C51: Consolidated
B52: RIN response - version no. | C52: 1
B53: Amended RIN submission - amendment reason
B54: Template - version no. | C54: 1
B55: $ real (the last month before the FRCP_y1) | C55: =CONCATENATE(IF(C48="Financial","June ","December "),(IF(C48="Financial",LEFT(G38,2),LEFT(G38,2))&(RIGHT(G38,2)))) -> December 2015
B56: Previous $ real - End Year 5 | C56: =CONCATENATE(IF(C48="Financial","June ","December "),(IF(C48="Financial",LEFT(G41,2),LEFT(G38,2))&(RIGHT(G41,2)))) -> December 2010
B57: Previous $ real - Beginning Year 1 | C57: =CONCATENATE(IF(C48="Financial","July ","January "),(LEFT(C41,4))) -> January 2006
B58: EBSS - First application of scheme in forthcoming period? | C58: No

Sheet 2.1 Expenditure summary
C1: =SheetHeader -> REGULATORY REPORTING STATEMENT
C2: =dms_TradingName -> Victorian DNSP Reset
C3: =FRCP_span -> 2016 to 2020
C4: 2.1 EXPENDITURE SUMMARY & RECONCILIATION
C8: TABLE 2.1.1 - STANDARD CONTROL SERVICES CAPEX
D10: =CONCATENATE("Forecast ($0's, real ", dms_DollarReal, ")") -> Forecast ($0's, real December 2015)
D11: =CRCP_y5 -> 2015 | E11: =FRCP -> 2016 | F11: 2017 | G11: 2018 | H11: 2019 | I11: 2020
A12: ED_EXP211_00001 | C12: Replacement expenditure
A13: ED_EXP211_00002 | C13: Connections
A14: ED_EXP211_00003 | C14: Augmentation Expenditure
A15: ED_EXP211_00004 | C15: Non-network
A16: ED_EXP211_00005 | C16: Capitalised network overheads
A17: ED_EXP211_00006 | C17: Capitalised corporate overheads
C18: TOTAL GROSS CAPEX (includes capcons)
A19: ED_EXP211_00024 | C19: capcons
C21: TABLE 2.1.2 - STANDARD CONTROL SERVICES OPEX BY CATEGORY
D23: =CONCATENATE("Forecast ($0's, real ", dms_DollarReal, ")") -> Forecast ($0's, real December 2015)
D24: =CRCP_y5 -> 2015
A25: ED_EXP212_00001 | C25: Vegetation management
A26: ED_EXP212_00002 | C26: Maintenance
A27: ED_EXP212_00003 | C27: Emergency response
A28: ED_EXP212_00004 | C28: Non-network
A29: ED_EXP212_00005 | C29: Network overheads
A30: ED_EXP212_00006 | C30: Corporate overheads
C31: TOTAL OPEX
C33: TABLE 2.1.3 - ALTERNATIVE CONTROL SERVICES CAPEX
D35: =CONCATENATE("Forecast ($0's, real ", dms_DollarReal, ")") -> Forecast ($0's, real December 2015)
D36: =CRCP_y5 -> 2015 | E36: =FRCP -> 2016 | F36: 2017 | G36: 2018 | H36: 2019 | I36: 2020
A37: ED_EXP213_00001 | C37: Connections
A38: ED_EXP213_00002 | C38: Metering
A39: ED_EXP213_00003 | C39: Public lighting
A40: ED_EXP213_00004 | C40: Fee and quoted
C41: TOTAL CAPEX
C43: TABLE 2.1.4 - ALTERNATIVE CONTROL SERVICES OPEX
D45: =CONCATENATE("Forecast ($0's, real ", dms_DollarReal, ")") -> Forecast ($0's, real December 2015)
D46: =CRCP_y5 -> 2015 | E46: =FRCP -> 2016 | F46: 2017 | G46: 2018 | H46: 2019 | I46: 2020
A47: ED_EXP214_00001 | C47: Connections
A48: ED_EXP214_00002 | C48: Metering
A49: ED_EXP214_00003 | C49: Public lighting
A50: ED_EXP214_00004 | C50: Fee and quoted
C51: TOTAL OPEX
C53: TABLE 2.1.5 - DUAL FUNCTION ASSETS CAPEX
D55: =CONCATENATE("Forecast ($0's, real ", dms_DollarReal, ")") -> Forecast ($0's, real December 2015)
D56: =CRCP_y5 -> 2015 | E56: =FRCP -> 2016 | F56: 2017 | G56: 2018 | H56: 2019 | I56: 2020
A57: ED_EXP215_00001 | C57: Replacement expenditure
A58: ED_EXP215_00002 | C58: Connections
A59: ED_EXP215_00003 | C59: Augmentation Expenditure
A60: ED_EXP215_00004 | C60: Non-network
A61: ED_EXP215_00005 | C61: Capitalised network overheads
A62: ED_EXP215_00006 | C62: Capitalised corporate overheads
C63: TOTAL GROSS CAPEX (includes capcons)
A64: ED_EXP215_00023 | C64: capcons
C66: TABLE 2.1.6 - DUAL FUNCTION ASSETS OPEX BY CATEGORY
D68: Forecast ($0's real June 2015)
D70: =CRCP_y5 -> 2015
A71: ED_EXP216_00001 | C71: Vegetation management
A72: ED_EXP216_00002 | C72: Maintenance
A73: ED_EXP216_00003 | C73: Emergency response
A74: ED_EXP216_00004 | C74: Non-network
A75: ED_EXP216_00005 | C75: network overheads
A76: ED_EXP216_00006 | C76: corporate overheads
A77: ED_EXP216_00006
A78: ED_EXP216_00006
A79: ED_EXP216_00006
A80: ED_EXP216_00006
A81: ED_EXP216_00006
A82: ED_EXP216_00006
A83: ED_EXP216_00006
A84: ED_EXP216_00006
A85: ED_EXP216_00006
A86: ED_EXP216_00006
A87: ED_EXP216_00006
A88: ED_EXP216_00006
A89: ED_EXP216_00006
A90: ED_EXP216_00006
A91: ED_EXP216_00006
A92: ED_EXP216_00007 | C92: balancing item
C93: TOTAL OPEX | D93: =SUM(D71:D92) -> 0

Sheet 2.2 Repex
C1: =SheetHeader -> REGULATORY REPORTING STATEMENT
C2: =dms_TradingName -> Victorian DNSP Reset
C3: =FRCP_span -> 2016 to 2020
C4: 2.2 REPEX
C6: TABLE 2.2.1 - REPLACEMENT EXPENDITURE, VOLUMES AND ASSET FAILURES BY ASSET CATEGORY
E9: =CONCATENATE("EXPENDITURE ($0's, real ", dms_DollarReal,")") -> EXPENDITURE ($0's, real December 2015) | K9: ASSET REPLACEMENTS (0's) | Q9: ASSET FAILURES (0's)
C10: ASSET GROUP | D10: ASSET CATEGORY | E10: =CRCP_y5 -> 2015 | F10: =FRCP -> 2016 | G10: 2017 | H10: 2018 | I10: 2019 | J10: 2020 | K10: =CRCP_y5 -> 2015 | L10: =FRCP -> 2016 | M10: 2017 | N10: 2018 | O10: 2019 | P10: 2020 | Q10: =CRCP_y5 -> 2015 | R10: =FRCP -> 2016 | S10: 2017 | T10: 2018 | U10: 2019 | V10: 2020
A11: ED_REP221_00001 | C11: POLES BY: Highest operating voltage; Material type; Staking (if wood) | D11: Staking of a wooden pole
A12: ED_REP221_00002 | D12: ˂ = 1 kV; Wood
A13: ED_REP221_00003 | D13: > 1 kV & < = 11 kV; Wood
A14: ED_REP221_00004 | D14: ˃ 11 kV & < = 22 kV; Wood
A15: ED_REP221_00005 | D15: > 22 kV & < = 66 kV; Wood
A16: ED_REP221_00006 | D16: > 66 kV & < = 132 kV; Wood
A17: ED_REP221_00007 | D17: > 132 kV; Wood
A18: ED_REP221_00008 | D18: ˂ = 1 kV; Concrete
A19: ED_REP221_00009 | D19: > 1 kV & < = 11 kV; Concrete
A20: ED_REP221_00010 | D20: ˃ 11 kV & < = 22 kV; Concrete
A21: ED_REP221_00011 | D21: > 22 kV & < = 66 kV; Concrete
A22: ED_REP221_00012 | D22: > 66 kV & < = 132 kV; Concrete
A23: ED_REP221_00013 | D23: > 132 kV; Concrete
A24: ED_REP221_00014 | D24: ˂ = 1 kV; Steel
A25: ED_REP221_00015 | D25: > 1 kV & < = 11 kV; Steel
A26: ED_REP221_00016 | D26: ˃ 11 kV & < = 22 kV; Steel
A27: ED_REP221_00017 | D27: > 22 kV & < = 66 kV; Steel
A28: ED_REP221_00018 | D28: > 66 kV & < = 132 kV; Steel
A29: ED_REP221_00019 | D29: > 132 kV; Steel
A30: ED_REP221_00020 | D30: Other
A31: ED_REP221_00033 | C31: POLE TOP STRUCTURES BY: Highest operating voltage | D31: ˂ = 1 kV
A32: ED_REP221_00034 | D32: > 1 kV & < = 11 kV
A33: ED_REP221_00035 | D33: ˃ 11 kV & < = 22 kV
A34: ED_REP221_00036 | D34: > 22 kV & < = 66 kV
A35: ED_REP221_00037 | D35: > 66 kV & < = 132 kV
A36: ED_REP221_00038 | D36: > 132 kV
A37: ED_REP221_00039 | D37: Other
A38: ED_REP221_00040 | C38: OVERHEAD CONDUCTORS BY: Highest operating voltage; Number of phases (at HV) | D38: ˂ = 1 kV
A39: ED_REP221_00041 | D39: > 1 kV & < = 11 kV
A40: ED_REP221_00042 | D40: ˃ 11 kV & < = 22 kV ; SWER
A41: ED_REP221_00043 | D41: ˃ 11 kV & < = 22 kV ; Single-Phase
A42: ED_REP221_00044 | D42: ˃ 11 kV & < = 22 kV ; Multiple-Phase
A43: ED_REP221_00045 | D43: > 22 kV & < = 66 kV
A44: ED_REP221_00046 | D44: > 66 kV & < = 132 kV
A45: ED_REP221_00047 | D45: > 132 kV
A46: ED_REP221_00048 | D46: Other
A47: ED_REP221_00049 | C47: UNDERGROUND CABLES BY: Highest operating voltage | D47: ˂ = 1 kV
A48: ED_REP221_00050 | D48: > 1 kV & < = 11 kV
A49: ED_REP221_00051 | D49: > 11 kV & < = 22 kV
A50: ED_REP221_00052 | D50: > 22 kV & < = 33 kV
A51: ED_REP221_00053 | D51: > 33 kV & < = 66 kV
A52: ED_REP221_00054 | D52: > 66 kV & < = 132 kV
A53: ED_REP221_00055 | D53: > 132 kV
A54: ED_REP221_00056 | D54: Other
A55: ED_REP221_00057 | C55: SERVICE LINES BY: Connection voltage; Customer type; Connection complexity | D55: ˂ = 11 kV ; Residential ; Simple Type
A56: ED_REP221_00058 | D56: ˂ = 11 kV ; Commercial & Industrial ; Simple Type
A57: ED_REP221_00059 | D57: ˂ = 11 kV ; Residential ; Complex Type
A58: ED_REP221_00060 | D58: ˂ = 11 kV ; Commercial & Industrial ; Complex Type
A59: ED_REP221_00061 | D59: ˂ = 11 kV ; Subdivision ; Complex Type
A60: ED_REP221_00062 | D60: > 11 kV & < = 22 kV ; Commercial & Industrial
A61: ED_REP221_00063 | D61: > 11 kV & < = 22 kV ; Subdivision
A62: ED_REP221_00064 | D62: > 22 kV & < = 33 kV ; Commercial & Industrial
A63: ED_REP221_00065 | D63: > 22 kV & < = 33 kV ; Subdivision
A64: ED_REP221_00066 | D64: > 33 kV & < = 66 kV ; Commercial & Industrial
A65: ED_REP221_00067 | D65: > 33 kV & < = 66 kV ; Subdivision
A66: ED_REP221_00068 | D66: > 66 kV & < = 132 kV ; Commercial & Industrial
A67: ED_REP221_00069 | D67: > 66 kV & < = 132 kV ; Subdivision
A68: ED_REP221_00070 | D68: > 132 kV ; Commercial & Industrial
A69: ED_REP221_00071 | D69: > 132 kV ; Subdivision
A70: ED_REP221_00072 | D70: Other
A71: ED_REP221_00073 | C71: TRANSFORMERS BY: Mounting type; Highest operating voltage; Ampere rating; Number of phases (at LV) | D71: Pole Mounted ; < = 22kV ; < = 60 kVA ; Single Phase
A72: ED_REP221_00074 | D72: Pole Mounted ; < = 22kV ; > 60 kVA and < = 600 kVA ; Single Phase
A73: ED_REP221_00075 | D73: Pole Mounted ; < = 22kV ; > 600 kVA ; Single Phase
A74: ED_REP221_00076 | D74: Pole Mounted ; < = 22kV ; < = 60 kVA ; Multiple Phase
A75: ED_REP221_00077 | D75: Pole Mounted ; < = 22kV ; > 60 kVA and < = 600 kVA ; Multiple Phase
A76: ED_REP221_00078 | D76: Pole Mounted ; < = 22kV ; > 600 kVA ; Multiple Phase
A77: ED_REP221_00079 | D77: Kiosk Mounted ; < = 22kV ; < = 60 kVA ; Single Phase
A78: ED_REP221_00080 | D78: Kiosk Mounted ; < = 22kV ; > 60 kVA and < = 600 kVA ; Single Phase
A79: ED_REP221_00081 | D79: Kiosk Mounted ; < = 22kV ; > 600 kVA ; Single Phase
A80: ED_REP221_00082 | D80: Kiosk Mounted ; < = 22kV ; < = 60 kVA ; Multiple Phase
A81: ED_REP221_00083 | D81: Kiosk Mounted ; < = 22kV ; > 60 kVA and < = 600 kVA ; Multiple Phase
A82: ED_REP221_00084 | D82: Kiosk Mounted ; < = 22kV ; > 600 kVA ; Multiple Phase
A83: ED_REP221_00085 | D83: Ground Outdoor / Indoor Chamber Mounted; ˂ 22 kV ; < = 60 kVA ; Single Phase
A84: ED_REP221_00086 | D84: Ground Outdoor / Indoor Chamber Mounted; ˂ 22 kV ; > 60 kVA and < = 600 kVA ; Single Phase
A85: ED_REP221_00087 | D85: Ground Outdoor / Indoor Chamber Mounted; ˂ 22 kV ; > 600 kVA ; Single Phase
A86: ED_REP221_00088 | D86: Ground Outdoor / Indoor Chamber Mounted; ˂ 22 kV ; < = 60 kVA ; Multiple Phase
A87: ED_REP221_00089 | D87: Ground Outdoor / Indoor Chamber Mounted; ˂ 22 kV ; > 60 kVA and < = 600 kVA ; Multiple Phase
A88: ED_REP221_00090 | D88: Ground Outdoor / Indoor Chamber Mounted; ˂ 22 kV ; > 600 kVA ; Multiple Phase
A89: ED_REP221_00091 | D89: Ground Outdoor / Indoor Chamber Mounted; > = 22 kV & < = 33 kV ; < = 15 MVA
A90: ED_REP221_00092 | D90: Ground Outdoor / Indoor Chamber Mounted; > = 22 kV & < = 33 kV ; > 15 MVA and < = 40 MVA
A91: ED_REP221_00093 | D91: Ground Outdoor / Indoor Chamber Mounted; > = 22 kV & < = 33 kV ; > 40 MVA
A92: ED_REP221_00094 | D92: Ground Outdoor / Indoor Chamber Mounted; > 33 kV & < = 66 kV ; < = 15 MVA
A93: ED_REP221_00095 | D93: Ground Outdoor / Indoor Chamber Mounted; > 33 kV & < = 66 kV ; > 15 MVA and < = 40 MVA
A94: ED_REP221_00096 | D94: Ground Outdoor / Indoor Chamber Mounted; > 33 kV & < = 66 kV ; > 40 MVA
A95: ED_REP221_00097 | D95: Ground Outdoor / Indoor Chamber Mounted; > 66 kV & < = 132 kV ; < = 100 MVA
A96: ED_REP221_00098 | D96: Ground Outdoor / Indoor Chamber Mounted; > 66 kV & < = 132 kV ; > 100 MVA
A97: ED_REP221_00099 | D97: Ground Outdoor / Indoor Chamber Mounted; > 132 kV ; < = 100 MVA
A98: ED_REP221_00100 | D98: Ground Outdoor / Indoor Chamber Mounted; > 132 kV ; > 100 MVA
A99: ED_REP221_00101 | D99: Other
A100: ED_REP221_00102 | C100: SWITCHGEAR BY: Highest operating voltage; Switch function | D100: ˂ = 11 kV ; Fuse
A101: ED_REP221_00103 | D101: ˂ = 11 kV ; Switch
A102: ED_REP221_00104 | D102: ˂ = 11 kV ; Circuit Breaker
A103: ED_REP221_00107 | D103: > 11 kV & < = 22 kV ; Switch
A104: ED_REP221_00108 | D104: > 11 kV & < = 22 kV ; Circuit Breaker
A105: ED_REP221_00111 | D105: > 22 kV & < = 33 kV ; Switch
A106: ED_REP221_00112 | D106: > 22 kV & < = 33 kV ; Circuit Breaker
A107: ED_REP221_00115 | D107: > 33 kV & < = 66 kV ; Switch
A108: ED_REP221_00116 | D108: > 33 kV & < = 66 kV ; Circuit Breaker
A109: ED_REP221_00118 | D109: > 66 kV & < = 132 kV ; Switch
A110: ED_REP221_00119 | D110: > 66 kV & < = 132 kV ; Circuit Breaker
A111: ED_REP221_00120 | D111: > 132 kV ; Switch
A112: ED_REP221_00121 | D112: > 132 kV ; Circuit Breaker
A113: ED_REP221_00122 | D113: Other
A114: ED_REP221_00123 | C114: PUBLIC LIGHTING BY: Asset type ; Lighting obligation | D114: Luminaires
A115: ED_REP221_00125 | D115: Brackets
A116: ED_REP221_00127 | D116: Lamps
A117: ED_REP221_00129 | D117: Poles / Columns
A118: ED_REP221_00131 | D118: Other
A119: ED_REP221_00132 | C119: SCADA, NETWORK CONTROL AND PROTECTION SYSTEMS BY: Function | D119: Field Devices
A120: ED_REP221_00133 | D120: Local Network Wiring Assets
A121: ED_REP221_00134 | D121: Communications Network Assets
A122: ED_REP221_00135 | D122: Master Station Assets
A123: ED_REP221_00136 | D123: Communications Site Infrastructure
A124: ED_REP221_00137 | D124: Communications Linear Assets
A125: ED_REP221_00138 | D125: AFLC
A126: ED_REP221_00139 | D126: Other
A127: ED_REP221_00140 | C127: OTHER BY: enter DNSP defined asset group here | D127: Capacitor Banks
A128: ED_REP221_00141 | D128: Earths
A129: ED_REP221_00142 | D129: ZSS Property
A130: ED_REP221_00143 | D130: Surge Diverters
A131: ED_REP221_00144 | D131: CT / VT
A132: ED_REP221_00145 | D132: NER
A133: ED_REP221_00146 | D133: DC Batteries and Banks
A134: ED_REP221_00147 | D134: PQ Meters
A135: ED_REP221_00148 | D135: Special Capital Works
A136: ED_REP221_00149 | D136: Animal Proofing
A137: ED_REP221_00150 | D137: HV Insulators > 11kV & <= 22kV
A138: ED_REP221_00151 | D138: ST Insulators > 22kV & <= 66kV
A139: ED_REP221_00152 | D139: LV Spreaders
A140: ED_REP221_00153 | D140: Overhead Service Disconnect Device
A141: ED_REP221_00154
A142: ED_REP221_00155
A143: ED_REP221_00156
A144: ED_REP221_00157
A145: ED_REP221_00158
A146: ED_REP221_00159
A147: ED_REP221_00160
A148: ED_REP221_00161
A149: ED_REP221_00162
A150: ED_REP221_00163
A151: ED_REP221_00164
A152: ED_REP221_00165
A153: ED_REP221_00166
A154: ED_REP221_00167
A155: ED_REP221_00168
A156: ED_REP221_00169
A157: ED_REP221_00170
A158: ED_REP221_00171
A159: ED_REP221_00172
A160: ED_REP221_00173
A161: ED_REP221_00174
A162: ED_REP221_00175
A163: ED_REP221_00176
A164: ED_REP221_00177
A165: ED_REP221_00178
A166: ED_REP221_00179
A167: ED_REP221_00180

Sheet 2.3 Augex
C1: =SheetHeader -> REGULATORY REPORTING STATEMENT | G1: Worksheet navigation
C2: =dms_TradingName -> Victorian DNSP Reset
C3: =FRCP_span -> 2016 to 2020
C4: 2.3 AUGEX PROJECT DATA
C7: TABLE 2.3.1 - AUGEX ASSET DATA - SUBTRANSMISSION SUBSTATIONS, SWITCHING STATIONS AND ZONE SUBSTATIONS
C8: NOTE: DNSP must provide expenditure information on an 'as incurred' basis.
A9: AUG231 | C9: AUG231_1 | D9: AUG231_2 | E9: AUG231_3 | F9: AUG231_4 | G9: AUG231_5 | H9: AUG231_6 | I9: ED_AUG231_00001 | J9: ED_AUG231_00002 | K9: ED_AUG231_00003 | L9: ED_AUG231_00004 | M9: ED_AUG231_00005 | N9: ED_AUG231_00006 | O9: ED_AUG231_00007 | P9: ED_AUG231_00008 | Q9: ED_AUG231_00009 | R9: ED_AUG231_00010 | S9: ED_AUG231_00011 | T9: ED_AUG231_00012 | U9: ED_AUG231_00013 | V9: ED_AUG231_00014 | W9: ED_AUG231_00015 | X9: ED_AUG231_00016 | Y9: ED_AUG231_00017 | Z9: ED_AUG231_00018 | AA9: ED_AUG231_00019 | AB9: ED_AUG231_00020 | AC9: ED_AUG231_00021 | AD9: ED_AUG231_00022 | AE9: ED_AUG231_00023
C10: PROJECT DESCRIPTION AND CHANGES | M10: PLANT AND EQUIPMENT EXPENDITURE AND VOLUME | W10: OTHER EXPENDITURE | Y10: TOTAL DIRECT EXPENDITURE ($0's) | Z10: YEARS INCURRED | AA10: ALL RELATED PARTY CONTRACTS | AC10: ALL NON RELATED PARTYCONTRACTS | AD10: LAND AND EASEMENTS
C11: SUBSTATION ID | D11: SUBSTATION TYPE | E11: PROJECT ID | F11: PROJECT TYPE | G11: PROJECT TRIGGER | H11: VOLTAGE (KV) | I11: SUBSTATION RATING NORMAL CYCLIC (MVA) | K11: SUBSTATION RATING N-1 EMERGENCY (MVA) | M11: TRANSFORMERS | P11: SWITCHGEAR | R11: CAPACITORS | T11: OTHER PLANT ITEM | U11: INSTALLATION (LABOUR) | W11: CIVIL WORKS | X11: OTHER DIRECT | AA11: RELATED PARTY MARGINS | AB11: TOTAL | AD11: LAND PURCHASE | AE11: EASEMENTS
I12: PRE | J12: POST | K12: PRE | L12: POST | M12: UNITS ADDED | N12: MVA ADDED | O12: =CONCATENATE("EXPENDITURE ($0's, real ", dms_DollarReal,")") -> EXPENDITURE ($0's, real December 2015) | P12: UNITS ADDED | Q12: =CONCATENATE("EXPENDITURE ($0's, real ", dms_DollarReal,")") -> EXPENDITURE ($0's, real December 2015) | R12: MVAR ADDED | S12: =CONCATENATE("EXPENDITURE ($0's, real ", dms_DollarReal,")") -> EXPENDITURE ($0's, real December 2015) | T12: =CONCATENATE("EXPENDITURE ($0's, real ", dms_DollarReal,")") -> EXPENDITURE ($0's, real December 2015) | U12: VOLUME | V12: =CONCATENATE("EXPENDITURE ($0's, real ", dms_DollarReal,")") -> EXPENDITURE ($0's, real December 2015) | W12: =CONCATENATE("EXPENDITURE ($0's, real ", dms_DollarReal,")") -> EXPENDITURE ($0's, real December 2015) | AA12: =CONCATENATE("EXPENDITURE ($0's, real ", dms_DollarReal,")") -> EXPENDITURE ($0's, real December 2015) | AD12: =CONCATENATE("EXPENDITURE ($0's, real ", dms_DollarReal,")") -> EXPENDITURE ($0's, real December 2015)
A13: AUG231_1 | Y13: =SUM(O13,Q13,S13,T13,V13,W13,X13) -> 0
A14: AUG231_2 | Y14: 0
A15: AUG231_3 | Y15: 0
A16: AUG231_4 | Y16: 0
A17: AUG231_5 | Y17: 0
A18: AUG231_6 | Y18: 0
A19: AUG231_7 | Y19: 0
A20: AUG231_8 | Y20: 0
A21: AUG231_9 | Y21: 0
A22: AUG231_10 | Y22: 0
A23: AUG231_11 | Y23: 0
A24: AUG231_12 | Y24: 0
A25: AUG231_13 | Y25: 0
A26: AUG231_14 | Y26: 0
A27: AUG231_15 | Y27: 0
A28: AUG231_16 | Y28: 0
A29: AUG231_17 | Y29: 0
A30: AUG231_18 | Y30: 0
A31: AUG231_19 | Y31: 0
A32: AUG231_20 | Y32: 0
A33: AUG231_21 | Y33: 0
A34: AUG231_22 | Y34: 0
A35: AUG231_23 | Y35: 0
A36: AUG231_24 | Y36: 0
A37: AUG231_25 | Y37: 0
A38: AUG231_26 | Y38: 0
A39: AUG231_27 | Y39: 0
A40: AUG231_28 | Y40: 0
A41: AUG231_29 | Y41: 0
A42: AUG231_30 | Y42: 0
A43: AUG231_31 | Y43: 0
A44: AUG231_32 | Y44: 0
A45: AUG231_33 | Y45: =SUM(O45,Q45,S45,T45,V45,W45,X45) -> 0
A46: AUG231_34 | Y46: 0
A47: AUG231_35 | Y47: 0
A48: AUG231_36 | Y48: 0
A49: AUG231_37 | Y49: 0
A50: AUG231_38 | Y50: 0
A51: AUG231_39 | Y51: 0
A52: AUG231_40 | Y52: 0
A53: AUG231_41 | Y53: 0
A54: AUG231_42 | Y54: 0
A55: AUG231_43 | Y55: 0
A56: AUG231_44 | Y56: 0
A57: AUG231_45 | Y57: 0
A58: AUG231_46 | Y58: 0
A59: AUG231_47 | Y59: 0
A60: AUG231_48 | Y60: 0
A61: AUG231_49 | Y61: 0
A62: AUG231_50 | Y62: 0
A63: AUG231_51 | Y63: 0
A64: AUG231_52 | Y64: 0
A65: AUG231_53 | E65: Non material projects - [actual]
A66: AUG231_54 | E66: Non material projects - [forecast]
A68: AUG232 | C68: AUG232_1 | D68: AUG232_2 | E68: AUG232_3 | F68: AUG232_4 | G68: AUG232_5 | H68: AUG232_6 | I68: ED_AUG232_00001 | J68: ED_AUG232_00002 | K68: ED_AUG232_00003 | L68: ED_AUG232_00004 | M68: ED_AUG232_00005 | N68: ED_AUG232_00006 | O68: ED_AUG232_00007 | P68: ED_AUG232_00008 | Q68: ED_AUG232_00009 | R68: ED_AUG232_00010 | S68: ED_AUG232_00011 | T68: ED_AUG232_00012 | U68: ED_AUG232_00013 | V68: ED_AUG232_00014 | W68: ED_AUG232_00015 | X68: ED_AUG232_00016 | Y68: ED_AUG232_00017 | Z68: ED_AUG232_00018 | AA68: ED_AUG232_00019 | AB68: ED_AUG232_00020 | AC68: ED_AUG232_00021
C69: TABLE 2.3.2 - AUGEX ASSET DATA - SUBTRANSMISSION LINES
C70: NOTE: DNSP must provide expenditure information on an 'as incurred' basis.
C71: PROJECT DESCRIPTION AND CHANGES | I71: PLANT AND EQUIPMENT EXPENDITURE AND VOLUME | U71: OTHER EXPENDITURE | W71: TOTAL DIRECT EXPENDITURE ($0's) | X71: YEARS INCURRED | Y71: ALL RELATED PARTY CONTRACTS | AA71: ALL NON RELATED PARTY CONTRACTS | AB71: LAND AND EASEMENTS
C72: LINE ID | D72: PROJECT ID | E72: PROJECT TYPE | F72: PROJECT TRIGGER | G72: VOLTAGE (KV) | H72: ROUTE LINE LENGTH ADDED | I72: POLES/TOWERS (INCLUDING STRUCTURES, AND CIVIL WORKS) | L72: OVERHEAD LINES | O72: UNDERGROUND CABLES | R72: OTHER PLANT ITEM | S72: INSTALLATION (LABOUR) | U72: CIVIL WORKS | V72: OTHER DIRECT | Y72: RELATED PARTY MARGINS | Z72: TOTAL | AB72: LAND PURCHASE | AC72: EASEMENTS
H73: KM ADDED | I73: POLES/TOWERS ADDED | J73: POLES/TOWERS UPGRADED | K73: =CONCATENATE("EXPENDITURE ($0's, real ", dms_DollarReal,")") -> EXPENDITURE ($0's, real December 2015) | L73: CIRCUIT KM ADDED | M73: CIRCUIT KM UPGRADED | N73: =CONCATENATE("EXPENDITURE ($0's, real ", dms_DollarReal,")") -> EXPENDITURE ($0's, real December 2015) | O73: CIRCUIT KM ADDED | P73: CIRCUIT KM UPGRADED | Q73: =CONCATENATE("EXPENDITURE ($0's, real ", dms_DollarReal,")") -> EXPENDITURE ($0's, real December 2015) | R73: =CONCATENATE("EXPENDITURE ($0's, real ", dms_DollarReal,")") -> EXPENDITURE ($0's, real December 2015) | S73: VOLUME | T73: =CONCATENATE("EXPENDITURE ($0's, real ", dms_DollarReal,")") -> EXPENDITURE ($0's, real December 2015) | U73: EXPENDITURE ($0's, real December 2015) | Y73: EXPENDITURE ($0's, real December 2015) | AB73: EXPENDITURE ($0's, real December 2015)
A74: AUG232_1 | W74: =SUM(K74,N74,Q74,R74,T74,U74,V74) -> 0
A75: AUG232_2 | W75: 0
A76: AUG232_3 | W76: 0
A77: AUG232_4 | W77: 0
A78: AUG232_5 | W78: 0
A79: AUG232_6 | W79: 0
A80: AUG232_7 | W80: 0
A81: AUG232_8 | W81: 0
A82: AUG232_9 | W82: 0
A83: AUG232_10 | W83: 0
A84: AUG232_11 | W84: 0
A85: AUG232_12 | W85: 0
A86: AUG232_13 | W86: 0
A87: AUG232_14 | W87: 0
A88: AUG232_15 | W88: 0
A89: AUG232_16 | W89: 0
A90: AUG232_17 | W90: 0
A91: AUG232_18 | W91: 0
A92: AUG232_19 | W92: 0
A93: AUG232_20 | W93: 0
A94: AUG232_21 | W94: 0
A95: AUG232_22 | W95: 0
A96: AUG232_23 | W96: 0
A97: AUG232_24 | W97: 0
A98: AUG232_25 | W98: 0
A99: AUG232_26 | W99: 0
A100: AUG232_27 | W100: 0
A101: AUG232_28 | W101: 0
A102: AUG232_29 | W102: 0
A103: AUG232_30 | W103: 0
A104: AUG232_31 | W104: 0
A105: AUG232_32 | W105: 0
A106: AUG232_33 | W106: =SUM(K106,N106,Q106,R106,T106,U106,V106) -> 0
A107: AUG232_34 | W107: 0
A108: AUG232_35 | W108: 0
A109: AUG232_36 | W109: 0
A110: AUG232_37 | W110: 0
A111: AUG232_38 | W111: 0
A112: AUG232_39 | W112: 0
A113: AUG232_40 | W113: 0
A114: AUG232_41 | W114: 0
A115: AUG232_42 | W115: 0
A116: AUG232_43 | W116: 0
A117: AUG232_44 | W117: 0
A118: AUG232_45 | W118: 0
A119: AUG232_46 | W119: 0
A120: AUG232_47 | W120: 0
A121: AUG232_48 | W121: 0
A122: AUG232_49 | W122: 0
A123: AUG232_50 | W123: 0
A124: AUG232_51 | W124: 0
A125: AUG232_52 | W125: 0
A126: AUG232_53 | W126: 0
A127: AUG232_54 | W127: 0
A128: AUG232_55 | D128: Non material projects - [actual]
A129: AUG232_56 | D129: Non material projects - [forecast]
C132: TABLE 2.3.3 - AUGEX DATA - HV/LV FEEDERS AND DISTRIBUTION SUBSTATIONS
C133: NOTE: DNSP must provide expenditure information on an 'as incurred' basis.
C134: Table 2.3.3.1 - Descriptor metrics
C137: PROJECT TYPE | D137: Unit of Measure | E137: UNITS ADDED (0's) | L137: UNITS UPGRADED (0's)
A138: AUG2331 | E138: =CRCP_y5 -> 2015 | F138: =FRCP -> 2016 | G138: 2017 | H138: 2018 | I138: 2019 | J138: 2020 | L138: =CRCP_y5 -> 2015 | M138: =FRCP -> 2016 | N138: 2017 | O138: 2018 | P138: 2019 | Q138: 2020
C139: HV Feeder Augmentations - Overhead Lines | D139: Circuit Line Length in KM | K139: ED_AUG2333_00001
A140: ED_AUG2331_00002 | C140: HV Feeder Augmentations - Underground Cables | D140: Circuit Line Length in KM | K140: ED_AUG2333_00002
A141: ED_AUG2331_00003 | C141: LV Feeder Augmentations - Overhead Lines | D141: Circuit Line Length in KM | K141: ED_AUG2333_00003
A142: ED_AUG2331_00004 | C142: LV Feeder Augmentations - Underground Cables | D142: Circuit Line Length in KM | K142: ED_AUG2333_00004
A143: ED_AUG2331_00005 | C143: Distribution Substation Augmentations - Pole Mounted | D143: Number | K143: ED_AUG2333_00005
A144: ED_AUG2331_00006 | C144: Distribution Substation Augmentations - Ground Mounted | D144: Number | K144: ED_AUG2333_00006
A145: ED_AUG2331_00007 | C145: Distribution Substation Augmentations - Indoor | D145: Number | K145: ED_AUG2333_00007
C147: Table 2.3.3.2 - Cost metrics
C150: PROJECT TYPE | E150: =CONCATENATE("TOTAL DIRECT EXPENDITURE ($0's, real ", dms_DollarReal,")") -> TOTAL DIRECT EXPENDITURE ($0's, real December 2015)
A151: AUG2332 | E151: =CRCP_y5 -> 2015 | F151: =FRCP -> 2016 | G151: 2017 | H151: 2018 | I151: 2019 | J151: 2020
A152: ED_AUG2332_00001 | C152: HV Feeder Augmentations - Overhead Lines
A153: ED_AUG2332_00002 | C153: HV Feeder Augmentations - Underground Cables
A154: ED_AUG2332_00003 | C154: HV Feeder Non-Material Projects
A155: ED_AUG2332_00004 | C155: LV Feeder Augmentations - Overhead Lines
A156: ED_AUG2332_00005 | C156: LV Feeder Augmentations - Underground Cables
A157: ED_AUG2332_00006 | C157: LV Feeder Non-Material Projects
A158: ED_AUG2332_00007 | C158: Distribution Substation Augmentations - Pole Mounted
A159: ED_AUG2332_00008 | C159: Distribution Substation Augmentations - Ground Mounted
A160: ED_AUG2332_00009 | C160: Distribution Substation Augmentations - Indoor
C165: TABLE 2.3.4 - AUGEX DATA - TOTAL AUGMENTATION EXPENDITURE
E166: =CONCATENATE("TOTAL DIRECT EXPENDITURE ($0's, real ", dms_DollarReal,")") -> TOTAL DIRECT EXPENDITURE ($0's, real December 2015)
A167: AUG234 | E167: =CRCP_y5 -> 2015 | F167: =FRCP -> 2016 | G167: 2017 | H167: 2018 | I167: 2019 | J167: 2020
A168: ED_AUG234_00001 | C168: Subtransmission Substations, Switching Stations, Zone Substations
A169: ED_AUG234_00002 | C169: Subtransmission Lines
A170: ED_AUG234_00003 | C170: HV Feeders
A171: ED_AUG234_00004 | C171: HV Feeders - Land Purchases and Easements
A172: ED_AUG234_00005 | C172: Distribution Substations
A173: ED_AUG234_00006 | C173: Distribution Substations - Land Purchases and Easements
A174: ED_AUG234_00007 | C174: LV Feeders
A175: ED_AUG234_00008 | C175: LV Feeders - Land Purchases and Easements
A176: ED_AUG234_00009 | C176: Other Assets
A181: PROJECT TYPE FOR TBL 2.3.2
A182: New line on new route - single circuit
A183: New line on new route - dual circuit
A184: New line on new route - other
A185: Line rebuild over existing route - single circuit
A186: Line rebuild over existing route - dual circuit
A187: Reconductor - Single circuit
A188: Reconductor - Dual circuit
A189: Reconductor - Other
A190: Line upgrade - raising/retensoring
A191: Line upgrade - voltage upgrade
A192: Line upgrade - capacity
A193: String spare circuit
A194: Other - specify

Sheet 2.4 Augex model
C1: =SheetHeader -> REGULATORY REPORTING STATEMENT | J1: Worksheet navigation
C2: =dms_TradingName -> Victorian DNSP Reset
C3: =FRCP_span -> 2016 to 2020
C4: 2.4 AUGEX MODEL
A6: ED_AUG241 | H6: ED_AUG241_00001 | I6: ED_AUG241_00002 | J6: ED_AUG241_00003 | K6: ED_AUG241_00004 | L6: ED_AUG241_00005 | M6: ED_AUG241_00006 | N6: ED_AUG241_00007 | O6: ED_AUG241_00008 | P6: ED_AUG241_00009 | Q6: ED_AUG241_00010 | R6: ED_AUG241_00011 | S6: ED_AUG241_00012
C7: TABLE 2.4.1 - AUGEX MODEL INPUTS - ASSET STATUS - SUBTRANSMISSION LINES
C9: Line ID | D9: Primary type of area supplied by line | E9: Line voltage | F9: Originating substation | G9: Terminating substation | H9: =CRCP_y4 -> 2014 | M9: =PRCP_y5 -> 2010 | R9: =CONCATENATE("Average per annum growth rate in annual line maximum demand (50% PoE) from ", CRCP_y4, " to ", FRCP_y5) -> Average per annum growth rate in annual line maximum demand (50% PoE) from 2014 to 2020 | S9: Network Segment ID
H10: =CONCATENATE(IF('1.0 Business & other details'!C48="Financial","Route line length as at 30 June ","Route line length as at 31 December ")) -> Route line length as at 31 December | I10: Maximum demand (weather corrected at 50% PoE) | K10: Line rating | M10: =CONCATENATE(IF('1.0 Business & other details'!H48="Financial","Route line length as at 30 June ","Route line length as at 31 December ")) -> Route line length as at 31 December | N10: Maximum demand (weather corrected at 50% PoE) | P10: Line rating
K11: Thermal | L11: N-1 emergency | P11: Thermal | Q11: N-1 emergency
D12: CBD, urban, long rural, or short rural | E12: kV | F12: name | G12: name | H12: km | I12: MVA | J12: MW | K12: MVA | L12: MVA | M12: km | N12: MVA | O12: MW | P12: MVA | Q12: MVA | R12: %
A13: AUG241_1
A14: AUG241_2
A15: AUG241_3
A16: AUG241_4
A17: AUG241_5
A18: AUG241_6
A19: AUG241_7
A20: AUG241_8
A21: AUG241_9
A22: AUG241_10
A23: AUG241_11
A24: AUG241_12
A25: AUG241_13
A26: AUG241_14
A27: AUG241_15
A28: AUG241_16
A29: AUG241_17
A30: AUG241_18
A31: AUG241_19
A32: AUG241_20
A33: AUG241_21
A34: AUG241_22
A35: AUG241_23
A36: AUG241_24
A37: AUG241_25
A38: AUG241_26
A39: AUG241_27
A40: AUG241_28
A41: AUG241_29
A42: AUG241_30
A43: AUG241_31
A44: AUG241_32
A45: AUG241_33
A46: AUG241_34
A47: AUG241_35
A48: AUG241_36
A49: AUG241_37
A50: AUG241_38
A51: AUG241_39
A52: AUG241_40
A53: AUG241_41
A54: AUG241_42
A55: AUG241_43
A56: AUG241_44
A57: AUG241_45
A58: AUG241_46
A59: AUG241_47
A60: AUG241_48
A61: AUG241_49
A62: AUG241_50
A63: AUG241_51
A64: AUG241_52
A65: AUG241_53
A66: AUG241_54
A67: AUG241_55
A68: AUG241_56
A69: AUG241_57
A70: AUG241_58
A71: AUG241_59
A72: AUG241_60
A73: AUG241_61
A74: AUG241_62
A75: AUG241_63
A76: AUG241_64
A77: AUG241_65
A78: AUG241_66
A79: AUG241_67
A80: AUG241_68
A81: AUG241_69
A82: AUG241_70
A83: AUG241_71
A84: AUG241_72
A85: AUG241_73
A86: AUG241_74
A87: AUG241_75
A88: AUG241_76
A89: AUG241_77
A90: AUG241_78
A91: AUG241_79
A92: AUG241_80
A93: AUG241_81
A94: AUG241_82
A95: AUG241_83
A96: AUG241_84
A97: AUG241_85
A98: AUG241_86
A99: AUG241_87
A100: AUG241_88
A101: AUG241_89
A102: AUG241_90
A103: AUG241_91
A104: AUG241_92
A105: AUG241_93
A106: AUG241_94
A107: AUG241_95
A108: AUG241_96
A109: AUG241_97
A110: AUG241_98
A111: AUG241_99
A112: AUG241_100
A113: AUG241_101
A114: AUG241_102
A115: AUG241_103
A116: AUG241_104
A117: AUG241_105
A118: AUG241_106
A119: AUG241_107
A120: AUG241_108
A121: AUG241_109
A122: AUG241_110
A123: AUG241_111
A124: AUG241_112
A125: AUG241_113
A126: AUG241_114
A127: AUG241_115
A128: AUG241_116
A129: AUG241_117
A130: AUG241_118
A131: AUG241_119
A132: AUG241_120
A133: AUG241_121
A134: AUG241_122
A135: AUG241_123
A136: AUG241_124
A137: AUG241_125
A138: AUG241_126
A139: AUG241_127
A140: AUG241_128
A141: AUG241_129
A142: AUG241_130
A143: AUG241_131
A144: AUG241_132
A145: AUG241_133
A146: AUG241_134
A147: AUG241_135
A148: AUG241_136
A149: AUG241_137
A150: AUG241_138
A151: AUG241_139
A152: AUG241_140
A153: AUG241_141
A154: AUG241_142
A155: AUG241_143
A156: AUG241_144
A157: AUG241_145
A158: AUG241_146
A159: AUG241_147
A160: AUG241_148
A161: AUG241_149
A162: AUG241_150
A163: AUG241_151
A164: AUG241_152
A165: AUG241_153
A166: AUG241_154
A167: AUG241_155
A168: AUG241_156
A169: AUG241_157
A170: AUG241_158
A171: AUG241_159
A172: AUG241_160
A173: AUG241_161
A174: AUG241_162
A175: AUG241_163
A176: AUG241_164
A177: AUG241_165
A178: AUG241_166
A179: AUG241_167
A180: AUG241_168
A181: AUG241_169
A182: AUG241_170
A183: AUG241_171
A184: AUG241_172
A185: AUG241_173
A186: AUG241_174
A187: AUG241_175
A188: AUG241_176
A189: AUG241_177
A190: AUG241_178
A191: AUG241_179
A192: AUG241_180
A193: AUG241_181
A194: AUG241_182
A195: AUG241_183
A196: AUG241_184
A197: AUG241_185
A198: AUG241_186
A199: AUG241_187
A200: AUG241_188
A201: AUG241_189
A202: AUG241_190
... 7642 more rows

Sheet 2.5 Connections
C1: =SheetHeader -> REGULATORY REPORTING STATEMENT
C2: =dms_TradingName -> Victorian DNSP Reset
C3: =FRCP_span -> 2016 to 2020
C4: 2.5 CONNECTIONS
C9: 2.5.1 DESCRIPTOR METRICS
C12: CONNECTION SUBCATEGORY | D12: DESCRIPTOR METRIC | E12: Unit of Measure | F12: =CONCATENATE("VOLUMES and EXPENDITURE (0's, real ", dms_DollarReal, ")") -> VOLUMES and EXPENDITURE (0's, real December 2015)
F13: =CRCP_y5 -> 2015 | G13: =FRCP -> 2016 | H13: 2017 | I13: 2018 | J13: 2019 | K13: 2020
A14: ED_CON251_00001 | C14: RESIDENTIAL | D14: Underground connections | E14: 0's
A15: ED_CON251_00002 | D15: Overhead connections | E15: 0's
A16: ED_CON251_00003 | D16: Distribution substations installed | E16: MVA added
A17: ED_CON251_00004 | D17: Distribution substations installed | E17: 0's
A18: ED_CON251_00005 | D18: Distribution substations installed | E18: total spend $0's
A19: ED_CON251_00006 | D19: Augmentation HV | E19: net circuit KM added
A20: ED_CON251_00007 | D20: Augmentation HV | E20: total spend $0's
A21: ED_CON251_00008 | D21: Augmentation LV | E21: net circuit KM added
A22: ED_CON251_00009 | D22: Augmentation LV | E22: total spend $0's
A23: ED_CON251_00010 | D23: Mean days to connect residential customer with LV single phase connection | E23: 0's
A24: ED_CON251_00011 | D24: Volume of GSL breaches for residential customers | E24: 0's
A25: ED_CON251_00012 | D25: Volume of customer complaints relating to connection services | E25: 0's
A26: ED_CON251_00013 | D26: GSL payments | E26: $0's
A27: ED_CON251_00014 | C27: COMMERCIAL/INDUSTRIAL | D27: Underground connections | E27: 0's
A28: ED_CON251_00015 | D28: Overhead connections | E28: 0's
A29: ED_CON251_00016 | D29: Distribution substations installed | E29: MVA added
A30: ED_CON251_00017 | D30: Distribution substations installed | E30: 0's
A31: ED_CON251_00018 | D31: Distribution substations installed | E31: total spend $0's
A32: ED_CON251_00019 | D32: Augmentation HV | E32: net circuit KM added
A33: ED_CON251_00020 | D33: Augmentation HV | E33: total spend $0's
A34: ED_CON251_00021 | D34: Augmentation LV | E34: net circuit KM added
A35: ED_CON251_00022 | D35: Augmentation LV | E35: total spend $0's
A36: ED_CON251_00023 | C36: SUBDIVISION | D36: Underground connections | E36: 0's
A37: ED_CON251_00024 | D37: Overhead connections | E37: 0's
A38: ED_CON251_00025 | D38: Distribution substations installed | E38: MVA added
A39: ED_CON251_00026 | D39: Distribution substations installed | E39: 0's
A40: ED_CON251_00027 | D40: Distribution substations installed | E40: total spend $0's
A41: ED_CON251_00028 | D41: Augmentation HV | E41: net circuit KM added
A42: ED_CON251_00029 | D42: Augmentation HV | E42: total spend $0's
A43: ED_CON251_00030 | D43: Augmentation LV | E43: net circuit KM added
A44: ED_CON251_00031 | D44: Augmentation LV | E44: total spend $0's
A45: ED_CON251_00032 | D45: Cost per lot | E45: $0's
A46: ED_CON251_00033 | C46: EMBEDDED GENERATION | D46: Underground connections | E46: 0's
A47: ED_CON251_00034 | D47: Overhead connections | E47: 0's
A48: ED_CON251_00035 | D48: Distribution substations installed | E48: MVA added
A49: ED_CON251_00036 | D49: Distribution substations installed | E49: 0's
A50: ED_CON251_00037 | D50: Distribution substations installed | E50: total spend $0's
A51: ED_CON251_00038 | D51: Augmentation HV | E51: net circuit KM added
A52: ED_CON251_00039 | D52: Augmentation HV | E52: total spend $0's
A53: ED_CON251_00040 | D53: Augmentation LV | E53: net circuit KM added
A54: ED_CON251_00041 | D54: Augmentation LV | E54: total spend $0's
A62: NB: Codes also in hidden Column L | C62: 2.5.2 COST METRICS BY CONNECTION CLASSIFICATION
C65: CONNECTION SUBCATEGORY | D65: CONNECTION CLASSICIATION | F65: =CONCATENATE("EXPENDITURE ($'0s, real ", dms_DollarReal,")") -> EXPENDITURE ($'0s, real December 2015) | M65: VOLUMES (0's)
F66: =CRCP_y5 -> 2015 | G66: =FRCP -> 2016 | H66: 2017 | I66: 2018 | J66: 2019 | K66: 2020 | M66: =CRCP_y5 -> 2015 | N66: =FRCP -> 2016 | O66: 2017 | P66: 2018 | Q66: 2019 | R66: 2020
A67: ED_CON252_00001 | C67: RESIDENTIAL | D67: Simple connection LV | L67: ED_CON252_00001
A68: ED_CON252_00002 | D68: Complex connection LV | L68: ED_CON252_00002
A69: ED_CON252_00003 | D69: Complex connection HV | L69: ED_CON252_00003
A70: ED_CON252_00004 | C70: COMMERCIAL/INDUSTRIAL | D70: Simple connection LV | L70: ED_CON252_00004
A71: ED_CON252_00005 | D71: Complex connection HV (customer connected at LV, minor HV works) | L71: ED_CON252_00005
A72: ED_CON252_00006 | D72: Complex connection HV (customer connected at LV, upstream asset works) | L72: ED_CON252_00006
A73: ED_CON252_00007 | D73: Complex connection HV (customer connected at HV) | L73: ED_CON252_00007
A74: ED_CON252_00008 | D74: Complex connection sub-transmission | L74: ED_CON252_00008
A75: ED_CON252_00009 | C75: SUBDIVISION | D75: Complex connection LV | L75: ED_CON252_00009
A76: ED_CON252_00010 | D76: Complex connection HV (no upstream asset works) | L76: ED_CON252_00010
A77: ED_CON252_00011 | D77: Complex connection HV (with upstream asset works) | L77: ED_CON252_00011
A78: ED_CON252_00012 | C78: EMBEDDED GENERATION | D78: Simple connection LV | L78: ED_CON252_00012
A79: ED_CON252_00013 | D79: Complex connection HV (small capacity) | L79: ED_CON252_00013
A80: ED_CON252_00014 | D80: Complex connection HV (large capacity) | L80: ED_CON252_00014

Sheet 2.6 Non-network
C1: =SheetHeader -> REGULATORY REPORTING STATEMENT
C2: =dms_TradingName -> Victorian DNSP Reset
C3: =FRCP_span -> 2016 to 2020
C4: 2.6 NON NETWORK EXPENDITURE
A9: NB: Codes also in hidden column N | C9: TABLE 2.6.1 NON-NETWORK EXPENDITURE | O9: TABLE 2.6.2 ANNUAL DESCRIPTOR METRICS - IT & COMMUNICATIONS EXPENDITURE
F11: =CONCATENATE("EXPENDITURE ($'0s, real ", dms_DollarReal,")") -> EXPENDITURE ($'0s, real December 2015) | O11: NON-NETWORK CATEGORY | P11: DESCRIPTOR METRIC | S11: VOLUMES (0's)
C12: SERVICE SUBCATEGORY | D12: ASSET CATEGORY | E12: ASSET REPORTING CATEGORY | F12: =CRCP_y5 -> 2015 | G12: =FRCP -> 2016 | H12: 2017 | I12: 2018 | J12: 2019 | K12: 2020 | N12: NON-NETWORK CATEGORY | S12: =CRCP_y5 -> 2015 | T12: =FRCP -> 2016 | U12: 2017 | V12: 2018 | W12: 2019 | X12: 2020
A13: ED_NON261_00001 | C13: IT & COMMUNICATIONS | D13: Client device expenditure | E13: Opex | O13: IT & COMMUNICATIONS | P13: Employee numbers
A14: ED_NON261_00002 | E14: Capex | M14: ED_NON262_00001 | N14: IT & COMMUNICATIONS | P14: User numbers
A15: ED_NON261_00003 | D15: Recurrent expenditure | E15: Opex | M15: ED_NON262_00002 | P15: Number of devices
A16: ED_NON261_00004 | E16: Capex | M16: ED_NON262_00003
A17: ED_NON261_00005 | D17: Non-recurrent expenditure | E17: Opex
A18: ED_NON261_00006 | E18: Capex
A19: ED_NON261_00007 | C19: MOTOR VEHICLES | D19: Car | E19: Opex
A20: ED_NON261_00008 | E20: Capex
A21: ED_NON261_00009 | D21: Light commercial vehicle | E21: Opex
A22: ED_NON261_00010 | E22: Capex
A23: ED_NON261_00011 | D23: Elevated work platform (LCV) | E23: Opex | O23: TABLE 2.6.3 ANNUAL DESCRIPTOR METRICS - MOTOR VEHICLES
A24: ED_NON261_00012 | E24: Capex
A25: ED_NON261_00013 | D25: Elevated work platform (HCV) | E25: Opex | N25: TABLE 2.6.3 ANNUAL DESCRIPTOR METRICS - MOTOR VEHICLES | O25: NON-NETWORK CATEGORY | P25: DESCRIPTOR METRIC | R25: Unit of Measure | S25: VOLUMES (0's or %)
A26: ED_NON261_00014 | E26: Capex | S26: =CRCP_y5 -> 2015 | T26: =FRCP -> 2016 | U26: 2017 | V26: 2018 | W26: 2019 | X26: 2020
A27: ED_NON261_00015 | D27: Heavy commercial vehicle | E27: Opex | N27: NON-NETWORK CATEGORY | O27: MOTOR VEHICLES | P27: CAR | Q27: Average kilometres travelled | R27: 0's
A28: ED_NON261_00016 | E28: Capex | Q28: Number purchased | R28: 0's
A29: ED_NON261_00017 | C29: BUILDINGS AND PROPERTY | D29: Total buildings and property expenditure | E29: Opex | M29: ED_NON263_00001 | N29: MOTOR VEHICLES | Q29: Number leased | R29: 0's
A30: ED_NON261_00018 | E30: Capex | M30: ED_NON263_00002 | Q30: Number in fleet | R30: 0's
A31: ED_NON261_00019 | C31: OTHER | D31: Other expenditure | E31: Opex | M31: ED_NON263_00003 | Q31: Proportion of total fleet expenditure allocated as regulatory expenditure | R31: %
A32: ED_NON261_00020 | E32: Capex | M32: ED_NON263_00004 | P32: LIGHT COMMERCIAL VEHICLE | Q32: Average kilometres travelled | R32: 0's
A33: ED_NON261_00021 | C33: OTHER - DNSP nominated | D33: Office furniture and equipment | E33: Opex | M33: ED_NON263_00005 | Q33: Number purchased | R33: 0's
A34: ED_NON261_00022 | E34: Capex | M34: ED_NON263_00006 | Q34: Number leased | R34: 0's
A35: ED_NON261_00023 | D35: Plant and equipment | E35: Opex | M35: ED_NON263_00007 | Q35: Number in fleet | R35: 0's
A36: ED_NON261_00024 | E36: Capex | M36: ED_NON263_00008 | Q36: Proportion of total fleet expenditure allocated as regulatory expenditure | R36: %
A37: ED_NON261_00025 | D37: Crane borer plant HCV | E37: Opex | M37: ED_NON263_00009 | P37: ELEVATED WORK PLATFORM (LCV) | Q37: Average kilometres travelled | R37: 0's
A38: ED_NON261_00026 | E38: Capex | M38: ED_NON263_00010 | Q38: Number purchased | R38: 0's
A39: ED_NON261_00027 | D39: Other fleet assets | E39: Opex | M39: ED_NON263_00011 | Q39: Number leased | R39: 0's
A40: ED_NON261_00028 | E40: Capex | M40: ED_NON263_00012 | Q40: Number in fleet | R40: 0's
A41: ED_NON261_00029 | D41: EWP Hired | E41: Opex | M41: ED_NON263_00013 | Q41: Proportion of total fleet expenditure allocated as regulatory expenditure | R41: %
A42: ED_NON261_00030 | E42: Capex | M42: ED_NON263_00014 | P42: ELEVATED WORK PLATFORM (HCV) | Q42: Average kilometres travelled | R42: 0's
A43: ED_NON261_00031 | D43: Car Hired | E43: Opex | M43: ED_NON263_00015 | Q43: Number purchased | R43: 0's
A44: ED_NON261_00032 | E44: Capex | M44: ED_NON263_00016 | Q44: Number leased | R44: 0's
A45: ED_NON261_00033 | D45: LCV Hired | E45: Opex | M45: ED_NON263_00017 | Q45: Number in fleet | R45: 0's
A46: ED_NON261_00034 | E46: Capex | M46: ED_NON263_00018 | Q46: Proportion of total fleet expenditure allocated as regulatory expenditure | R46: %
A47: ED_NON261_00035 | D47: Other Hire | E47: Opex | M47: ED_NON263_00019 | P47: HEAVY COMMERCIAL VEHICLE | Q47: Average kilometres travelled | R47: 0's
A48: ED_NON261_00036 | E48: Capex | M48: ED_NON263_00020 | Q48: Number purchased | R48: 0's
A49: ED_NON261_00037 | E49: Opex | M49: ED_NON263_00021 | Q49: Number leased | R49: 0's
A50: ED_NON261_00038 | E50: Capex | M50: ED_NON263_00022 | Q50: Number in fleet | R50: 0's
A51: ED_NON261_00039 | E51: Opex | M51: ED_NON263_00023 | Q51: Proportion of total fleet expenditure allocated as regulatory expenditure | R51: %
A52: ED_NON261_00040 | E52: Capex | M52: ED_NON263_00024
A53: ED_NON261_00041 | E53: Opex | M53: ED_NON263_00025
A54: ED_NON261_00042 | E54: Capex

Sheet 2.10 Overheads
C1: =SheetHeader -> REGULATORY REPORTING STATEMENT | E1: Worksheet navigation
C2: =dms_TradingName -> Victorian DNSP Reset
C3: =FRCP_span -> 2016 to 2020
C4: 2.10 OVERHEADS
C8: TABLE 2.10.1 - NETWORK OVERHEADS EXPENDITURE
E11: Expenditure categories currently reported under annual RIN | F11: =CONCATENATE("EXPENDITURE ($0's, real ", dms_DollarReal,")") -> EXPENDITURE ($0's, real December 2015)
A12: OVE2102 | F12: =CRCP_y5 -> 2015 | G12: =FRCP -> 2016 | H12: 2017 | I12: 2018 | J12: 2019 | K12: 2020
A13: ED_OVE2102_00001 | C13: NETWORK OVERHEADS | D13: Total Overhead Expenditure - Standard Control Services | E13: Network Management
A14: ED_OVE2102_00002 | E14: Network Planning
A15: ED_OVE2102_00003 | E15: Network Control and Operational Switching
A16: ED_OVE2102_00004 | E16: Quality and Standard Functions
A17: ED_OVE2102_00005 | E17: Project Governance and Related Functions
A18: ED_OVE2102_00006 | E18: Other
A19: ED_OVE2102_00007 | E19: Advertising/Marketing
A20: ED_OVE2102_00008 | E20: Levies
A21: ED_OVE2102_00009 | E21: GSL payments
A22: ED_OVE2102_00010
A23: ED_OVE2102_00011
A24: ED_OVE2102_00012
A25: ED_OVE2102_00013
A26: ED_OVE2102_00014
A27: ED_OVE2102_00015
A28: ED_OVE2102_00016
A29: ED_OVE2102_00017
A30: ED_OVE2102_00018
A31: ED_OVE2102_00019
A32: ED_OVE2102_00020
A33: ED_OVE2102_00021
A34: ED_OVE2102_00022
A35: ED_OVE2102_00023
A36: ED_OVE2102_00024
A37: ED_OVE2102_00025
A38: ED_OVE2102_00026
A39: ED_OVE2102_00027
A40: ED_OVE2102_00028 | C40: NETWORK OVERHEADS | D40: Total Overhead Expenditure - Alternative Control Services | E40: Network Management
A41: ED_OVE2102_00013 | E41: Network Planning
A42: ED_OVE2102_00014 | E42: Network Control and Operational Switching
A43: ED_OVE2102_00015 | E43: Quality and Standard Functions
A44: ED_OVE2102_00016 | E44: Project Governance and Related Functions
A45: ED_OVE2102_00017 | E45: Other
A46: ED_OVE2102_00018 | E46: Smart Net - Customer Service
A47: ED_OVE2102_00019
A48: ED_OVE2102_00020
A49: ED_OVE2102_00021
A50: ED_OVE2102_00022
A51: ED_OVE2102_00023
A52: ED_OVE2102_00024
A53: ED_OVE2102_00025
A54: ED_OVE2102_00026
A55: ED_OVE2102_00027
A56: ED_OVE2102_00028
A57: ED_OVE2102_00029
A58: ED_OVE2102_00030
A59: ED_OVE2102_00031
A60: ED_OVE2102_00032
A61: ED_OVE2102_00033
A62: ED_OVE2102_00034
A63: ED_OVE2102_00035
A64: ED_OVE2102_00036
A65: ED_OVE2102_00037
A66: ED_OVE2102_00038
A67: ED_OVE2102_00039 | C67: NETWORK OVERHEADS | D67: Total Overhead Expenditure - Negotiated Services | E67: Total
A68: ED_OVE2102_00040 | C68: NETWORK OVERHEADS | D68: Total Overhead Expenditure - Unregulated Services | E68: Total
A69: ED_OVE2102_00041 | C69: NETWORK OVERHEADS | D69: Capitalised Overheads - Standard Control Services | E69: Network Management
A70: ED_OVE2102_00042 | E70: Network Planning
A71: ED_OVE2102_00043 | E71: Network Control and Operational Switching
A72: ED_OVE2102_00044 | E72: Quality and Standard Functions
A73: ED_OVE2102_00045 | E73: Project Governance and Related Functions
A74: ED_OVE2102_00046 | E74: Other
A75: ED_OVE2102_00047
A76: ED_OVE2102_00048
A77: ED_OVE2102_00049
A78: ED_OVE2102_00050
A79: ED_OVE2102_00051
A80: ED_OVE2102_00052
A81: ED_OVE2102_00053
A82: ED_OVE2102_00054
A83: ED_OVE2102_00055
A84: ED_OVE2102_00056
A85: ED_OVE2102_00057
A86: ED_OVE2102_00058
A87: ED_OVE2102_00059
A88: ED_OVE2102_00060
A89: ED_OVE2102_00061
A90: ED_OVE2102_00062
A91: ED_OVE2102_00063
A92: ED_OVE2102_00064
A93: ED_OVE2102_00065
A94: ED_OVE2102_00066
A95: ED_OVE2102_00067
A96: ED_OVE2102_00068
A97: ED_OVE2102_00069
A98: ED_OVE2102_00070
C103: TABLE 2.10.2 - CORPORATE OVERHEADS EXPENDITURE
E104: Expenditure categories currently reported under annual RIN | F104: =CONCATENATE("EXPENDITURE ($0's, real ", dms_DollarReal,")") -> EXPENDITURE ($0's, real December 2015)
F105: =CRCP_y5 -> 2015 | G105: =FRCP -> 2016 | H105: 2017 | I105: 2018 | J105: 2019 | K105: 2020
C106: CORPORATE OVERHEADS | D106: Total Overhead Expenditure - Standard Control Services | E106: Office of the CEO
A107: OVE2102 | E107: Legal and Secretariat
A108: ED_OVE2102_00001 | E108: Finance
A109: ED_OVE2102_00002 | E109: Regulatory
A110: ED_OVE2102_00003 | E110: Insurance
A111: ED_OVE2102_00004 | E111: Non-network IT support
A112: ED_OVE2102_00005 | E112: Human Resources
A113: ED_OVE2102_00006
A114: ED_OVE2102_00007
A115: ED_OVE2102_00008
A116: ED_OVE2102_00009
A117: ED_OVE2102_00010
A118: ED_OVE2102_00011
A119: ED_OVE2102_00012
A120: ED_OVE2102_00013
A121: ED_OVE2102_00014
A122: ED_OVE2102_00015
A123: ED_OVE2102_00016
A124: ED_OVE2102_00017
A125: ED_OVE2102_00018
A126: ED_OVE2102_00019 | C126: CORPORATE OVERHEADS | D126: Total Overhead Expenditure - Alternative Control Services | E126: Office of the CEO
A127: ED_OVE2102_00020 | E127: Legal and Secretariat
A128: ED_OVE2102_00021 | E128: Finance
A129: ED_OVE2102_00022 | E129: Regulatory
A130: ED_OVE2102_00023 | E130: Insurance
A131: ED_OVE2102_00024 | E131: Non-network IT support
A132: ED_OVE2102_00025 | E132: Human Resources
A133: ED_OVE2102_00026
A134: ED_OVE2102_00027
A135: ED_OVE2102_00028
A136: ED_OVE2102_00029
A137: ED_OVE2102_00030
A138: ED_OVE2102_00031
A139: ED_OVE2102_00032
A140: ED_OVE2102_00033
A141: ED_OVE2102_00034
A142: ED_OVE2102_00035
A143: ED_OVE2102_00036
A144: ED_OVE2102_00037
A145: ED_OVE2102_00038
A146: ED_OVE2102_00039 | C146: CORPORATE OVERHEADS | D146: Total Overhead Expenditure - Negotiated Services | E146: Total
A147: ED_OVE2102_00040 | C147: CORPORATE OVERHEADS | D147: Total Overhead Expenditure - Unregulated Services | E147: Total
A148: ED_OVE2102_00041 | C148: CORPORATE OVERHEADS | D148: Capitalised Overheads - Standard Control Services | E148: Non-network IT support
A149: ED_OVE2102_00042 | E149: Human Resources
A150: ED_OVE2102_00043
A151: ED_OVE2102_00044
A152: ED_OVE2102_00045
A153: ED_OVE2102_00046
A154: ED_OVE2102_00047
A155: ED_OVE2102_00048
A156: ED_OVE2102_00049
A157: ED_OVE2102_00050
A158: ED_OVE2102_00051
A159: ED_OVE2102_00052
A160: ED_OVE2102_00053
A161: ED_OVE2102_00054
A162: ED_OVE2102_00055
A163: ED_OVE2102_00056
A164: ED_OVE2102_00057
A165: ED_OVE2102_00058
A166: ED_OVE2102_00059
A167: ED_OVE2102_00060

Sheet 2.11 Labour
C1: =SheetHeader -> REGULATORY REPORTING STATEMENT
C2: =dms_TradingName -> Victorian DNSP Reset
C3: =FRCP_span -> 2016 to 2020
C4: 2.11 LABOUR
C6: TABLE 2.11.1 - COST METRICS PER ANNUM
F9: ASL (0's) | L9: =CONCATENATE("TOTAL LABOUR EXPENDITURE ($0's, real ", dms_DollarReal,")") -> TOTAL LABOUR EXPENDITURE ($0's, real December 2015) | R9: AVERAGE PRODUCTIVE WORK HOURS PER ASL (0's) | X9: STAND-DOWN OCCURENCES PER ASL (0's)
F11: =CRCP_y5 -> 2015 | G11: =FRCP -> 2016 | H11: 2017 | I11: 2018 | J11: 2019 | K11: 2020 | L11: =CRCP_y5 -> 2015 | M11: =FRCP -> 2016 | N11: 2017 | O11: 2018 | P11: 2019 | Q11: 2020 | R11: =CRCP_y5 -> 2015 | S11: =FRCP -> 2016 | T11: 2017 | U11: 2018 | V11: 2019 | W11: 2020 | X11: =CRCP_y5 -> 2015 | Y11: =FRCP -> 2016 | Z11: 2017 | AA11: 2018 | AB11: 2019 | AC11: 2020
A12: ED_LAB2111_00001 | C12: CORPORATE OVERHEADS INTERNAL LABOUR COSTS | D12: LABOUR CLASSIFICATION LEVEL | E12: Executive manager
A13: ED_LAB2111_00002 | E13: Employee (optional)
A14: ED_LAB2111_00003 | E14: Labour hire (optional)
A15: ED_LAB2111_00004 | E15: Senior manager
A16: ED_LAB2111_00005 | E16: Employee (optional)
A17: ED_LAB2111_00006 | E17: Labour hire (optional)
A18: ED_LAB2111_00007 | E18: Manager
A19: ED_LAB2111_00008 | E19: Employee (optional)
A20: ED_LAB2111_00009 | E20: Labour hire (optional)
A21: ED_LAB2111_00010 | E21: Professional
A22: ED_LAB2111_00011 | E22: Employee (optional)
A23: ED_LAB2111_00012 | E23: Labour hire (optional)
A24: ED_LAB2111_00013 | E24: Semi professional
A25: ED_LAB2111_00014 | E25: Employee (optional)
A26: ED_LAB2111_00015 | E26: Labour hire (optional)
A27: ED_LAB2111_00016 | E27: Support staff
A28: ED_LAB2111_00017 | E28: Employee (optional)
A29: ED_LAB2111_00018 | E29: Labour hire (optional)
A30: ED_LAB2111_00019 | E30: Intern, junior staff, apprentice
A31: ED_LAB2111_00020 | E31: Employee (optional)
A32: ED_LAB2111_00021 | E32: Labour hire (optional)
A33: ED_LAB2111_00022 | C33: NETWORK OVERHEADS INTERNAL LABOUR COSTS | D33: LABOUR CLASSIFICATION LEVEL | E33: Executive manager
A34: ED_LAB2111_00023 | E34: Employee (optional)
A35: ED_LAB2111_00024 | E35: Labour hire (optional)
A36: ED_LAB2111_00025 | E36: Senior manager
A37: ED_LAB2111_00026 | E37: Employee (optional)
A38: ED_LAB2111_00027 | E38: Labour hire (optional)
A39: ED_LAB2111_00028 | E39: Manager
A40: ED_LAB2111_00029 | E40: Employee (optional)
A41: ED_LAB2111_00030 | E41: Labour hire (optional)
A42: ED_LAB2111_00031 | E42: Professional
A43: ED_LAB2111_00032 | E43: Employee (optional)
A44: ED_LAB2111_00033 | E44: Labour hire (optional)
A45: ED_LAB2111_00034 | E45: Semi professional
A46: ED_LAB2111_00035 | E46: Employee (optional)
A47: ED_LAB2111_00036 | E47: Labour hire (optional)
A48: ED_LAB2111_00037 | E48: Support staff
A49: ED_LAB2111_00038 | E49: Employee (optional)
A50: ED_LAB2111_00039 | E50: Labour hire (optional)
A51: ED_LAB2111_00040 | E51: Intern, junior staff, apprentice
A52: ED_LAB2111_00041 | E52: Employee (optional)
A53: ED_LAB2111_00042 | E53: Labour hire (optional)
A54: ED_LAB2111_00043 | C54: TOTAL DIRECT NETWORK LABOUR INTERNAL LABOUR COSTS | D54: LABOUR CLASSIFICATION LEVEL | E54: Skilled electrical worker
A55: ED_LAB2111_00044 | E55: Employee (optional)
A56: ED_LAB2111_00045 | E56: Labour hire (optional)
A57: ED_LAB2111_00046 | E57: Skilled non electical worker
A58: ED_LAB2111_00047 | E58: Employee (optional)
A59: ED_LAB2111_00048 | E59: Labour hire (optional)
A60: ED_LAB2111_00049 | E60: Apprentice
A61: ED_LAB2111_00050 | E61: Employee (optional)
A62: ED_LAB2111_00051 | E62: Labour hire (optional)
A63: ED_LAB2111_00052 | E63: Unskilled worker
A64: ED_LAB2111_00053 | E64: Employee (optional)
A65: ED_LAB2111_00054 | E65: Labour hire (optional)

Sheet 2.12 Input tables
C1: =SheetHeader -> REGULATORY REPORTING STATEMENT
C2: =dms_TradingName -> Victorian DNSP Reset
C3: =FRCP_span -> 2016 to 2020
C4: 2.12 INPUT TABLES
E7: =CONCATENATE("DIRECT MATERIAL EXPENDITURE ($0's, real ", dms_DollarReal,")") -> DIRECT MATERIAL EXPENDITURE ($0's, real December 2015) | K7: =CONCATENATE("DIRECT LABOUR EXPENDITURE ($0's, real ", dms_DollarReal,")") -> DIRECT LABOUR EXPENDITURE ($0's, real December 2015) | Q7: =CONCATENATE("CONTRACT EXPENDITURE ($0's, real ", dms_DollarReal,")") -> CONTRACT EXPENDITURE ($0's, real December 2015) | W7: =CONCATENATE("OTHER EXPENDITURE ($0's, real ", dms_DollarReal,")") -> OTHER EXPENDITURE ($0's, real December 2015) | AC7: =CONCATENATE("RELATED PARTY CONTRACT EXPENDITURE ($0's, real ", dms_DollarReal,")") -> RELATED PARTY CONTRACT EXPENDITURE ($0's, real December 2015) | AI7: =CONCATENATE("RELATED PARTY CONTRACT MARGIN EXPENDITURE ($0's, real ", dms_DollarReal,")") -> RELATED PARTY CONTRACT MARGIN EXPENDITURE ($0's, real December 2015)
E8: =CRCP_y5 -> 2015 | F8: =FRCP -> 2016 | G8: 2017 | H8: 2018 | I8: 2019 | J8: 2020 | K8: =CRCP_y5 -> 2015 | L8: =FRCP -> 2016 | M8: 2017 | N8: 2018 | O8: 2019 | P8: 2020 | Q8: =CRCP_y5 -> 2015 | R8: =FRCP -> 2016 | S8: 2017 | T8: 2018 | U8: 2019 | V8: 2020 | W8: =CRCP_y5 -> 2015 | X8: =FRCP -> 2016 | Y8: 2017 | Z8: 2018 | AA8: 2019 | AB8: 2020 | AC8: =CRCP_y5 -> 2015 | AD8: =FRCP -> 2016 | AE8: 2017 | AF8: 2018 | AG8: 2019 | AH8: 2020 | AI8: =CRCP_y5 -> 2015 | AJ8: =FRCP -> 2016 | AK8: 2017 | AL8: 2018 | AM8: 2019 | AN8: 2020
A9: ED_INP212_00001 | C9: VEGETATION MANAGEMENT | D9: Low Bushfire Risk Area - LBRA
A10: ED_INP212_00002 | D10: Hazardous Bushfire Risk Area - HBRA
A11: ED_INP212_00003
A12: ED_INP212_00004
A13: ED_INP212_00005
A14: ED_INP212_00006
A15: ED_INP212_00007
A16: ED_INP212_00008
A17: ED_INP212_00009
A18: ED_INP212_00010
A19: ED_INP212_00011
A20: ED_INP212_00012
A21: ED_INP212_00013
A22: ED_INP212_00014
A23: ED_INP212_00015
A24: ED_INP212_00016
A25: ED_INP212_00017
A26: ED_INP212_00018
A27: ED_INP212_00019
A28: ED_INP212_00020
A29: ED_INP212_00021
A30: ED_INP212_00022
A31: ED_INP212_00023 | C31: ROUTINE MAINTENANCE | D31: Pole top, overhead line & service line maintenance
A32: ED_INP212_00024 | D32: Pole inspection and treatment
A33: ED_INP212_00025 | D33: Overhead asset inspection
A34: ED_INP212_00026 | D34: Network underground cable maintenance
A35: ED_INP212_00027 | D35: Distribution substation equipment & property maintenance
A36: ED_INP212_00028 | D36: Zone substation equipment maintenance
A37: ED_INP212_00029 | D37: Zone substation property maintenance
A38: ED_INP212_00031 | D38: Scada & network control maintenance
A39: ED_INP212_00032 | D39: Protection systems maintenance
A40: ED_INP212_00033 | D40: Subtransmission asset maintenance - for DNSP with dual function assets
A41: ED_INP212_00035 | D41: Other
A42: ED_INP212_00036 | C42: NON-ROUTINE MAINTENANCE | D42: Pole top, overhead line & service line maintenance
A43: ED_INP212_00037 | D43: Pole inspection and treatment
A44: ED_INP212_00038 | D44: Overhead asset inspection
A45: ED_INP212_00039 | D45: Network underground cable maintenance
A46: ED_INP212_00040 | D46: Distribution substation equipment & property maintenance
A47: ED_INP212_00041 | D47: Zone substation equipment maintenance
A48: ED_INP212_00042 | D48: Zone substation property maintenance
A49: ED_INP212_00044 | D49: SCADA & network control maintenance
A50: ED_INP212_00045 | D50: Protection systems maintenance
A51: ED_INP212_00046 | D51: Subtransmission asset maintenance - for DNSP with dual function assets
A52: ED_INP212_00048 | D52: Other
A53: ED_INP212_00049 | C53: OVERHEADS | D53: Network overheads
A54: ED_INP212_00050 | D54: Corporate overheads
A55: ED_INP212_00051 | C55: AUGMENTATION | D55: Subtransmission substations, switching stations, zone substations
A56: ED_INP212_00052 | D56: Subtransmission lines
A57: ED_INP212_00053 | D57: HV feeders
A58: ED_INP212_00054 | D58: Distribution substations
A59: ED_INP212_00055 | D59: LV feeders
A60: ED_INP212_00056 | D60: Other assets
A61: ED_INP212_00057 | C61: CONNECTIONS | D61: Simple and complex customer connections
A62: ED_INP212_00058 | C62: EMERGENCY RESPONSE | D62: Major storms
A63: ED_INP212_00059 | D63: Major event days
A64: ED_INP212_00064 | C64: REPLACEMENT | D64: Poles
A65: ED_INP212_00065 | D65: Pole top structures
A66: ED_INP212_00066 | D66: Overhead conductors
A67: ED_INP212_00067 | D67: Underground cables
A68: ED_INP212_00068 | D68: Service lines
A69: ED_INP212_00069 | D69: Transformers
A70: ED_INP212_00070 | D70: Switchgear
A71: ED_INP212_00072 | D71: SCADA network control and protections systems
A72: ED_INP212_00073 | D72: Other
A73: ED_INP212_00074 | C73: NON-NETWORK EXPENDITURE | D73: IT and communications
A74: ED_INP212_00075 | D74: Motor vehicles
A75: ED_INP212_00076 | D75: Buildings and property
A76: ED_INP212_00077 | D76: Other

Sheet 2.13 Provisions
C1: =SheetHeader -> REGULATORY REPORTING STATEMENT
C2: =dms_TradingName -> Victorian DNSP Reset
C3: =FRCP_span -> 2016 to 2020
C4: 2.13 PROVISIONS
C6: Instructions
C7: In Table 2.13.1 provide, for each provision, the name and a brief description of the nature of the obligation in the spaces provided. Provision amounts must be inclusive of related party margins (RPMs) if the DNSP incurs RPMs. Provision amounts must only relate to standard control services. In Table 2.13.2 allocate, by provision, the total movements in provisions from Table 2.13.1 opex, as-incurred capex by asset class and other. 'Other' refers to movements in provisions that are recognised in equity, revenue, etc rather than as an expense. The total 'movement' (the sum of the movements allocated to opex, capex and other) is equal to the difference between the carrying amount at the end of the period and the carrying amount at the beginning of the period in Table 2.13.1. The DNSP must insert their Roll Forward Model asset classes in the as-incurred capex section of Table 2.13.2.
C12: TABLE 2.13.1 - CHANGES IN TOTAL PROVISIONS incl. RPM
D15: Historical ($0's, nominal)
A16: PRO2131 | D16: =PRCP_y4 -> 2009 | E16: =PRCP_y5 -> 2010 | F16: =CRCP -> 2011 | G16: 2012 | H16: 2013 | I16: 2014
A19: ED_PRO2131_00100 | C19: Provision name
C20: Provisions made for potential delinquent debtors
A21: ED_PRO2131_00003 | C21: Opening balance (the carrying amount at the beginning of the period) | D21: -115.19876 | E21: =D38 -> -114.49611 | F21: =E38 -> -67.75204 | G21: =F38 -> -28.09125 | H21: =G38 -> -45.68418 | I21: =H38 -> -21.04736
C22: Additional provisions made in the period, including increases to existing provisions
A23: ED_PRO2131_00005 | C23: Opex component | D23: -1395.65903 | E23: -1235.67632 | F23: -379.45889 | G23: -313.56257 | H23: -933.71668 | I23: -644.03883
A24: ED_PRO2131_00006 | C24: Capex component
A25: ED_PRO2131_00007 | C25: Other component
C26: Amounts used (that is, incurred and charged against the provision) during the period
A27: ED_PRO2131_00009 | C27: Opex component | D27: 0 | E27: 0 | F27: 0 | G27: 0 | H27: 0 | I27: 0
A28: ED_PRO2131_00010 | C28: Capex component
A29: ED_PRO2131_00011 | C29: Other component
C30: Unused amounts reversed during the period
A31: ED_PRO2131_00013 | C31: Opex component | D31: 1396.36168 | E31: 1282.42039 | F31: 419.11968 | G31: 295.96964 | H31: 958.3535 | I31: 609.89217
A32: ED_PRO2131_00014 | C32: Capex component
A33: ED_PRO2131_00015 | C33: Other component
C34: The increase during the period in the discounted amount arising from the passage of time and the effect of any change in the discount rate
A35: ED_PRO2131_00017 | C35: Opex component
A36: ED_PRO2131_00018 | C36: Capex component
A37: ED_PRO2131_00019 | C37: Other component
C38: Closing balance (carrying amount at the end of the period) | D38: =D21+SUM(D23:D37) -> -114.49611 | E38: -67.75204 | F38: -28.09125 | G38: -45.68418 | H38: -21.04736 | I38: -55.19402
A39: ED_PRO2131_00020 | C39: Provision name
C40: Brief description of provision
A41: ED_PRO2131_00003 | C41: Opening balance (the carrying amount at the beginning of the period) | D41: -157.56474 | E41: =D58 -> -337.50987 | F41: =E58 -> -70.85281 | G41: =F58 -> -106.1254 | H41: =G58 -> -335.30159 | I41: =H58 -> -184.54403
C42: Additional provisions made in the period, including increases to existing provisions
A43: ED_PRO2131_00005 | C43: Opex component | D43: -817.36606 | E43: -121.64571 | F43: -595.9546 | G43: -2418.89007 | H43: -703.24244 | I43: -2487.89714
A44: ED_PRO2131_00006 | C44: Capex component
A45: ED_PRO2131_00007 | C45: Other component
C46: Amounts used (that is, incurred and charged against the provision) during the period
A47: ED_PRO2131_00009 | C47: Opex component | D47: 637.42093 | E47: 388.30277 | F47: 560.68201 | G47: 2189.71388 | H47: 0 | I47: 0
A48: ED_PRO2131_00010 | C48: Capex component
A49: ED_PRO2131_00011 | C49: Other component
C50: Unused amounts reversed during the period
A51: ED_PRO2131_00013 | C51: Opex component | D51: 0 | E51: 0 | F51: 0 | G51: 0 | H51: 854 | I51: 2510.05667
A52: ED_PRO2131_00014 | C52: Capex component
A53: ED_PRO2131_00015 | C53: Other component
C54: The increase during the period in the discounted amount arising from the passage of time and the effect of any change in the discount rate
A55: ED_PRO2131_00017 | C55: Opex component | D55: 0 | E55: 0 | F55: 0 | G55: 0 | H55: 0 | I55: 0
A56: ED_PRO2131_00018 | C56: Capex component
A57: ED_PRO2131_00019 | C57: Other component
C58: Closing balance (carrying amount at the end of the period) | D58: =D41+SUM(D43:D57) -> -337.50987 | E58: -70.85281 | F58: -106.1254 | G58: -335.30159 | H58: -184.54403 | I58: -162.3845
A59: ED_PRO2131_00030 | C59: Provision name
C60: Brief description of provision
A61: ED_PRO2131_00003 | C61: Opening balance (the carrying amount at the beginning of the period) | E61: =D78 -> 0 | F61: =E78 -> 0 | G61: =F78 -> 0 | H61: =G78 -> 0 | I61: =H78 -> 0
C62: Additional provisions made in the period, including increases to existing provisions
A63: ED_PRO2131_00005 | C63: Opex component
A64: ED_PRO2131_00006 | C64: Capex component
A65: ED_PRO2131_00007 | C65: Other component
C66: Amounts used (that is, incurred and charged against the provision) during the period
A67: ED_PRO2131_00009 | C67: Opex component
A68: ED_PRO2131_00010 | C68: Capex component
A69: ED_PRO2131_00011 | C69: Other component
C70: Unused amounts reversed during the period
A71: ED_PRO2131_00013 | C71: Opex component
A72: ED_PRO2131_00014 | C72: Capex component
A73: ED_PRO2131_00015 | C73: Other component
C74: The increase during the period in the discounted amount arising from the passage of time and the effect of any change in the discount rate
A75: ED_PRO2131_00017 | C75: Opex component
A76: ED_PRO2131_00018 | C76: Capex component
A77: ED_PRO2131_00019 | C77: Other component
C78: Closing balance (carrying amount at the end of the period) | D78: =D61+SUM(D63:D77) -> 0 | E78: 0 | F78: 0 | G78: 0 | H78: 0 | I78: 0
A79: ED_PRO2131_00040 | C79: Provision name
C80: Brief description of provision
A81: ED_PRO2131_00003 | C81: Opening balance (the carrying amount at the beginning of the period) | E81: =D98 -> 0 | F81: =E98 -> 0 | G81: =F98 -> 0 | H81: =G98 -> 0 | I81: =H98 -> 0
C82: Additional provisions made in the period, including increases to existing provisions
A83: ED_PRO2131_00005 | C83: Opex component
A84: ED_PRO2131_00006 | C84: Capex component
A85: ED_PRO2131_00007 | C85: Other component
C86: Amounts used (that is, incurred and charged against the provision) during the period
A87: ED_PRO2131_00009 | C87: Opex component
A88: ED_PRO2131_00010 | C88: Capex component
A89: ED_PRO2131_00011 | C89: Other component
C90: Unused amounts reversed during the period
A91: ED_PRO2131_00013 | C91: Opex component
A92: ED_PRO2131_00014 | C92: Capex component
A93: ED_PRO2131_00015 | C93: Other component
C94: The increase during the period in the discounted amount arising from the passage of time and the effect of any change in the discount rate
A95: ED_PRO2131_00017 | C95: Opex component
A96: ED_PRO2131_00018 | C96: Capex component
A97: ED_PRO2131_00019 | C97: Other component
C98: Closing balance (carrying amount at the end of the period) | D98: =D81+SUM(D83:D97) -> 0 | E98: 0 | F98: 0 | G98: 0 | H98: 0 | I98: 0
A99: ED_PRO2131_00050 | C99: Provision name
C100: Brief description of provision
A101: ED_PRO2131_00003 | C101: Opening balance (the carrying amount at the beginning of the period) | E101: =D118 -> 0 | F101: =E118 -> 0 | G101: =F118 -> 0 | H101: =G118 -> 0 | I101: =H118 -> 0
C102: Additional provisions made in the period, including increases to existing provisions
A103: ED_PRO2131_00005 | C103: Opex component
A104: ED_PRO2131_00006 | C104: Capex component
A105: ED_PRO2131_00007 | C105: Other component
C106: Amounts used (that is, incurred and charged against the provision) during the period
A107: ED_PRO2131_00009 | C107: Opex component
A108: ED_PRO2131_00010 | C108: Capex component
A109: ED_PRO2131_00011 | C109: Other component
C110: Unused amounts reversed during the period
A111: ED_PRO2131_00013 | C111: Opex component
A112: ED_PRO2131_00014 | C112: Capex component
A113: ED_PRO2131_00015 | C113: Other component
C114: The increase during the period in the discounted amount arising from the passage of time and the effect of any change in the discount rate
A115: ED_PRO2131_00017 | C115: Opex component
A116: ED_PRO2131_00018 | C116: Capex component
A117: ED_PRO2131_00019 | C117: Other component
C118: Closing balance (carrying amount at the end of the period) | D118: =D101+SUM(D103:D117) -> 0 | E118: 0 | F118: 0 | G118: 0 | H118: 0 | I118: 0
A119: ED_PRO2131_00060 | C119: Provision name
C120: Brief description of provision
A121: ED_PRO2131_00003 | C121: Opening balance (the carrying amount at the beginning of the period) | E121: =D138 -> 0 | F121: =E138 -> 0 | G121: =F138 -> 0 | H121: =G138 -> 0 | I121: =H138 -> 0
C122: Additional provisions made in the period, including increases to existing provisions
A123: ED_PRO2131_00005 | C123: Opex component
A124: ED_PRO2131_00006 | C124: Capex component
A125: ED_PRO2131_00007 | C125: Other component
C126: Amounts used (that is, incurred and charged against the provision) during the period
A127: ED_PRO2131_00009 | C127: Opex component
A128: ED_PRO2131_00010 | C128: Capex component
A129: ED_PRO2131_00011 | C129: Other component
C130: Unused amounts reversed during the period
A131: ED_PRO2131_00013 | C131: Opex component
A132: ED_PRO2131_00014 | C132: Capex component
A133: ED_PRO2131_00015 | C133: Other component
C134: The increase during the period in the discounted amount arising from the passage of time and the effect of any change in the discount rate
A135: ED_PRO2131_00017 | C135: Opex component
A136: ED_PRO2131_00018 | C136: Capex component
A137: ED_PRO2131_00019 | C137: Other component
C138: Closing balance (carrying amount at the end of the period) | D138: =D121+SUM(D123:D137) -> 0 | E138: 0 | F138: 0 | G138: 0 | H138: 0 | I138: 0
A139: ED_PRO2131_00070 | C139: Provision name
C140: Brief description of provision
A141: ED_PRO2131_00003 | C141: Opening balance (the carrying amount at the beginning of the period) | E141: =D158 -> 0 | F141: =E158 -> 0 | G141: =F158 -> 0 | H141: =G158 -> 0 | I141: =H158 -> 0
C142: Additional provisions made in the period, including increases to existing provisions
A143: ED_PRO2131_00005 | C143: Opex component
A144: ED_PRO2131_00006 | C144: Capex component
A145: ED_PRO2131_00007 | C145: Other component
C146: Amounts used (that is, incurred and charged against the provision) during the period
A147: ED_PRO2131_00009 | C147: Opex component
A148: ED_PRO2131_00010 | C148: Capex component
A149: ED_PRO2131_00011 | C149: Other component
C150: Unused amounts reversed during the period
A151: ED_PRO2131_00013 | C151: Opex component
A152: ED_PRO2131_00014 | C152: Capex component
A153: ED_PRO2131_00015 | C153: Other component
C154: The increase during the period in the discounted amount arising from the passage of time and the effect of any change in the discount rate
A155: ED_PRO2131_00017 | C155: Opex component
A156: ED_PRO2131_00018 | C156: Capex component
A157: ED_PRO2131_00019 | C157: Other component
C158: Closing balance (carrying amount at the end of the period) | D158: =D141+SUM(D143:D157) -> 0 | E158: 0 | F158: 0 | G158: 0 | H158: 0 | I158: 0
A159: ED_PRO2131_00080 | C159: Provision name
C160: Brief description of provision
A161: ED_PRO2131_00003 | C161: Opening balance (the carrying amount at the beginning of the period) | E161: =D178 -> 0 | F161: =E178 -> 0 | G161: =F178 -> 0 | H161: =G178 -> 0 | I161: =H178 -> 0
C162: Additional provisions made in the period, including increases to existing provisions
A163: ED_PRO2131_00005 | C163: Opex component
A164: ED_PRO2131_00006 | C164: Capex component
A165: ED_PRO2131_00007 | C165: Other component
C166: Amounts used (that is, incurred and charged against the provision) during the period
A167: ED_PRO2131_00009 | C167: Opex component
A168: ED_PRO2131_00010 | C168: Capex component
A169: ED_PRO2131_00011 | C169: Other component
C170: Unused amounts reversed during the period
A171: ED_PRO2131_00013 | C171: Opex component
A172: ED_PRO2131_00014 | C172: Capex component
A173: ED_PRO2131_00015 | C173: Other component
C174: The increase during the period in the discounted amount arising from the passage of time and the effect of any change in the discount rate
A175: ED_PRO2131_00017 | C175: Opex component
A176: ED_PRO2131_00018 | C176: Capex component
A177: ED_PRO2131_00019 | C177: Other component
C178: Closing balance (carrying amount at the end of the period) | D178: =D161+SUM(D163:D177) -> 0 | E178: 0 | F178: 0 | G178: 0 | H178: 0 | I178: 0
A179: ED_PRO2131_00090 | C179: Provision name
C180: Brief description of provision
A181: ED_PRO2131_00003 | C181: Opening balance (the carrying amount at the beginning of the period) | E181: =D198 -> 0 | F181: =E198 -> 0 | G181: =F198 -> 0 | H181: =G198 -> 0 | I181: =H198 -> 0
C182: Additional provisions made in the period, including increases to existing provisions
A183: ED_PRO2131_00005 | C183: Opex component
A184: ED_PRO2131_00006 | C184: Capex component
A185: ED_PRO2131_00007 | C185: Other component
C186: Amounts used (that is, incurred and charged against the provision) during the period
A187: ED_PRO2131_00009 | C187: Opex component
A188: ED_PRO2131_00010 | C188: Capex component
A189: ED_PRO2131_00011 | C189: Other component
C190: Unused amounts reversed during the period
A191: ED_PRO2131_00013 | C191: Opex component
A192: ED_PRO2131_00014 | C192: Capex component
A193: ED_PRO2131_00015 | C193: Other component
C194: The increase during the period in the discounted amount arising from the passage of time and the effect of any change in the discount rate
A195: ED_PRO2131_00017 | C195: Opex component
A196: ED_PRO2131_00018 | C196: Capex component
A197: ED_PRO2131_00019 | C197: Other component
C198: Closing balance (carrying amount at the end of the period) | D198: =D181+SUM(D183:D197) -> 0 | E198: 0 | F198: 0 | G198: 0 | H198: 0 | I198: 0
A199: ED_PRO2131_00100 | C199: Provision name
C200: Brief description of provision
A201: ED_PRO2131_00003 | C201: Opening balance (the carrying amount at the beginning of the period) | E201: =D218 -> 0 | F201: =E218 -> 0 | G201: =F218 -> 0 | H201: =G218 -> 0 | I201: =H218 -> 0
C202: Additional provisions made in the period, including increases to existing provisions
A203: ED_PRO2131_00005 | C203: Opex component
A204: ED_PRO2131_00006 | C204: Capex component
A205: ED_PRO2131_00007 | C205: Other component
C206: Amounts used (that is, incurred and charged against the provision) during the period
A207: ED_PRO2131_00009 | C207: Opex component
A208: ED_PRO2131_00010 | C208: Capex component
A209: ED_PRO2131_00011 | C209: Other component
... 462 more rows

Sheet 2.14 Forecast price changes
C1: =SheetHeader -> REGULATORY REPORTING STATEMENT
C2: =dms_TradingName -> Victorian DNSP Reset
C3: =FRCP_span -> 2016 to 2020
C4: 2.14 FORECAST PRICE CHANGES
C6: Instructions
C7: The DNSP must provide all forecast price changes used to forecast opex and capex, including forecast changes in CPI. Forecast price changes must be expressed in real terms, except for CPI. If the same escalators are not used for capex and opex, report capex and opex escalators separately. Add additional rows as required. If price changes for a given year were not used to forecast either opex or capex enter '0' for that year.
C9: TABLE 2.14.1 - FORECAST LABOUR AND MATERIALS PRICE CHANGES
D11: Price changes (% YoY real) Current regulatory period | I11: Price changes (%YoY real) Forthcoming regulatory period
D12: Historical | H12: Forecast
D13: =CRCP -> 2011 | E13: 2012 | F13: 2013 | G13: 2014 | H13: 2015 | I13: =FRCP -> 2016 | J13: 2017 | K13: 2018 | L13: 2019 | M13: 2020
C14: Materials price changes
A15: ED_FOR21411_00001
A16: ED_FOR21411_00002
A17: ED_FOR21411_00003
A18: ED_FOR21411_00004
A19: ED_FOR21411_00005
A20: ED_FOR21411_00006
A21: ED_FOR21411_00007
A22: ED_FOR21411_00008
A23: ED_FOR21411_00009
A24: ED_FOR21411_00010
A25: ED_FOR21411_00011
A26: ED_FOR21411_00012
A27: ED_FOR21411_00013
A28: ED_FOR21411_00014
A29: ED_FOR21411_00015
A30: ED_FOR21411_00016
A31: ED_FOR21411_00017
A32: ED_FOR21411_00018
A33: ED_FOR21411_00019
A34: ED_FOR21411_00020
A35: ED_FOR21411_00021
A36: ED_FOR21411_00022
A37: ED_FOR21411_00023
A38: ED_FOR21411_00024
A39: ED_FOR21411_00025
A40: ED_FOR21411_00026
A41: ED_FOR21411_00027
A42: ED_FOR21411_00028
A43: ED_FOR21411_00029
A44: ED_FOR21411_00030
A45: ED_FOR21411_00031
A46: ED_FOR21411_00032
A47: ED_FOR21411_00033
A48: ED_FOR21411_00034
A49: ED_FOR21411_00035
A50: ED_FOR21411_00036
A51: ED_FOR21411_00037
A52: ED_FOR21411_00038
A53: ED_FOR21411_00039
A54: ED_FOR21411_00040
A55: ED_FOR21411_00041
A56: ED_FOR21411_00042
A57: ED_FOR21411_00043
A58: ED_FOR21411_00044
A59: ED_FOR21411_00045
A60: ED_FOR21411_00046
A61: ED_FOR21411_00047
A62: ED_FOR21411_00048
A63: ED_FOR21411_00049
A64: ED_FOR21411_00050
C65: Labour and Other price changes
A66: ED_FOR21412_00001
A67: ED_FOR21412_00002
A68: ED_FOR21412_00003
A69: ED_FOR21412_00004
A70: ED_FOR21412_00005
A71: ED_FOR21412_00006
A72: ED_FOR21412_00007
A73: ED_FOR21412_00008
A74: ED_FOR21412_00009
A75: ED_FOR21412_00010
A76: ED_FOR21412_00011
A77: ED_FOR21412_00012
A78: ED_FOR21412_00013
A79: ED_FOR21412_00014
A80: ED_FOR21412_00015
A81: ED_FOR21412_00016
A82: ED_FOR21412_00017
A83: ED_FOR21412_00018
A84: ED_FOR21412_00019
A85: ED_FOR21412_00020
A86: ED_FOR21412_00021
A87: ED_FOR21412_00022
A88: ED_FOR21412_00023
A89: ED_FOR21412_00024
A90: ED_FOR21412_00025
A91: ED_FOR21412_99999 | C91: CPI

Sheet 2.15 Insurance & Self-insurance
C1: =SheetHeader -> REGULATORY REPORTING STATEMENT
C2: =dms_TradingName -> Victorian DNSP Reset
C3: =FRCP_span -> 2016 to 2020
C4: 2.15 COMMERCIAL INSURANCE AND SELF-INSURANCE
C7: TABLE 2.15.1 - FORECAST COMMERCIAL INSURANCE PREMIUMS BY RISK CATEGORY
C9: Instructions
C10: This table removed from final RIN.
C12: Risk class [drop down] | D12: Risk category | E12: Deductables | F12: Policy limit | G12: Premiums Historical ($0's, nominal) | I12: =CONCATENATE("Forecast Premiums ($0's, real ", dms_DollarReal,")") -> Forecast Premiums ($0's, real December 2015)
A13: INS2151 | G13: =CRCP_y4 -> 2014 | H13: =CRCP_y5 -> 2015 | I13: =FRCP -> 2016 | J13: 2017 | K13: 2018 | L13: 2019 | M13: 2020 | N13: Total
A14: ED_INS2151_00001 | N14: =SUM(G14:M14) -> 0
A15: ED_INS2151_00002 | N15: =SUM(G15:M15) -> 0
A16: ED_INS2151_00003 | N16: 0
A17: ED_INS2151_00004 | N17: 0
A18: ED_INS2151_00005 | N18: 0
A19: ED_INS2151_00006 | N19: 0
A20: ED_INS2151_00007 | N20: 0
A21: ED_INS2151_00008 | N21: 0
A22: ED_INS2151_00009 | N22: 0
A23: ED_INS2151_00010 | N23: 0
A24: ED_INS2151_00011 | N24: 0
A25: ED_INS2151_00012 | N25: 0
A26: ED_INS2151_00013 | N26: 0
A27: ED_INS2151_00014 | N27: 0
A28: ED_INS2151_00015 | N28: 0
A29: ED_INS2151_00016 | N29: 0
A30: ED_INS2151_00017 | N30: 0
A31: ED_INS2151_00018 | N31: 0
A32: ED_INS2151_00019 | N32: 0
A33: ED_INS2151_00020 | N33: 0
A34: ED_INS2151_00021 | N34: 0
A35: ED_INS2151_00022 | N35: 0
A36: ED_INS2151_00023 | N36: 0
A37: ED_INS2151_00024 | N37: 0
A38: ED_INS2151_00025 | N38: 0
A39: ED_INS2151_00026 | N39: 0
A40: ED_INS2151_00027 | N40: 0
A41: ED_INS2151_00028 | N41: 0
A42: ED_INS2151_00029 | N42: 0
A43: ED_INS2151_00030 | N43: =SUM(G43:M43) -> 0
A44: ED_INS2151_00031 | N44: 0
A45: ED_INS2151_00032 | N45: 0
A46: ED_INS2151_00033 | N46: 0
A47: ED_INS2151_00034 | N47: 0
A48: ED_INS2151_00035 | N48: 0
A49: ED_INS2151_00036 | N49: 0
A50: ED_INS2151_00037 | N50: 0
A51: ED_INS2151_00038 | N51: 0
A52: ED_INS2151_00039 | N52: 0
A53: ED_INS2151_00040 | N53: 0
A54: ED_INS2151_00041 | N54: 0
A55: ED_INS2151_00042 | N55: 0
A56: ED_INS2151_00043 | N56: 0
A57: ED_INS2151_00044 | N57: 0
A58: ED_INS2151_00045 | N58: 0
A59: ED_INS2151_00046 | N59: 0
A60: ED_INS2151_00047 | N60: 0
A61: ED_INS2151_00048 | N61: 0
A62: ED_INS2151_00049 | N62: 0
A63: ED_INS2151_00050 | N63: 0
C64: Total forecast premiums | G64: =SUM(G14:G63) -> 0 | H64: 0 | I64: 0 | J64: 0 | K64: 0 | L64: 0 | M64: 0 | N64: 0
C67: TABLE 2.15.2 - INSURANCE PREMIUM - TOTAL PROPERTY
C69: Instructions
C70: This table removed from final RIN.
D73: Historical ($0's, nominal) | I73: =CONCATENATE("Forecast ($0's, real ", dms_DollarReal,")") -> Forecast ($0's, real December 2015)
A74: INS2152 | D74: =CRCP -> 2011 | E74: 2012 | F74: 2013 | G74: 2014 | H74: 2015 | I74: =FRCP -> 2016 | J74: 2017 | K74: 2018 | L74: 2019 | M74: 2020
C75: Base premium
A76: ED_INS21521_00001 | C76: Value of insured assets
A77: ED_INS21521_00002 | C77: Premium rate (%) | I77: =I78/I76 ->  | J77: =J78/J76 ->  | K77: =K78/K76 ->  | L77: =L78/L76 ->  | M77: =M78/M76 -> 
A78: ED_INS21521_00003 | C78: Premium (exposure x unit rate)
C79: Statutory charges
A80: ED_INS21522_00001 | C80: Stamp duty ($nominal)
A81: ED_INS21522_00002 | C81: FSL
A82: ED_INS21522_00003 | C82: Insert additional items if any
A83: ED_INS21522_00004
A84: ED_INS21522_00005
A85: ED_INS21522_00006
A86: ED_INS21522_00007
C87: Total premium (excludes GST) | I87: =I78+SUM(I80:I86) -> 0 | J87: =J78+SUM(J80:J86) -> 0 | K87: =K78+SUM(K80:K86) -> 0 | L87: =L78+SUM(L80:L86) -> 0 | M87: =M78+SUM(M80:M86) -> 0
A89: ED_INS2152_A9999 | C89: Change to exposure (%) | H89: =(I76-H76)/H76 -> 
A90: ED_INS2152_B9999 | C90: Change to premium rates (%, real) | H90: =(I87-H87)/H87 -> 
C93: TABLE 2.15.3 - INSURANCE PREMIUM - TOTAL LIABILITY
C95: Instruction
C96: This table removed from final RIN.
D99: Historical ($0's, nominal) | I99: =CONCATENATE("Forecast ($0's, real ", dms_DollarReal,")") -> Forecast ($0's, real December 2015)
A100: INS2153 | D100: =CRCP -> 2011 | E100: 2012 | F100: 2013 | G100: 2014 | H100: 2015 | I100: =FRCP -> 2016 | J100: 2017 | K100: 2018 | L100: 2019 | M100: 2020
A101: ED_INS2153_00001 | C101: Change to premium rates (per cent, real) | E101: =(E114-D114)/D114 ->  | F101: =(F114-E114)/E114 -> 
C102: Base premium
A103: ED_INS21531_00001 | C103: Liability cap
A104: ED_INS21531_00002 | C104: Premium
C105: Statutory charges
A106: ED_INS21532_00001 | C106: Stamp duty
A107: ED_INS21532_00002 | C107: <Insert additional items if any>
A108: ED_INS21532_00003
A109: ED_INS21532_00004
A110: ED_INS21532_00005
A111: ED_INS21532_00006
A112: ED_INS21532_00007
A113: ED_INS21532_00008
C114: Total premium (excludes GST) | I114: =SUM(I106:I113)+I104 -> 0 | J114: =SUM(J106:J113)+J104 -> 0 | K114: =SUM(K106:K113)+K104 -> 0 | L114: =SUM(L106:L113)+L104 -> 0 | M114: =SUM(M106:M113)+M104 -> 0
C117: TABLE 2.15.4 - PROPOSED SELF-INSURANCE ALLOWANCES BY RISK CATEGORY
C119: Instruction
C120: The DNSP is required to provide a list of proposed self insurance allowances by risk category including a description of the risk and the proposed self-insurance allowance in table 2.15.4 below.
C122: Risk class [drop down] | D122: Risk category | E122: Commercially insured (Yes/No) | F122: Commercial insurance deductable ($0's) | G122: Commercial insurance limit ($0's) | H122: Self insurance limit ($0's) | I122: =CONCATENATE("Proposed self insurance allowance ($0's, real ", dms_DollarReal, ")") -> Proposed self insurance allowance ($0's, real December 2015)
A123: INS2154 | I123: =FRCP -> 2016 | J123: 2017 | K123: 2018 | L123: 2019 | M123: 2020 | N123: Total
A124: INS2154_00001 | N124: =+SUM(I124:M124) -> 0
A125: INS2154_00002 | N125: =+SUM(I125:M125) -> 0
A126: INS2154_00003 | N126: 0
A127: INS2154_00004 | N127: 0
A128: INS2154_00005 | N128: 0
A129: INS2154_00006 | N129: 0
A130: INS2154_00007 | N130: 0
A131: INS2154_00008 | N131: 0
A132: INS2154_00009 | N132: =+SUM(I132:M132) -> 0
A133: INS2154_00010 | N133: =+SUM(I133:M133) -> 0
A134: INS2154_00011 | N134: =+SUM(I134:M134) -> 0
A135: INS2154_00012 | N135: 0
A136: INS2154_00013 | N136: 0
A137: INS2154_00014 | N137: 0
A138: INS2154_00015 | N138: 0
C139: Total | I139: =+SUM(I124:I138) -> 0 | J139: 0 | K139: 0 | L139: 0 | M139: 0 | N139: 0

Sheet 2.16 Opex Summary
C1: =SheetHeader -> REGULATORY REPORTING STATEMENT
C2: =dms_TradingName -> Victorian DNSP Reset
C3: =FRCP_span -> 2016 to 2020
C4: 2.16 OPEX SUMMARY
C6: Instructions
C7: Complete the tables below in accordance with the regulatory information notice. The DNSP must input forecast opex by category in Table 2.16.2 and Table 2.16.4 if it did not forecast its total opex using a Base Year approach. Otherwise input '0'. The DNSP's total forecast opex must reconcile to Table 2.16.1 (and if the DNSP owns and dual function assets) Table 2.16.3. If the DNSP did not forecast its total opex using a Base Year approach, total forecast opex must, in addition, reconcile to Table 2.16.2 (and if the DNSP owns any dual function assets) Table 2.16.4. If the DNSP does not own any dual function assets,Table 2.16.3 and 2.16.4 may be left blank. The total step changes in Table 2.16.1 and Table 2.16.3 must reconcile (in each year) to the total step changes for each year in Table 2.17.1 and Table 2.17.3 of worksheet '2.17 Step Changes', respectively.
A9: NB: Codes in hidden column K | C9: TABLE 2.16.1 - STANDARD CONTROL SERVICES - OPEX BY DRIVER | L9: TABLE 2.16.2 - STANDARD CONTROL SERVICES - OPEX BY CATEGORY
D11: Current regulatory period | E11: Forthcoming regulatory period | M11: Current regulatory period | N11: Forthcoming regulatory period
D12: =CONCATENATE("Forecast ($0's, real ", dms_DollarReal,")") -> Forecast ($0's, real December 2015) | M12: =CONCATENATE("Forecast ($0's, real ", dms_DollarReal,")") -> Forecast ($0's, real December 2015)
D13: =CRCP_y5 -> 2015 | E13: =FRCP -> 2016 | F13: 2017 | G13: 2018 | H13: 2019 | I13: 2020 | M13: =CRCP_y5 -> 2015 | N13: =FRCP -> 2016 | O13: 2017 | P13: 2018 | Q13: 2019 | R13: 2020
C14: Driver | K14: ED_OPX2162_00001 | L14: Vegetation management
A15: ED_OPX2161_00001 | C15: Efficient historic opex | K15: ED_OPX2162_00002 | L15: Maintenance
A16: ED_OPX2161_00002 | C16: Real price changes | K16: ED_OPX2162_00003 | L16: Emergency response
A17: ED_OPX2161_00003 | C17: Output growth | K17: ED_OPX2162_00004 | L17: Non-network
A18: ED_OPX2161_00004 | C18: Productivity growth | K18: ED_OPX2162_00005 | L18: Network overheads
A19: ED_OPX2161_00005 | C19: Step changes | K19: ED_OPX2162_00006 | L19: Corporate overheads
C20: Total opex | D20: =SUM(D15:D19) -> 0 | E20: 0 | F20: 0 | G20: 0 | H20: 0 | I20: 0 | L20: Total opex | M20: =SUM(M14:M19) -> 0 | N20: 0 | O20: 0 | P20: 0 | Q20: 0 | R20: 0
C23: TABLE 2.16.3 - DUAL FUNCTION ASSETS - OPEX BY DRIVER | L23: TABLE 2.16.4 - DUAL FUNCTION ASSETS - OPEX BY CATEGORY
D25: Current regulatory period | E25: Forthcoming regulatory period | M25: Current regulatory period | N25: Forthcoming regulatory period
D26: =CONCATENATE("Forecast ($0's, real ", dms_DollarReal,")") -> Forecast ($0's, real December 2015) | M26: =CONCATENATE("Forecast ($0's, real ", dms_DollarReal,")") -> Forecast ($0's, real December 2015)
D27: =CRCP_y5 -> 2015 | E27: =FRCP -> 2016 | F27: 2017 | G27: 2018 | H27: 2019 | I27: 2020 | M27: =CRCP_y5 -> 2015 | N27: =FRCP -> 2016 | O27: 2017 | P27: 2018 | Q27: 2019 | R27: 2020
C28: Driver | K28: ED_OPX2164_00001 | L28: Vegetation management
A29: ED_OPX2163_00001 | C29: Efficent recurrent opex | K29: ED_OPX2164_00002 | L29: Maintenance
A30: ED_OPX2163_00002 | C30: Real price changes | K30: ED_OPX2164_00003 | L30: Emergency response
A31: ED_OPX2163_00003 | C31: Output growth | K31: ED_OPX2164_00004 | L31: Non-network
A32: ED_OPX2163_00004 | C32: Productivity growth | K32: ED_OPX2164_00005 | L32: Network overheads
A33: ED_OPX2163_00005 | C33: Step changes | K33: ED_OPX2164_00006 | L33: Corporate overheads
C34: Total opex | D34: =SUM(D29:D33) -> 0 | E34: 0 | F34: 0 | G34: 0 | H34: 0 | I34: 0 | L34: Total opex | M34: =SUM(M28:M33) -> 0 | N34: 0 | O34: 0 | P34: 0 | Q34: 0 | R34: 0

Sheet 2.17 Step Changes
C1: =SheetHeader -> REGULATORY REPORTING STATEMENT
C2: =dms_TradingName -> Victorian DNSP Reset
C3: =FRCP_span -> 2016 to 2020
C4: 2.17 STEP CHANGES
C7: Instructions
C8: Complete the Tables below in accordance with the regulatory information notice. If the DNSP does not own any dual function assets,Table 2.17.3 and 2.17.4 may be left blank. The total step changes in Table 2.17.1 and Table 2.17.3 must reconcile (in each year) to the total step changes for each year in Table 2.16.1 and Table 2.16.3 of worksheet '2.16 Opex Summary', respectively.
C12: TABLE 2.17.1 - FORECAST OPEX STEP CHANGES FOR STANDARD CONTROL SERVICES
E14: Current regulatory period | J14: Forthcoming regulatory period
E15: Historical ($0's, nominal) | I15: =CONCATENATE("Forecast ($0's, real ", dms_DollarReal, ")") -> Forecast ($0's, real December 2015)
A16: STE2171 | C16: Step change | D16: Description | E16: =CRCP -> 2011 | F16: 2012 | G16: 2013 | H16: 2014 | I16: 2015 | J16: =FRCP -> 2016 | K16: 2017 | L16: 2018 | M16: 2019 | N16: 2020
A17: ED_STE2171_00001 | C17: EDPR | D17: Costs incurred in preparing for the EDPR
A18: ED_STE2171_00002 | C18: ESV levy step change | D18: Increase in ESV levy
A19: ED_STE2171_00003 | C19: Enclosed substation inspection and rectification program (2015-2020 Inspection & Rectification) | D19: Inspection and rectification of enclosed substation defects
A20: ED_STE2171_00004 | C20: Overhead Switch Inspection | D20: Inspection program for overhead air break switches
A21: ED_STE2171_00005 | C21: Vegetation management—Electrical Safety (Electric Line Clearance) Regulations | D21: Expected changes in the Electrical Safety Regulations will incurr a higher level of vegetation management costs
A22: ED_STE2171_00006 | C22: Assisting Vulnerable Customers | D22: Eangagement and assistance to vulnerable customers
A23: ED_STE2171_00007 | C23: Customer Engagement | D23: Increased customer and stakeholder engagement activities
A24: ED_STE2171_00008 | C24: Insurance premiums | D24: Change in JEN's cost associated with purchasing and renewing cyber risk insruance
A25: ED_STE2171_00009 | C25: ESV / VESI Code of practice changes | D25: Anticipated Energy Safe Victoria (ESV) review of the Code of Practice on electrical safety for work on or near HV electrical apparatus (the Blue Book). JEN will have to review and release the Electrical Safety Rules for the Victorian Distribution Networks (the Green Book) with the subsequent result being a review of all JEN work procedures, manuals and work instructions.
A26: ED_STE2171_00010 | C26: Introduction of new tariff (KVA and demand based) structures | D26: Transition to KVA demand charges and the introduction of capacity based prices for Residential and Small Business customers in line with requirements of the Tariff Structure Statement (TSS) for cost reflective pricing
A27: ED_STE2171_00011 | C27: Pole Top Early Detection System Trial | D27: A program to deploy a limited number of pole top fire detection systems
A28: ED_STE2171_00012 | C28: Service inspection and testing program | D28: Proactive inspection and testing program for service lines
A29: ED_STE2171_00013 | C29: Demand management opex for capex | D29: A demand response (DR) program to mitigate emerging network constraints and limit potential risk of supply interruption to customers.
A30: ED_STE2171_00014 | C30: Customer communications | D30: Marketing costs of a new connection portal targeted at registered electrical contractors and other trade professionals
A31: ED_STE2171_00015 | C31: Distribution substation cleaning, gardening & security (2012-2014 Rectification) | D31: Rectification of enclosed substation defects
A32: ED_STE2171_00016 | C32: Electrical Safety (Management) Regulations | D32: Change in Electrical Safety Management Regulations resulting in higher incurred costs
A33: ED_STE2171_00017 | C33: HID access card maintenance | D33: Maintenance of HID facilities access assets
A34: ED_STE2171_00018 | C34: IT opex—New data centre facilities | D34: Relocation of existing data centre facilities to new location
A35: ED_STE2171_00019 | C35: Monitoring and compliance | D35: Auditing of RIN templates
A36: ED_STE2171_00020 | C36: Non pole Distribution Substation routine maintenance (2012-2014 Inspection) | D36: Inspection of enclosed substation defects
A37: ED_STE2171_00021 | C37: Opex/capex balance—DP testing | D37: Testing of power transformer paper degree of polymerisation for development of health indexes
A38: ED_STE2171_00022 | C38: Opex/capex balance—ZA transformer dryouts (Trojan) | D38: Oil regeration for power transformers to increase dielectric strength
A39: ED_STE2171_00023 | C39: Opex/capex balance—ZS pot VT/CT testing | D39: DLA and IR testing of Zone Substation instrument transformers driven from previous failures
A40: ED_STE2171_00024 | C40: Opex/capex balance—ZS TEV testing | D40: Partial discharge testing using transient earth voltage measurement
A41: ED_STE2171_00025 | C41: Public lighting switch wire removal | D41: Increase in the number of public lighting switch wires requiring removal
A42: ED_STE2171_00026 | C42: Rectification of earths in non-CMEN areas | D42: Refciticaion of HV earths in non-Common Multiple Earthed Neutral areas that are found to be above standarad resitance
A43: ED_STE2171_00027
A44: ED_STE2171_00028
A45: ED_STE2171_00029
A46: ED_STE2171_00030
A47: ED_STE2171_00031
A48: ED_STE2171_00032 | C48: Line items below are not step changes, and are for reconciliation purposes (refer to the "check" formula on row 52)
A49: ED_STE2171_00033 | C49: Service reclassification | D49: These costs relate to metering services and supply abolishment (up to 100 amps) costs.
A50: ED_STE2171_00034 | C50: Specific forecasts | D50: These costs are forecast using a 'zero-based' forecast methodology.
C51: Total | E51: =SUM(E17:E50) -> 0 | F51: 0 | G51: 0 | H51: 0 | I51: 0 | J51: 0 | K51: 0 | L51: 0 | M51: 0 | N51: 0
C52: Check | J52: =IF(J$51-'2.16 Opex Summary'!E$19=0,"OK","Error") -> OK | K52: =IF(K$51-'2.16 Opex Summary'!F$19=0,"OK","Error") -> OK | L52: =IF(L$51-'2.16 Opex Summary'!G$19=0,"OK","Error") -> OK | M52: =IF(M$51-'2.16 Opex Summary'!H$19=0,"OK","Error") -> OK | N52: =IF(N$51-'2.16 Opex Summary'!I$19=0,"OK","Error") -> OK
C54: TABLE 2.17.2 - FORECAST CAPEX STEP CHANGES FOR STANDARD CONTROL SERVICES
E56: Current regulatory period | J56: Forthcoming regulatory period
E57: Historical ($0's, nominal) | I57: =CONCATENATE("Forecast ($0's, real ", dms_DollarReal, ")") -> Forecast ($0's, real December 2015)
A58: STE2172 | C58: Step change | D58: Description | E58: =CRCP -> 2011 | F58: 2012 | G58: 2013 | H58: 2014 | I58: 2015 | J58: =FRCP -> 2016 | K58: 2017 | L58: 2018 | M58: 2019 | N58: 2020
A59: ED_STE2172_00001
A60: ED_STE2172_00002
A61: ED_STE2172_00003
A62: ED_STE2172_00004
A63: ED_STE2172_00005
A64: ED_STE2172_00006
A65: ED_STE2172_00007
A66: ED_STE2172_00008
A67: ED_STE2172_00009
A68: ED_STE2172_00010
A69: ED_STE2172_00011
A70: ED_STE2172_00012
A71: ED_STE2172_00013
A72: ED_STE2172_00014
A73: ED_STE2172_00015
A74: ED_STE2172_00016
C75: Total | E75: =SUM(E59:E74) -> 0 | F75: 0 | G75: 0 | H75: 0 | I75: 0 | J75: 0 | K75: 0 | L75: 0 | M75: 0 | N75: 0
C77: TABLE 2.17.3 - FORECAST OPEX STEP CHANGES FOR DUAL FUNCTION ASSETS
E79: Current regulatory period | J79: Forthcoming regulatory period
E80: Historical ($0's, nominal) | I80: =CONCATENATE("Forecast ($0's, real ", dms_DollarReal, ")") -> Forecast ($0's, real December 2015)
A81: STE2173 | C81: Step change | D81: Description | E81: =CRCP -> 2011 | F81: 2012 | G81: 2013 | H81: 2014 | I81: 2015 | J81: =FRCP -> 2016 | K81: 2017 | L81: 2018 | M81: 2019 | N81: 2020
A82: ED_STE2173_00001
A83: ED_STE2173_00002
A84: ED_STE2173_00003
A85: ED_STE2173_00004
A86: ED_STE2173_00005
A87: ED_STE2173_00006
A88: ED_STE2173_00007
A89: ED_STE2173_00008
A90: ED_STE2173_00009
A91: ED_STE2173_00010
A92: ED_STE2173_00011
A93: ED_STE2173_00012
C94: Total | E94: =SUM(E82:E93) -> 0 | F94: 0 | G94: 0 | H94: 0 | I94: 0 | J94: 0 | K94: 0 | L94: 0 | M94: 0 | N94: 0
C95: Check | J95: =IF(J$51-'2.16 Opex Summary'!E$33=0,"OK","Error") -> OK | K95: =IF(K$51-'2.16 Opex Summary'!F$33=0,"OK","Error") -> OK | L95: =IF(L$51-'2.16 Opex Summary'!G$33=0,"OK","Error") -> OK | M95: =IF(M$51-'2.16 Opex Summary'!H$33=0,"OK","Error") -> OK | N95: =IF(N$51-'2.16 Opex Summary'!I$33=0,"OK","Error") -> OK
C97: TABLE 2.17.4 - FORECAST CAPEX STEP CHANGES FOR DUAL FUNCTION ASSETS
E99: Current regulatory period | J99: Forthcoming regulatory period
E100: Historical ($0's, nominal) | I100: =CONCATENATE("Forecast ($0's, real ", dms_DollarReal, ")") -> Forecast ($0's, real December 2015)
A101: STE2174 | C101: Step change | D101: Description | E101: =CRCP -> 2011 | F101: 2012 | G101: 2013 | H101: 2014 | I101: 2015 | J101: =FRCP -> 2016 | K101: 2017 | L101: 2018 | M101: 2019 | N101: 2020
A102: ED_STE2174_00001
A103: ED_STE2174_00002
A104: ED_STE2174_00003
A105: ED_STE2174_00004
A106: ED_STE2174_00005
A107: ED_STE2174_00006
A108: ED_STE2174_00007
A109: ED_STE2174_00008
A110: ED_STE2174_00009
A111: ED_STE2174_00010
A112: ED_STE2174_00011
A113: ED_STE2174_00012
C114: Total | E114: =SUM(E102:E113) -> 0 | F114: 0 | G114: 0 | H114: 0 | I114: 0 | J114: 0 | K114: 0 | L114: 0 | M114: 0 | N114: 0

Sheet 3.1 Revenue
C1: =SheetHeader -> REGULATORY REPORTING STATEMENT
C2: =dms_TradingName -> Victorian DNSP Reset
C3: =FRCP_span -> 2016 to 2020
C4: 3.1 REVENUE
E7: Standard control services | L7: Alternative control services
E8: =CONCATENATE("Forecast ($0's, real ", dms_DollarReal,")") -> Forecast ($0's, real December 2015) | L8: =CONCATENATE("Forecast ($0's, real ", dms_DollarReal,")") -> Forecast ($0's, real December 2015)
E9: =CRCP_y5 -> 2015 | F9: =FRCP -> 2016 | G9: 2017 | H9: 2018 | I9: 2019 | J9: 2020 | L9: =CRCP_y5 -> 2015 | M9: =FRCP -> 2016 | N9: 2017 | O9: 2018 | P9: 2019 | Q9: 2020
C11: TABLE 3.1.1 - REVENUE GROUPING BY CHARGEABLE QUANTITY
A12: ED_REV311_00001 | B12: DREV0101 | C12: Revenue from Fixed Customer Charges
A13: ED_REV311_00002 | B13: DREV0102 | C13: Revenue from Energy Delivery charges where time of use is not a determinant
A14: ED_REV311_00003 | B14: DREV0103 | C14: Revenue from On–Peak Energy Delivery charges
A15: ED_REV311_00004 | B15: DREV0104 | C15: Revenue from Shoulder period Energy Delivery Charges
A16: ED_REV311_00005 | B16: DREV0105 | C16: Revenue from Off–Peak Energy Delivery charges
A17: ED_REV311_00006 | B17: DREV0106 | C17: Revenue from controlled load customer charges
A18: ED_REV311_00007 | B18: DREV0107 | C18: Revenue from unmetered supplies
A19: ED_REV311_00008 | B19: DREV0108 | C19: Revenue from Contracted Maximum Demand charges
A20: ED_REV311_00009 | B20: DREV0109 | C20: Revenue from Measured Maximum Demand charges
A21: ED_REV311_00010 | B21: DREV0110 | C21: Revenue from metering charges
A22: ED_REV311_00011 | B22: DREV0111 | C22: Revenue from connection charges
A23: ED_REV311_00012 | B23: DREV0112 | C23: Revenue from public lighting charges
A24: ED_REV311_00013 | B24: DREV0113 | C24: Revenue from other Sources
B25: DREV01 | C25: Total revenue by chargeable quantity | E25: =SUM(E12:E24) -> 0 | F25: 0 | G25: 0 | H25: 0 | I25: 0 | J25: 0 | L25: =SUM(L12:L24) -> 0 | M25: 0 | N25: 0 | O25: 0 | P25: 0 | Q25: 0
C27: TABLE 3.1.2 REVENUE GROUPING BY CUSTOMER TYPE OR CLASS
A28: ED_REV312_00001 | B28: DREV0201 | C28: Revenue from residential Customers
A29: ED_REV312_00002 | B29: DREV0202 | C29: Revenue from Non residential customers not on demand tariffs
A30: ED_REV312_00003 | B30: DREV0203 | C30: Revenue from Non-residential low voltage demand tariff customers
A31: ED_REV312_00004 | B31: DREV0204 | C31: Revenue from Non-residential high voltage demand tariff customers
A32: ED_REV312_00005 | B32: DREV0205 | C32: Revenue from unmetered supplies
A33: ED_REV312_00006 | B33: DREV0206 | C33: Revenue from Other Customers
B34: DREV02 | C34: Total revenue by customer class | E34: =SUM(E28:E33) -> 0 | F34: 0 | G34: 0 | H34: 0 | I34: 0 | J34: 0 | L34: =SUM(L28:L33) -> 0 | M34: 0 | N34: 0 | O34: 0 | P34: 0 | Q34: 0
C36: TABLE 3.1.3 REVENUE (penalties) ALLOWED (deducted) THROUGH INCENTIVE SCHEMES
A37: ED_REV313_00001 | B37: DREV0301 | C37: EBSS
A38: ED_REV313_00002 | B38: DREV0302 | C38: STPIS
A39: ED_REV313_00003 | B39: DREV0303 | C39: F-Factor
A40: ED_REV313_00004 | B40: DREV0304 | C40: S-Factor True up
A41: ED_REV313_00005 | B41: DREV0305 | C41: Other
B42: DREV03 | C42: Total revenue of incentive schemes | E42: =SUM(E37:E41) -> 0 | F42: 0 | G42: 0 | H42: 0 | I42: 0 | J42: 0 | L42: =SUM(L37:L41) -> 0 | M42: 0 | N42: 0 | O42: 0 | P42: 0 | Q42: 0

Sheet 3.2 Operating expenditure
C1: =SheetHeader -> REGULATORY REPORTING STATEMENT
C2: =dms_TradingName -> Victorian DNSP Reset
C3: =FRCP_span -> 2016 to 2020
C4: 3.2 OPERATING EXPENDITURE
C6: Instructions
C7: Forecasts for opex in table 3.2.1 are to be for the opex categories that the DNSP has reported in their response to their annual reporting RIN.
E11: Standard control services | L11: Alternative control services
E12: =CONCATENATE("Forecast ($0's, real ",dms_DollarReal,")") -> Forecast ($0's, real December 2015) | L12: =CONCATENATE("Forecast ($0's, real ",dms_DollarReal,")") -> Forecast ($0's, real December 2015)
E13: =CRCP_y5 -> 2015 | F13: =FRCP -> 2016 | G13: 2017 | H13: 2018 | I13: 2019 | J13: 2020 | L13: =CRCP_y5 -> 2015 | M13: =FRCP -> 2016 | N13: 2017 | O13: 2018 | P13: 2019 | Q13: 2020
C15: TABLE 3.2.1 - OPEX CATEGORIES
C16: Table 3.2.1.1 Current opex categories and cost allocations
A17: ED_OPX3211_00001 | B17: DOPEX0101 | C17: Maintenance
A18: ED_OPX3211_00002 | B18: DOPEX0102 | C18: Routine
A19: ED_OPX3211_00003 | B19: DOPEX0103 | C19: Condition based
A20: ED_OPX3211_00004 | B20: DOPEX0104 | C20: Vegetation Control
A21: ED_OPX3211_00005 | B21: DOPEX0105 | C21: Emergency - Fault
A22: ED_OPX3211_00006 | B22: DOPEX0106 | C22: Inspection
A23: ED_OPX3211_00007 | B23: DOPEX0107 | C23: SCADA/Network Control
A24: ED_OPX3211_00008 | B24: DOPEX0108 | C24: Other - Standard Control Services
A25: ED_OPX3211_00009 | B25: DOPEX0109 | C25: Metering
A26: ED_OPX3211_00010 | B26: DOPEX0110 | C26: Public Lighting
A27: ED_OPX3211_00011 | B27: DOPEX0111 | C27: Alternative control -other
A28: ED_OPX3211_00012 | B28: DOPEX0112 | C28: Negotiated services
A29: ED_OPX3211_00013 | B29: DOPEX0113 | C29: Activities
A30: ED_OPX3211_00014 | B30: DOPEX0114 | C30: Network Operating Costs
A31: ED_OPX3211_00015 | B31: DOPEX0115 | C31: Billing & Revenue Collection
A32: ED_OPX3211_00016 | B32: DOPEX0116 | C32: Advertising/Marketing
A33: ED_OPX3211_00017 | B33: DOPEX0117 | C33: Customer Service
A34: ED_OPX3211_00018 | B34: DOPEX0118 | C34: Regulatory
A35: ED_OPX3211_00019 | B35: DOPEX0119 | C35: Regulatory Reset
A36: ED_OPX3211_00020 | B36: DOPEX0120 | C36: IT
A37: ED_OPX3211_00021 | B37: DOPEX0121 | C37: Licence fee
A38: ED_OPX3211_00022 | B38: DOPEX0122 | C38: GSL payments
A39: ED_OPX3211_00023 | B39: DOPEX0123 | C39: Non-network alternatives costs
A40: ED_OPX3211_00024 | B40: DOPEX0124 | C40: Debt raising costs
A41: ED_OPX3211_00025 | B41: DOPEX0125 | C41: Other - Standard Control Services
A42: ED_OPX3211_00026 | B42: DOPEX0126 | C42: Metering
A43: ED_OPX3211_00027 | B43: DOPEX0127 | C43: Public Lighting
A44: ED_OPX3211_00028 | B44: DOPEX0128 | C44: Alternative control -other
A45: ED_OPX3211_00029 | B45: DOPEX0129 | C45: Negotiated services
A46: ED_OPX3211_00030 | B46: DOPEX0130
A47: ED_OPX3211_00031 | B47: DOPEX0131
A48: ED_OPX3211_00032 | B48: DOPEX0132
A49: ED_OPX3211_00033 | B49: DOPEX0133
A50: ED_OPX3211_00034 | B50: DOPEX0134
A51: ED_OPX3211_99999 | B51: DOPEX01 | C51: Total opex | E51: =SUM(E17:E50) -> 0 | F51: 0 | G51: 0 | H51: 0 | I51: 0 | J51: 0 | L51: =SUM(L17:L50) -> 0 | M51: 0 | N51: 0 | O51: 0 | P51: 0 | Q51: 0
C54: TABLE 3.2.2 - OPEX CONSISTENCY
C55: Table 3.2.2.1 Opex consistency - current cost allocation approach
A56: ED_OPX3221_00001 | B56: DOPEX0201 | C56: Opex for network services
A57: ED_OPX3221_00002 | B57: DOPEX0202 | C57: Opex for metering
A58: ED_OPX3221_00003 | B58: DOPEX0203 | C58: Opex for connection services
A59: ED_OPX3221_00004 | B59: DOPEX0204 | C59: Opex for public lighting
A60: ED_OPX3221_00005 | B60: DOPEX0205 | C60: Opex for amounts payable for easement levy or similar direct charges on DNSP
A61: ED_OPX3221_00006 | B61: DOPEX0207 | C61: Opex for transmission connection point planning
C62: Total opex | E62: =SUM(E56:E61) -> 0 | F62: 0 | G62: 0 | H62: 0 | I62: 0 | J62: 0 | L62: =SUM(L56:L61) -> 0 | M62: 0 | N62: 0 | O62: 0 | P62: 0 | Q62: 0
C65: TABLE 3.2.4 - OPEX FOR HIGH VOLTAGE CUSTOMERS | F65: End user costs (not standard control services)
A66: ED_OPX324_00001 | B66: DOPEX0401 | C66: Opex for high voltage customers

Sheet 3.3 Assets (RAB)
C1: =SheetHeader -> REGULATORY REPORTING STATEMENT
C2: =dms_TradingName -> Victorian DNSP Reset
C3: =FRCP_span -> 2016 to 2020
C4: 3.3 ASSETS
D6: Network services | K6: Standard control services | R6: Alternative control services
D7: =CONCATENATE("Forecast ($0's, real ", dms_DollarReal,")") -> Forecast ($0's, real December 2015) | K7: =CONCATENATE("Forecast ($0's, real ", dms_DollarReal,")") -> Forecast ($0's, real December 2015) | R7: =CONCATENATE("Forecast ($0's, real ", dms_DollarReal,")") -> Forecast ($0's, real December 2015)
D8: =CRCP_y5 -> 2015 | E8: =FRCP -> 2016 | F8: 2017 | G8: 2018 | H8: 2019 | I8: 2020 | K8: =CRCP_y5 -> 2015 | L8: =FRCP -> 2016 | M8: 2017 | N8: 2018 | O8: 2019 | P8: 2020 | R8: =CRCP_y5 -> 2015 | S8: =FRCP -> 2016 | T8: 2017 | U8: 2018 | V8: 2019 | W8: 2020
C10: TABLE 3.3.1 REGULATORY ASSET BASE VALUES
C11: For total asset base:
A12: ED_RAB331_00001 | B12: DRAB0101 | C12: Opening value | E12: =D18 -> 0 | F12: =E18 -> 0 | G12: =F18 -> 0 | H12: =G18 -> 0 | I12: =H18 -> 0 | L12: =K18 -> 0 | M12: =L18 -> 0 | N12: =M18 -> 0 | O12: =N18 -> 0 | P12: =O18 -> 0 | S12: =R18 -> 0 | T12: =S18 -> 0 | U12: =T18 -> 0 | V12: =U18 -> 0 | W12: =V18 -> 0
A13: ED_RAB331_00002 | B13: DRAB0102 | C13: Inflation addition
A14: ED_RAB331_00003 | B14: DRAB0103 | C14: Straight line depreciation
B15: DRAB0104 | C15: Regulatory depreciation | D15: =SUM(D14+D13) -> 0 | E15: =SUM(E14+E13) -> 0 | F15: 0 | G15: 0 | H15: 0 | I15: 0 | K15: =SUM(K14+K13) -> 0 | L15: =SUM(L14+L13) -> 0 | M15: 0 | N15: 0 | O15: 0 | P15: 0 | R15: =SUM(R14+R13) -> 0 | S15: =SUM(S14+S13) -> 0 | T15: 0 | U15: 0 | V15: 0 | W15: 0
A16: ED_RAB331_00005 | B16: DRAB0105 | C16: Actual additions (recognised in RAB)
A17: ED_RAB331_00006 | B17: DRAB0106 | C17: Disposals
A18: ED_RAB331_00007 | B18: DRAB0107 | C18: Closing value for overhead distribution asset value | D18: =SUM(D12+D13+D14+D16+D17) -> 0 | E18: =SUM(E12+E13+E14+E16+E17) -> 0 | F18: 0 | G18: 0 | H18: 0 | I18: 0 | K18: =SUM(K12+K13+K14+K16+K17) -> 0 | L18: =SUM(L12+L13+L14+L16+L17) -> 0 | M18: 0 | N18: 0 | O18: 0 | P18: 0 | R18: =SUM(R12+R13+R14+R16+R17) -> 0 | S18: =SUM(S12+S13+S14+S16+S17) -> 0 | T18: 0 | U18: 0 | V18: 0 | W18: 0
C20: TABLE 3.3.2 ASSET VALUE ROLL FORWARD
C21: For overhead network assets less than 33kV:
A22: ED_RAB3321_00001 | B22: DRAB0201 | C22: Opening value | E22: =D28 -> 0 | F22: =E28 -> 0 | G22: =F28 -> 0 | H22: =G28 -> 0 | I22: =H28 -> 0 | L22: =K28 -> 0 | M22: =L28 -> 0 | N22: =M28 -> 0 | O22: =N28 -> 0 | P22: =O28 -> 0 | S22: =R28 -> 0 | T22: =S28 -> 0 | U22: =T28 -> 0 | V22: =U28 -> 0 | W22: =V28 -> 0
A23: ED_RAB3321_00002 | B23: DRAB0202 | C23: Inflation addition
A24: ED_RAB3321_00003 | B24: DRAB0203 | C24: Straight line depreciation
B25: DRAB0204 | C25: Regulatory depreciation | D25: =SUM(D24+D23) -> 0 | E25: 0 | F25: 0 | G25: 0 | H25: 0 | I25: 0 | K25: =SUM(K24+K23) -> 0 | L25: 0 | M25: 0 | N25: 0 | O25: 0 | P25: 0 | R25: =SUM(R24+R23) -> 0 | S25: 0 | T25: 0 | U25: 0 | V25: 0 | W25: 0
A26: ED_RAB3321_00005 | B26: DRAB0205 | C26: Actual additions (recognised in RAB)
A27: ED_RAB3321_00006 | B27: DRAB0206 | C27: Disposals
A28: ED_RAB3321_00007 | B28: DRAB0207 | C28: Closing value for overhead distribution asset value | D28: =SUM(D22+D23+D24+D26+D27) -> 0 | E28: 0 | F28: 0 | G28: 0 | H28: 0 | I28: 0 | K28: =SUM(K22+K23+K24+K26+K27) -> 0 | L28: 0 | M28: 0 | N28: 0 | O28: 0 | P28: 0 | R28: =SUM(R22+R23+R24+R26+R27) -> 0 | S28: 0 | T28: 0 | U28: 0 | V28: 0 | W28: 0
C29: For underground network assets less than 33kV:
A30: ED_RAB3322_00001 | B30: DRAB0301 | C30: Opening value | E30: =D36 -> 0 | F30: =E36 -> 0 | G30: =F36 -> 0 | H30: =G36 -> 0 | I30: =H36 -> 0 | L30: =K36 -> 0 | M30: =L36 -> 0 | N30: =M36 -> 0 | O30: =N36 -> 0 | P30: =O36 -> 0 | S30: =R36 -> 0 | T30: =S36 -> 0 | U30: =T36 -> 0 | V30: =U36 -> 0 | W30: =V36 -> 0
A31: ED_RAB3322_00002 | B31: DRAB0302 | C31: Inflation addition
A32: ED_RAB3322_00003 | B32: DRAB0303 | C32: Straight line depreciation
B33: DRAB0304 | C33: Regulatory depreciation | D33: =SUM(D32+D31) -> 0 | E33: 0 | F33: 0 | G33: 0 | H33: 0 | I33: 0 | K33: =SUM(K32+K31) -> 0 | L33: 0 | M33: 0 | N33: 0 | O33: 0 | P33: 0 | R33: =SUM(R32+R31) -> 0 | S33: 0 | T33: 0 | U33: 0 | V33: 0 | W33: 0
A34: ED_RAB3322_00005 | B34: DRAB0305 | C34: Actual additions (recognised in RAB)
A35: ED_RAB3322_00006 | B35: DRAB0306 | C35: Disposals
A36: ED_RAB3322_00007 | B36: DRAB0307 | C36: Closing value for underground asset value | D36: =SUM(D30+D31+D32+D34+D35) -> 0 | E36: 0 | F36: 0 | G36: 0 | H36: 0 | I36: 0 | K36: =SUM(K30+K31+K32+K34+K35) -> 0 | L36: 0 | M36: 0 | N36: 0 | O36: 0 | P36: 0 | R36: =SUM(R30+R31+R32+R34+R35) -> 0 | S36: 0 | T36: 0 | U36: 0 | V36: 0 | W36: 0
C37: For distribution substations and transformers:
A38: ED_RAB3323_00001 | B38: DRAB0401 | C38: Opening value | E38: =D44 -> 0 | F38: =E44 -> 0 | G38: =F44 -> 0 | H38: =G44 -> 0 | I38: =H44 -> 0 | L38: =K44 -> 0 | M38: =L44 -> 0 | N38: =M44 -> 0 | O38: =N44 -> 0 | P38: =O44 -> 0 | S38: =R44 -> 0 | T38: =S44 -> 0 | U38: =T44 -> 0 | V38: =U44 -> 0 | W38: =V44 -> 0
A39: ED_RAB3323_00002 | B39: DRAB0402 | C39: Inflation addition
A40: ED_RAB3323_00003 | B40: DRAB0403 | C40: Straight line depreciation
B41: DRAB0404 | C41: Regulatory depreciation | D41: =SUM(D40+D39) -> 0 | E41: 0 | F41: 0 | G41: 0 | H41: 0 | I41: 0 | K41: =SUM(K40+K39) -> 0 | L41: 0 | M41: 0 | N41: 0 | O41: 0 | P41: 0 | R41: =SUM(R40+R39) -> 0 | S41: 0 | T41: 0 | U41: 0 | V41: 0 | W41: 0
A42: ED_RAB3323_00005 | B42: DRAB0405 | C42: Actual additions (recognised in RAB)
A43: ED_RAB3323_00006 | B43: DRAB0406 | C43: Disposals
A44: ED_RAB3323_00007 | B44: DRAB0407 | C44: Closing value for distribution substations and transformers asset value | D44: =SUM(D38+D39+D40+D42+D43) -> 0 | E44: 0 | F44: 0 | G44: 0 | H44: 0 | I44: 0 | K44: =SUM(K38+K39+K40+K42+K43) -> 0 | L44: 0 | M44: 0 | N44: 0 | O44: 0 | P44: 0 | R44: =SUM(R38+R39+R40+R42+R43) -> 0 | S44: 0 | T44: 0 | U44: 0 | V44: 0 | W44: 0
C45: For overhead network assets 33kV and above:
A46: ED_RAB3324_00001 | B46: DRAB0501 | C46: Opening value | E46: =D52 -> 0 | F46: =E52 -> 0 | G46: =F52 -> 0 | H46: =G52 -> 0 | I46: =H52 -> 0 | L46: =K52 -> 0 | M46: =L52 -> 0 | N46: =M52 -> 0 | O46: =N52 -> 0 | P46: =O52 -> 0 | S46: =R52 -> 0 | T46: =S52 -> 0 | U46: =T52 -> 0 | V46: =U52 -> 0 | W46: =V52 -> 0
A47: ED_RAB3324_00002 | B47: DRAB0502 | C47: Inflation addition
A48: ED_RAB3324_00003 | B48: DRAB0503 | C48: Straight line depreciation
B49: DRAB0504 | C49: Regulatory depreciation | D49: =SUM(D48+D47) -> 0 | E49: 0 | F49: 0 | G49: 0 | H49: 0 | I49: 0 | K49: =SUM(K48+K47) -> 0 | L49: 0 | M49: 0 | N49: 0 | O49: 0 | P49: 0 | R49: =SUM(R48+R47) -> 0 | S49: 0 | T49: 0 | U49: 0 | V49: 0 | W49: 0
A50: ED_RAB3324_00005 | B50: DRAB0505 | C50: Actual additions (recognised in RAB)
A51: ED_RAB3324_00006 | B51: DRAB0506 | C51: Disposals
A52: ED_RAB3324_00007 | B52: DRAB0507 | C52: Closing value for overhead asset 33kV and above value | D52: =SUM(D46+D47+D48+D50+D51) -> 0 | E52: 0 | F52: 0 | G52: 0 | H52: 0 | I52: 0 | K52: =SUM(K46+K47+K48+K50+K51) -> 0 | L52: 0 | M52: 0 | N52: 0 | O52: 0 | P52: 0 | R52: =SUM(R46+R47+R48+R50+R51) -> 0 | S52: 0 | T52: 0 | U52: 0 | V52: 0 | W52: 0
C53: For underground network assets 33kV and above:
A54: ED_RAB3325_00001 | B54: DRAB0601 | C54: Opening value | E54: =D60 -> 0 | F54: =E60 -> 0 | G54: =F60 -> 0 | H54: =G60 -> 0 | I54: =H60 -> 0 | L54: =K60 -> 0 | M54: =L60 -> 0 | N54: =M60 -> 0 | O54: =N60 -> 0 | P54: =O60 -> 0 | S54: =R60 -> 0 | T54: =S60 -> 0 | U54: =T60 -> 0 | V54: =U60 -> 0 | W54: =V60 -> 0
A55: ED_RAB3325_00002 | B55: DRAB0602 | C55: Inflation addition
A56: ED_RAB3325_00003 | B56: DRAB0603 | C56: Straight line depreciation
B57: DRAB0604 | C57: Regulatory depreciation | D57: =SUM(D56+D55) -> 0 | E57: 0 | F57: 0 | G57: 0 | H57: 0 | I57: 0 | K57: =SUM(K56+K55) -> 0 | L57: 0 | M57: 0 | N57: 0 | O57: 0 | P57: 0 | R57: =SUM(R56+R55) -> 0 | S57: 0 | T57: 0 | U57: 0 | V57: 0 | W57: 0
A58: ED_RAB3325_00005 | B58: DRAB0605 | C58: Actual additions (recognised in RAB)
A59: ED_RAB3325_00006 | B59: DRAB0606 | C59: Disposals
A60: ED_RAB3325_00007 | B60: DRAB0607 | C60: Closing value for underground asset 33kV and above value | D60: =SUM(D54+D55+D56+D58+D59) -> 0 | E60: 0 | F60: 0 | G60: 0 | H60: 0 | I60: 0 | K60: =SUM(K54+K55+K56+K58+K59) -> 0 | L60: 0 | M60: 0 | N60: 0 | O60: 0 | P60: 0 | R60: =SUM(R54+R55+R56+R58+R59) -> 0 | S60: 0 | T60: 0 | U60: 0 | V60: 0 | W60: 0
C61: Zone substations and transformers
A62: ED_RAB3326_00001 | B62: DRAB0701 | C62: Opening value | E62: =D68 -> 0 | F62: =E68 -> 0 | G62: =F68 -> 0 | H62: =G68 -> 0 | I62: =H68 -> 0 | L62: =K68 -> 0 | M62: =L68 -> 0 | N62: =M68 -> 0 | O62: =N68 -> 0 | P62: =O68 -> 0 | S62: =R68 -> 0 | T62: =S68 -> 0 | U62: =T68 -> 0 | V62: =U68 -> 0 | W62: =V68 -> 0
A63: ED_RAB3326_00002 | B63: DRAB0702 | C63: Inflation addition
A64: ED_RAB3326_00003 | B64: DRAB0703 | C64: Straight line depreciation
B65: DRAB0704 | C65: Regulatory depreciation | D65: =SUM(D64+D63) -> 0 | E65: 0 | F65: 0 | G65: 0 | H65: 0 | I65: 0 | K65: =SUM(K64+K63) -> 0 | L65: 0 | M65: 0 | N65: 0 | O65: 0 | P65: 0 | R65: =SUM(R64+R63) -> 0 | S65: 0 | T65: 0 | U65: 0 | V65: 0 | W65: 0
A66: ED_RAB3326_00005 | B66: DRAB0705 | C66: Actual additions (recognised in RAB)
A67: ED_RAB3326_00006 | B67: DRAB0706 | C67: Disposals
A68: ED_RAB3326_00007 | B68: DRAB0707 | C68: Closing value for zone substations and transformers | D68: =SUM(D62+D63+D64+D66+D67) -> 0 | E68: 0 | F68: 0 | G68: 0 | H68: 0 | I68: 0 | K68: =SUM(K62+K63+K64+K66+K67) -> 0 | L68: 0 | M68: 0 | N68: 0 | O68: 0 | P68: 0 | R68: =SUM(R62+R63+R64+R66+R67) -> 0 | S68: 0 | T68: 0 | U68: 0 | V68: 0 | W68: 0
C69: For easements:
A70: ED_RAB3327_00001 | B70: DRAB0801 | C70: Opening value | E70: =D74 -> 0 | F70: =E74 -> 0 | G70: =F74 -> 0 | H70: =G74 -> 0 | I70: =H74 -> 0 | L70: =K74 -> 0 | M70: =L74 -> 0 | N70: =M74 -> 0 | O70: =N74 -> 0 | P70: =O74 -> 0 | S70: =R74 -> 0 | T70: =S74 -> 0 | U70: =T74 -> 0 | V70: =U74 -> 0 | W70: =V74 -> 0
A71: ED_RAB3327_00002 | B71: DRAB0802 | C71: Inflation addition
A72: ED_RAB3327_00003 | B72: DRAB0803 | C72: Actual additions (recognised in RAB)
A73: ED_RAB3327_00004 | B73: DRAB0804 | C73: Disposals
A74: ED_RAB3327_00005 | B74: DRAB0805 | C74: Closing value for easements asset value | D74: =SUM(D70+D71+D72+D73) -> 0 | E74: =SUM(E70+E71+E72+E73) -> 0 | F74: 0 | G74: 0 | H74: 0 | I74: 0 | K74: =SUM(K70+K71+K72+K73) -> 0 | L74: =SUM(L70+L71+L72+L73) -> 0 | M74: 0 | N74: 0 | O74: 0 | P74: 0 | R74: =SUM(R70+R71+R72+R73) -> 0 | S74: =SUM(S70+S71+S72+S73) -> 0 | T74: 0 | U74: 0 | V74: 0 | W74: 0
C75: For meters:
A76: ED_RAB3328_00001 | B76: DRAB0901 | C76: Opening value | E76: =D82 -> 0 | F76: =E82 -> 0 | G76: =F82 -> 0 | H76: =G82 -> 0 | I76: =H82 -> 0 | L76: =K82 -> 0 | M76: =L82 -> 0 | N76: =M82 -> 0 | O76: =N82 -> 0 | P76: =O82 -> 0 | S76: =R82 -> 0 | T76: =S82 -> 0 | U76: =T82 -> 0 | V76: =U82 -> 0 | W76: =V82 -> 0
A77: ED_RAB3328_00002 | B77: DRAB0902 | C77: Inflation addition
A78: ED_RAB3328_00003 | B78: DRAB0903 | C78: Straight line depreciation
B79: DRAB0904 | C79: Regulatory depreciation | D79: =SUM(D78+D77) -> 0 | E79: 0 | F79: 0 | G79: 0 | H79: 0 | I79: 0 | K79: =SUM(K78+K77) -> 0 | L79: 0 | M79: 0 | N79: 0 | O79: 0 | P79: 0 | R79: =SUM(R78+R77) -> 0 | S79: 0 | T79: 0 | U79: 0 | V79: 0 | W79: 0
A80: ED_RAB3328_00005 | B80: DRAB0905 | C80: Actual additions (recognised in RAB)
A81: ED_RAB3328_00006 | B81: DRAB0906 | C81: Disposals
A82: ED_RAB3328_00007 | B82: DRAB0907 | C82: Closing value for meters asset value | D82: =SUM(D76+D77+D78+D80+D81) -> 0 | E82: 0 | F82: 0 | G82: 0 | H82: 0 | I82: 0 | K82: =SUM(K76+K77+K78+K80+K81) -> 0 | L82: 0 | M82: 0 | N82: 0 | O82: 0 | P82: 0 | R82: =SUM(R76+R77+R78+R80+R81) -> 0 | S82: 0 | T82: 0 | U82: 0 | V82: 0 | W82: 0
C83: For “other” asset items with long lives:
A84: ED_RAB3329_00001 | B84: DRAB1001 | C84: Opening value | E84: =D90 -> 0 | F84: =E90 -> 0 | G84: =F90 -> 0 | H84: =G90 -> 0 | I84: =H90 -> 0 | L84: =K90 -> 0 | M84: =L90 -> 0 | N84: =M90 -> 0 | O84: =N90 -> 0 | P84: =O90 -> 0 | S84: =R90 -> 0 | T84: =S90 -> 0 | U84: =T90 -> 0 | V84: =U90 -> 0 | W84: =V90 -> 0
A85: ED_RAB3329_00002 | B85: DRAB1002 | C85: Inflation addition
A86: ED_RAB3329_00003 | B86: DRAB1003 | C86: Straight line depreciation
B87: DRAB1004 | C87: Regulatory depreciation | D87: =SUM(D86+D85) -> 0 | E87: 0 | F87: 0 | G87: 0 | H87: 0 | I87: 0 | K87: =SUM(K86+K85) -> 0 | L87: 0 | M87: 0 | N87: 0 | O87: 0 | P87: 0 | R87: =SUM(R86+R85) -> 0 | S87: 0 | T87: 0 | U87: 0 | V87: 0 | W87: 0
A88: ED_RAB3329_00005 | B88: DRAB1005 | C88: Actual additions (recognised in RAB)
A89: ED_RAB3329_00006 | B89: DRAB1006 | C89: Disposals
A90: ED_RAB3329_00007 | B90: DRAB1007 | C90: Closing value for “other” asset (long life) value | D90: =SUM(D84+D85+D86+D88+D89) -> 0 | E90: 0 | F90: 0 | G90: 0 | H90: 0 | I90: 0 | K90: =SUM(K84+K85+K86+K88+K89) -> 0 | L90: 0 | M90: 0 | N90: 0 | O90: 0 | P90: 0 | R90: =SUM(R84+R85+R86+R88+R89) -> 0 | S90: 0 | T90: 0 | U90: 0 | V90: 0 | W90: 0
C91: For “other” asset items with short lives:
A92: ED_RAB33210_00001 | B92: DRAB1101 | C92: Opening value | E92: =D98 -> 0 | F92: =E98 -> 0 | G92: =F98 -> 0 | H92: =G98 -> 0 | I92: =H98 -> 0 | L92: =K98 -> 0 | M92: =L98 -> 0 | N92: =M98 -> 0 | O92: =N98 -> 0 | P92: =O98 -> 0 | S92: =R98 -> 0 | T92: =S98 -> 0 | U92: =T98 -> 0 | V92: =U98 -> 0 | W92: =V98 -> 0
A93: ED_RAB33210_00002 | B93: DRAB1102 | C93: Inflation addition
A94: ED_RAB33210_00003 | B94: DRAB1103 | C94: Straight line depreciation
B95: DRAB1104 | C95: Regulatory depreciation | D95: =SUM(D94+D93) -> 0 | E95: 0 | F95: 0 | G95: 0 | H95: 0 | I95: 0 | K95: =SUM(K94+K93) -> 0 | L95: 0 | M95: 0 | N95: 0 | O95: 0 | P95: 0 | R95: =SUM(R94+R93) -> 0 | S95: 0 | T95: 0 | U95: 0 | V95: 0 | W95: 0
A96: ED_RAB33210_00005 | B96: DRAB1105 | C96: Actual additions (recognised in RAB)
A97: ED_RAB33210_00006 | B97: DRAB1106 | C97: Disposals
A98: ED_RAB33210_00007 | B98: DRAB1107 | C98: Closing value for “other” asset (short life) value | D98: =SUM(D92+D93+D94+D96+D97) -> 0 | E98: 0 | F98: 0 | G98: 0 | H98: 0 | I98: 0 | K98: =SUM(K92+K93+K94+K96+K97) -> 0 | L98: 0 | M98: 0 | N98: 0 | O98: 0 | P98: 0 | R98: =SUM(R92+R93+R94+R96+R97) -> 0 | S98: 0 | T98: 0 | U98: 0 | V98: 0 | W98: 0
C100: TABE 3.3.3 TOTAL DISAGGREGATED RAB ASSET VALUES
A101: ED_RAB333_00001 | B101: DRAB1201 | C101: Distribution substations including transformers
A102: ED_RAB333_00002 | B102: DRAB1202 | C102: Underground distribution assets (cables, ducts etc)
A103: ED_RAB333_00003 | B103: DRAB1203 | C103: Distribution substations including transformers
A104: ED_RAB333_00004 | B104: DRAB1204 | C104: Overhead assets 33kV and above (wires and towers / poles etc)
A105: ED_RAB333_00005 | B105: DRAB1205 | C105: Underground assets 33kV and above (cables, ducts etc)
A106: ED_RAB333_00006 | B106: DRAB1206 | C106: Zone substations
A107: ED_RAB333_00007 | B107: DRAB1207 | C107: Easements
A108: ED_RAB333_00008 | B108: DRAB1208 | C108: Meters
A109: ED_RAB333_00009 | B109: DRAB1209 | C109: Other assets with long lives (please specify)
A110: ED_RAB333_00010 | B110: DRAB1210 | C110: Other assets with short lives (please specify)
C112: Capital Contributions
A113: ED_RAB333_00011 | B113: DRAB13 | C113: Value of Capital Contributions or Contributed Assets
C115: TABLE 3.3.4 - ASSET LIVES | D115: Forecast ( years ) | K115: Forecast ( years ) | R115: Forecast ( years )
C116: Table 3.3.4.1 - Asset Lives – estimated service life of new assets | D116: =CRCP_y5 -> 2015 | E116: =FRCP -> 2016 | F116: 2017 | G116: 2018 | H116: 2019 | I116: 2020 | K116: =CRCP_y5 -> 2015 | L116: =FRCP -> 2016 | M116: 2017 | N116: 2018 | O116: 2019 | P116: 2020 | R116: =CRCP_y5 -> 2015 | S116: =FRCP -> 2016 | T116: 2017 | U116: 2018 | V116: 2019 | W116: 2020
A117: ED_RAB3341_00001 | B117: DRAB1401 | C117: Overhead network assets less than 33kV (wires and poles)
A118: ED_RAB3341_00002 | B118: DRAB1402 | C118: Underground network assets less than 33kV (cables)
A119: ED_RAB3341_00003 | B119: DRAB1403 | C119: Distribution substations including transformers
A120: ED_RAB3341_00004 | B120: DRAB1404 | C120: Overhead network assets 33kV and above (wires and towers / poles etc)
A121: ED_RAB3341_00005 | B121: DRAB1405 | C121: Underground network assets 33kV and above(cables, ducts etc)
A122: ED_RAB3341_00006 | B122: DRAB1406 | C122: Zone substations and transformers
A123: ED_RAB3341_00007 | B123: DRAB1407 | C123: Meters
A124: ED_RAB3341_00008 | B124: DRAB1408 | C124: “Other” assets with long lives
A125: ED_RAB3341_00009 | B125: DRAB1409 | C125: “Other” assets with short lives
C127: Table 3.3.4.2 - Asset Lives – estimated residual service life
A128: ED_RAB3342_00001 | B128: DRAB1501 | C128: Overhead network assets less than 33kV (wires and poles)
A129: ED_RAB3342_00002 | B129: DRAB1502 | C129: Underground network assets less than 33kV (cables)
A130: ED_RAB3342_00003 | B130: DRAB1503 | C130: Distribution substations including transformers
A131: ED_RAB3342_00004 | B131: DRAB1504 | C131: Overhead network assets 33kV and above (wires and towers / poles etc)
A132: ED_RAB3342_00005 | B132: DRAB1505 | C132: Underground network assets 33kV and above (cables, ducts etc)
A133: ED_RAB3342_00006 | B133: DRAB1506 | C133: Zone substations and transformers
A134: ED_RAB3342_00007 | B134: DRAB1507 | C134: Meters
A135: ED_RAB3342_00008 | B135: DRAB1508 | C135: “Other” assets with long lives
A136: ED_RAB3342_00009 | B136: DRAB1509 | C136: “Other” assets with short lives

Sheet 3.4 Operational data
C1: =SheetHeader -> REGULATORY REPORTING STATEMENT
C2: =dms_TradingName -> Victorian DNSP Reset
C3: =FRCP_span -> 2016 to 2020
C4: 3.4 OPERATIONAL DATA
E6: Standard control services
D7: Unit of measure | E7: Forecast
E8: =CRCP_y5 -> 2015 | F8: =FRCP -> 2016 | G8: 2017 | H8: 2018 | I8: 2019 | J8: 2020
C10: TABLE 3.4.1 - ENERGY DELIVERY
A11: ED_OPD3410_00001 | B11: DOPED01 | C11: Total energy delivered | D11: GWh
C14: Table 3.4.1.1 Energy grouping - delivery by chargeable quantity
A15: ED_OPD3411_00001 | B15: DOPED0201 | C15: Energy Delivery where time of use is not a determinant | D15: GWh
A16: ED_OPD3411_00002 | B16: DOPED0202 | C16: Energy Delivery at On-peak times | D16: GWh
A17: ED_OPD3411_00003 | B17: DOPED0203 | C17: Energy Delivery at Shoulder times | D17: GWh
A18: ED_OPD3411_00004 | B18: DOPED0204 | C18: Energy Delivery at Off-peak times | D18: GWh
A19: ED_OPD3411_00005 | B19: DOPED0205 | C19: Controlled load energy deliveries | D19: GWh
A20: ED_OPD3411_00006 | B20: DOPED0206 | C20: Energy Delivery to unmetered supplies | D20: GWh
C22: Table 3.4.1.2 Energy - received from TNSP and other DNSPs by time of receipt
A23: ED_OPD3412_00001 | B23: DOPED0301 | C23: Energy into DNSP network at On-peak times | D23: GWh
A24: ED_OPD3412_00002 | B24: DOPED0302 | C24: Energy into DNSP network at Shoulder times | D24: GWh
A25: ED_OPD3412_00003 | B25: DOPED0303 | C25: Energy into DNSP network at Off-peak times | D25: GWh
A26: ED_OPD3412_00004 | B26: DOPED0304 | C26: Energy received from TNSP and other DNSPs not included in the above categories | D26: GWh
C28: Table 3.4.1.3 Energy - received into DNSP system from embedded generation by time of receipt
A29: ED_OPD3413_00001 | B29: DOPED0401 | C29: Energy into DNSP network at On-peak times from non-residential embedded generation | D29: GWh
A30: ED_OPD3413_00002 | B30: DOPED0402 | C30: Energy into DNSP network at Shoulder times from non-residential embedded generation | D30: GWh
A31: ED_OPD3413_00003 | B31: DOPED0403 | C31: Energy into DNSP network at Off-peak times from non-residential embedded generation | D31: GWh
A32: ED_OPD3413_00004 | B32: DOPED0404 | C32: Energy received from embedded generation not included in above categories from non-residential embedded generation | D32: GWh
A33: ED_OPD3413_00005 | B33: DOPED0405 | C33: Energy into DNSP network at On-peak times from residential embedded generation | D33: GWh
A34: ED_OPD3413_00006 | B34: DOPED0406 | C34: Energy into DNSP network at Shoulder times from residential embedded generation | D34: GWh
A35: ED_OPD3413_00007 | B35: DOPED0407 | C35: Energy into DNSP network at Off-peak times from residential embedded generation | D35: GWh
A36: ED_OPD3413_00008 | B36: DOPED0408 | C36: Energy received from embedded generation not included in above categories from residential embedded generation | D36: GWh
C38: Table 3.4.1.4 Energy grouping - customer type or class
A39: ED_OPD3414_00001 | B39: DOPED0501 | C39: Residential customers energy deliveries | D39: GWh
A40: ED_OPD3414_00002 | B40: DOPED0502 | C40: Non residential customers not on demand tariffs energy deliveries | D40: GWh
A41: ED_OPD3414_00003 | B41: DOPED0503 | C41: Non-residential low voltage demand tariff customers energy deliveries | D41: GWh
A42: ED_OPD3414_00004 | B42: DOPED0504 | C42: Non-residential high voltage demand tariff customers energy deliveries | D42: GWh
A43: ED_OPD3414_00005 | B43: DOPED0505 | C43: Other Customer Class Energy Deliveries | D43: GWh
C45: TABLE 3.4.2 - CUSTOMER NUMBERS
C46: Table 3.4.2.1 Distribution customer numbers by customer type or class
A47: ED_OPD3421_00001 | B47: DOPCN0101 | C47: Residential customer numbers | D47: number
A48: ED_OPD3421_00002 | B48: DOPCN0102 | C48: Non residential customers not on demand tariff customer numbers | D48: number
A49: ED_OPD3421_00003 | B49: DOPCN0103 | C49: Low voltage demand tariff customer numbers | D49: number
A50: ED_OPD3421_00004 | B50: DOPCN0104 | C50: High voltage demand tariff customer numbers | D50: number
A51: ED_OPD3421_00005 | B51: DOPCN0105 | C51: Unmetered Customer Numbers | D51: number
A52: ED_OPD3421_00006 | B52: DOPCN0106 | C52: Other Customer Numbers | D52: number
B53: DOPCN01 | C53: Total customer numbers | D53: number
C55: Table 3.4.2.2 Distribution customer numbers by location on the network
A56: ED_OPD3422_00001 | B56: DOPCN0201 | C56: Customers on CBD network | D56: number
A57: ED_OPD3422_00002 | B57: DOPCN0202 | C57: Customers on Urban network | D57: number
A58: ED_OPD3422_00003 | B58: DOPCN0203 | C58: Customers on Short rural network | D58: number
A59: ED_OPD3422_00004 | B59: DOPCN0204 | C59: Customers on Long rural network | D59: number
B60: DOPCN02 | C60: Total customer numbers | D60: number
C62: Table 3.4.2.3 Distribution customer numbers by Aurora Feeder categories
A63: ED_OPD3423_00001 | C63: Critical Infrastructure | D63: number
A64: ED_OPD3423_00002 | C64: High Density Commercial | D64: number
A65: ED_OPD3423_00003 | C65: Urban | D65: number
A66: ED_OPD3423_00004 | C66: High Density Rural | D66: number
A67: ED_OPD3423_00005 | C67: Low Density Rural | D67: number
A68: ED_OPD3423_99999 | C68: Total customer numbers | D68: number
C70: Table 3.4.2.4 Unmetered Supply
A71: ED_OPD3424_00001 | C71: Number of unmetered connections reported in customer numbers in the economic benchmarking RIN | D71: number
A72: ED_OPD3424_00002 | C72: Unmetered connections not reported in customer numbers in the economic benchmarking RIN | D72: number
A73: ED_OPD3424_99999 | C73: Total unmetered connections | D73: number
C75: TABLE 3.4.3 - SYSTEM DEMAND
C76: Table 3.4.3.1 Annual system maximum demand characteristics at the zone substation level – MW measure
A77: ED_OPD3431_00002 | B77: DOPSD0102 | C77: Non–coincident Summated Weather Adjusted System Annual Maximum Demand 10% POE | D77: MW
A78: ED_OPD3431_00003 | B78: DOPSD0103 | C78: Non–coincident Summated Weather Adjusted System Annual Maximum Demand 50% POE | D78: MW
A79: ED_OPD3431_00005 | B79: DOPSD0105 | C79: Coincident Weather Adjusted System Annual Maximum Demand 10% POE | D79: MW
A80: ED_OPD3431_00006 | B80: DOPSD0106 | C80: Coincident Weather Adjusted System Annual Maximum Demand 50% POE | D80: MW
C82: Table 3.4.3.2 Annual system maximum demand characteristics at the transmission connection point – MW measure
A83: ED_OPD3432_00002 | B83: DOPSD0108 | C83: Non–coincident Summated Weather Adjusted System Annual Maximum Demand 10% POE | D83: MW
A84: ED_OPD3432_00003 | B84: DOPSD0109 | C84: Non–coincident Summated Weather Adjusted System Annual Maximum Demand 50% POE | D84: MW
A85: ED_OPD3432_00005 | B85: DOPSD0111 | C85: Coincident Weather Adjusted System Annual Maximum Demand 10% POE | D85: MW
A86: ED_OPD3432_00006 | B86: DOPSD0112 | C86: Coincident Weather Adjusted System Annual Maximum Demand 50% POE | D86: MW
C88: Table 3.4.3.3 Annual system maximum demand characteristics at the zone substation level – MVA measure
A89: ED_OPD3433_00002 | B89: DOPSD0202 | C89: Non–coincident Summated Weather Adjusted System Annual Maximum Demand 10% POE | D89: MVA
A90: ED_OPD3433_00003 | B90: DOPSD0203 | C90: Non–coincident Summated Weather Adjusted System Annual Maximum Demand 50% POE | D90: MVA
A91: ED_OPD3433_00005 | B91: DOPSD0205 | C91: Coincident Weather Adjusted System Annual Maximum Demand 10% POE | D91: MVA
A92: ED_OPD3433_00006 | B92: DOPSD0206 | C92: Coincident Weather Adjusted System Annual Maximum Demand 50% POE | D92: MVA
C94: Table 3.4.3.4 Annual system maximum demand characteristics at the transmission connection point – MVA measure
A95: ED_OPD3434_00002 | B95: DOPSD0208 | C95: Non–coincident Summated Weather Adjusted System Annual Maximum Demand 10% POE | D95: MVA
A96: ED_OPD3434_00003 | B96: DOPSD0209 | C96: Non–coincident Summated Weather Adjusted System Annual Maximum Demand 50% POE | D96: MVA
A97: ED_OPD3434_00005 | B97: DOPSD0211 | C97: Coincident Weather Adjusted System Annual Maximum Demand 10% POE | D97: MVA
A98: ED_OPD3434_00006 | B98: DOPSD0212 | C98: Coincident Weather Adjusted System Annual Maximum Demand 50% POE | D98: MVA
C100: Table 3.4.3.5 Power factor conversion between MVA and MW
A101: ED_OPD3435_00001 | B101: DOPSD0301 | C101: Average overall network power factor conversion between MVA and MW | D101: Factor
A102: ED_OPD3435_00002 | B102: DOPSD0302 | C102: Average power factor conversion for low voltage distribution lines | D102: Factor
A103: ED_OPD3435_00003 | B103: DOPSD0303 | C103: Average power factor conversion for 3.3 kV lines | D103: Factor
A104: ED_OPD3435_00004 | B104: DOPSD0304 | C104: Average power factor conversion for 6.6 kV lines | D104: Factor
A105: ED_OPD3435_00005 | B105: DOPSD0305 | C105: Average power factor conversion for 7.6 kV lines | D105: Factor
A106: ED_OPD3435_00006 | B106: DOPSD0306 | C106: Average power factor conversion for 11 kV lines | D106: Factor
A107: ED_OPD3435_00007 | B107: DOPSD0307 | C107: Average power factor conversion for SWER lines | D107: Factor
A108: ED_OPD3435_00008 | B108: DOPSD0308 | C108: Average power factor conversion for 22 kV lines | D108: Factor
A109: ED_OPD3435_00009 | B109: DOPSD0309 | C109: Average power factor conversion for 33 kV lines | D109: Factor
A110: ED_OPD3435_00010 | B110: DOPSD0310 | C110: Average power factor conversion for 44 kV lines | D110: Factor
A111: ED_OPD3435_00011 | B111: DOPSD0311 | C111: Average power factor conversion for 66 kV lines | D111: Factor
A112: ED_OPD3435_00012 | B112: DOPSD0312 | C112: Average power factor conversion for 110 kV lines | D112: Factor
A113: ED_OPD3435_00013 | B113: DOPSD0313 | C113: Average power factor conversion for 132 kV lines | D113: Factor
A114: ED_OPD3435_00013 | B114: DOPSD0314 | C114: Average power factor conversion for 220 kV lines | D114: Factor
C116: Table 3.4.3.6 Demand supplied (for customers charged on this basis) – MW measure
A117: ED_OPD3436_00001 | B117: DOPSD0401 | C117: Summated Chargeable Contracted Maximum Demand | D117: MW
A118: ED_OPD3436_00002 | B118: DOPSD0402 | C118: Summated Chargeable Measured Maximum Demand | D118: MW
C119: Table 3.4.3.7 Demand supplied (for customers charged on this basis) – MVA measure
A120: ED_OPD3437_00001 | B120: DOPSD0403 | C120: Summated Chargeable Contracted Maximum Demand | D120: MVA
A121: ED_OPD3437_00002 | B121: DOPSD0404 | C121: Summated Chargeable Measured Maximum Demand | D121: MVA

Sheet 3.5 Physical assets
C1: =SheetHeader -> REGULATORY REPORTING STATEMENT
C2: =dms_TradingName -> Victorian DNSP Reset
C3: =FRCP_span -> 2016 to 2020
C4: 3.5 PHYSICAL ASSETS DATA
D7: Unit of measure | E7: Forecast
E8: =CRCP_y5 -> 2015 | F8: =FRCP -> 2016 | G8: 2017 | H8: 2018 | I8: 2019 | J8: 2020
C10: TABLE 3.5.1 - NETWORK CAPACITIES VARIABLES
C11: Circuit length
C12: Table 3.5.1.1 Overhead network length of circuit at each voltage
A13: ED_PHA3511_00001 | B13: DPA0101 | C13: Overhead low voltage distribution | D13: km
A14: ED_PHA3511_00002 | B14: DPA0102 | C14: Overhead 2.2 kV | D14: km
A15: ED_PHA3511_00003 | B15: DPA0103 | C15: Overhead 7.6 kV | D15: km
A16: ED_PHA3511_00004 | B16: DPA0104 | C16: Overhead 11 kV | D16: km
A17: ED_PHA3511_00005 | B17: DPA0105 | C17: Overhead SWER | D17: km
A18: ED_PHA3511_00006 | B18: DPA0106 | C18: Overhead 22 kV | D18: km
A19: ED_PHA3511_00007 | B19: DPA0107 | C19: Overhead 33 kV | D19: km
A20: ED_PHA3511_00008 | B20: DPA0108 | C20: Overhead 44 kV | D20: km
A21: ED_PHA3511_00009 | B21: DPA0109 | C21: Overhead 66 kV | D21: km
A22: ED_PHA3511_00010 | B22: DPA0110 | C22: Overhead 132 kV | D22: km
A23: ED_PHA3511_00011 | B23: DPA0111 | C23: Overhead 6.6kv | D23: km
A24: ED_PHA3511_00012 | B24: DPA0112 | C24: Overhead 110kV | D24: km
A25: ED_PHA3511_00013 | B25: DPA0113 | C25: Overhead 220kV | D25: km
A26: ED_PHA3511_00014 | B26: DPA0114 | C26: Other | D26: km
B27: DPA01 | C27: Total overhead circuit km | D27: km | E27: =SUM(E13:E26) -> 0 | F27: 0 | G27: 0 | H27: 0 | I27: 0 | J27: 0
C29: Table 3.5.1.2 Underground network circuit length at each voltage
A30: ED_PHA3512_00001 | B30: DPA0201 | C30: Underground low voltage distribution | D30: km
A31: ED_PHA3512_00002 | B31: DPA0202 | C31: Underground 5 kV | D31: km
A32: ED_PHA3512_00003 | B32: DPA0203 | C32: Underground 6.6 Kv | D32: km
A33: ED_PHA3512_00004 | B33: DPA0204 | C33: Underground 7.6 kV | D33: km
A34: ED_PHA3512_00005 | B34: DPA0205 | C34: Underground 11 kV | D34: km
A35: ED_PHA3512_00006 | B35: DPA0206 | C35: Underground SWER | D35: km
A36: ED_PHA3512_00007 | B36: DPA0207 | C36: Underground 22 kV | D36: km
A37: ED_PHA3512_00008 | B37: DPA0208 | C37: Underground 33 kV | D37: km
A38: ED_PHA3512_00009 | B38: DPA0209 | C38: Underground 66 kV | D38: km
A39: ED_PHA3512_00010 | B39: DPA0210 | C39: Underground 110 kV | D39: km
A40: ED_PHA3512_00010 | B40: DPA0211 | C40: Underground 132 kV | D40: km
A41: ED_PHA3512_00011 | B41: DPA0212 | C41: Other | D41: km
B42: DPA02 | C42: Total underground circuit km | D42: km | E42: =SUM(E30:E41) -> 0 | F42: 0 | G42: 0 | H42: 0 | I42: 0 | J42: 0
C44: Circuit Capacity MVA
C45: Table 3.5.1.3 Estimated overhead network weighted average MVA capacity by voltage class
A46: ED_PHA3513_00001 | B46: DPA0301 | C46: Overhead low voltage distribution | D46: MVA
A47: ED_PHA3513_00002 | B47: DPA0302 | C47: Overhead 6.6 kV | D47: MVA
A48: ED_PHA3513_00003 | B48: DPA0303 | C48: Overhead 7.6 kV | D48: MVA
A49: ED_PHA3513_00004 | B49: DPA0304 | C49: Overhead 11 kV | D49: MVA
A50: ED_PHA3513_00005 | B50: DPA0305 | C50: Overhead SWER | D50: MVA
A51: ED_PHA3513_00006 | B51: DPA0306 | C51: Overhead 22 kV | D51: MVA
A52: ED_PHA3513_00007 | B52: DPA0307 | C52: Overhead 33 kV | D52: MVA
A53: ED_PHA3513_00008 | B53: DPA0308 | C53: Overhead 44 kV | D53: MVA
A54: ED_PHA3513_00009 | B54: DPA0309 | C54: Overhead 66 kV | D54: MVA
A55: ED_PHA3513_00010 | B55: DPA0310 | C55: Overhead 110 kV | D55: MVA
A56: ED_PHA3513_00011 | B56: DPA0311 | C56: Overhead 132 kV | D56: MVA
A57: ED_PHA3513_00012 | B57: DPA0312 | C57: Overhead 220 kV | D57: MVA
A58: ED_PHA3513_00013 | B58: DPA0313 | C58: Other | D58: MVA
C60: Table 3.5.1.4 Estimated underground network weighted average MVA capacity by voltage class
A61: ED_PHA3514_00001 | B61: DPA0401 | C61: Underground low voltage distribution | D61: MVA
A62: ED_PHA3514_00002 | B62: DPA0402 | C62: Underground 5 kV | D62: MVA
A63: ED_PHA3514_00003 | B63: DPA0403 | C63: Underground 6.6 kV | D63: MVA
A64: ED_PHA3514_00004 | B64: DPA0404 | C64: Underground 7.6 kV | D64: MVA
A65: ED_PHA3514_00005 | B65: DPA0405 | C65: Underground 11 kV | D65: MVA
A66: ED_PHA3514_00006 | B66: DPA0406 | C66: Underground SWER | D66: MVA
A67: ED_PHA3514_00007 | B67: DPA0407 | C67: Underground 12.7 kV | D67: MVA
A68: ED_PHA3514_00008 | B68: DPA0408 | C68: Underground 22 kV | D68: MVA
A69: ED_PHA3514_00009 | B69: DPA0409 | C69: Underground 33 kV | D69: MVA
A70: ED_PHA3514_00010 | B70: DPA0410 | C70: Underground 66 kV | D70: MVA
A71: ED_PHA3514_00011 | B71: DPA0411 | C71: Underground 110 kV | D71: MVA
A72: ED_PHA3514_00011 | B72: DPA0412 | C72: Underground 132 kV | D72: MVA
A73: ED_PHA3514_00012 | B73: DPA0413 | C73: Other | D73: MVA
C75: TABLE 3.5.2 - TRANSFORMER CAPACITIES VARIABLES
C76: Table 3.5.2.1 Distribution transformer total installed capacity
A77: ED_PHA3521_00001 | B77: DPA0501 | C77: Distribution transformer capacity owned by utility | D77: MVA
A78: ED_PHA3521_00002 | B78: DPA0502 | C78: Distribution transformer capacity owned by High Voltage Customers | D78: MVA
A79: ED_PHA3521_00003 | B79: DPA0503 | C79: Cold spare capacity included in DPA0501 | D79: MVA
C81: Table 3.5.2.2 Zone substation transformer capacity
A82: ED_PHA3522_00001 | B82: DPA0601 | C82: Total installed capacity for first step transformation where there are two steps to reach distribution voltage | D82: MVA
A83: ED_PHA3522_00002 | B83: DPA0602 | C83: Total installed capacity for second step transformation where there are two steps to reach distribution voltage | D83: MVA
A84: ED_PHA3522_00003 | B84: DPA0603 | C84: Total zone substation transformer capacity where there is only a single step transformation to reach distribution voltage | D84: MVA
A85: ED_PHA3522_00004 | B85: DPA0604 | C85: Total zone substation transformer capacity | D85: MVA
A86: ED_PHA3522_00005 | B86: DPA0605 | C86: Cold spare capacity of zone substation transformers included in DPA0604 | D86: MVA
C88: Table 3.5.2.3 Distribution - other transformer capacity
A89: ED_PHA3523_00001 | C89: Distribution other - transformer capacity owned by utility | D89: MVA
C91: TABLE 3.5.3 - PUBLIC LIGHTING
A92: ED_PHA353_00001 | B92: DPA0701 | C92: Public lighting luminaires | D92: 0's
A93: ED_PHA353_00002 | B93: DPA0702 | C93: Public lighting poles | D93: 0's

Sheet 3.6 Quality of service
C1: =SheetHeader -> REGULATORY REPORTING STATEMENT
C2: =dms_TradingName -> Victorian DNSP Reset
C3: =FRCP_span -> 2016 to 2020
C4: 3.6 QUALITY OF SERVICE DATA
D7: Unit of measure | E7: Forecast
E8: =CRCP_y5 -> 2015 | F8: =FRCP -> 2016 | G8: 2017 | H8: 2018 | I8: 2019 | J8: 2020
C10: TABLE 3.6.2 - ENERGY NOT SUPPLIED
A11: ED_QOS362_00001 | B11: DQS0201 | C11: Energy Not Supplied (planned) | D11: GWh
A12: ED_QOS362_00002 | B12: DQS0202 | C12: Energy Not Supplied (unplanned) | D12: GWh
B13: DQS02 | C13: Total | D13: GWh | E13: =SUM(E11:E12) -> 0 | F13: 0 | G13: 0 | H13: 0 | I13: 0 | J13: 0
C15: TABLE 3.6.3 - SYSTEM LOSSES
A16: ED_QOS363_00001 | B16: DQS03 | C16: System losses | D16: %
C18: TABLE 3.6.4 - CAPACITY UTILISATION
A19: ED_QOS364_00001 | C19: Overall utilisation | D19: %

Sheet 3.7 Operating Environment
C1: =SheetHeader -> REGULATORY REPORTING STATEMENT
C2: =dms_TradingName -> Victorian DNSP Reset
C3: =FRCP_span -> 2016 to 2020
C4: 3.7 OPERATING ENVIRONMENT FACTORS
D7: Unit of measure | E7: Forecast
E8: =CRCP_y5 -> 2015 | F8: =FRCP -> 2016 | G8: 2017 | H8: 2018 | I8: 2019 | J8: 2020
B10: DOEF01 | C10: TABLE 3.7.1 - DENSITY FACTORS
A11: ED_OEF371_00001 | B11: DOEF0101 | C11: Customer density | D11: Customer / km
A12: ED_OEF371_00002 | B12: DOEF0102 | C12: Energy density | D12: MWh/customer
A13: ED_OEF371_00003 | B13: DOEF0103 | C13: Demand density | D13: kVA / customer
B15: DOEF02 | C15: TABLE 3.7.2 - TERRAIN FACTORS
A16: ED_OEF372_00001 | B16: DOEF0201 | C16: Rural proportion | D16: %
A17: ED_OEF372_00002 | B17: DOEF0202 | C17: Urban and CBD vegetation maintenance spans | D17: 0's
A18: ED_OEF372_00003 | B18: DOEF0203 | C18: Rural vegetation maintenance spans | D18: 0's
A19: ED_OEF372_00004 | B19: DOEF0204 | C19: Total vegetation maintenance spans | D19: 0's
A20: ED_OEF372_00005 | B20: DOEF0205 | C20: Total number of spans | D20: 0's
A21: ED_OEF372_00006 | B21: DOEF0206 | C21: Average urban and CBD vegetation maintenance span cycle | D21: Years
A22: ED_OEF372_00007 | B22: DOEF0207 | C22: Average rural vegetation maintenance span cycle | D22: Years
A23: ED_OEF372_00008 | B23: DOEF0208 | C23: Average number of trees per urban and CBD vegetation maintenance span | D23: Trees
A24: ED_OEF372_00009 | B24: DOEF0209 | C24: Average number of trees per rural vegetation maintenance span | D24: Trees
A25: ED_OEF372_00010 | B25: DOEF0210 | C25: Average number of defects per urban and CBD vegetation maintenance span | D25: Defects
A26: ED_OEF372_00011 | B26: DOEF0211 | C26: Average number of defects per rural vegetation maintenance span | D26: Defects
A27: ED_OEF372_00012 | B27: DOEF0212 | C27: Tropical proportion | D27: Spans
A28: ED_OEF372_00013 | B28: DOEF0213 | C28: Standard vehicle access | D28: km
A29: ED_OEF372_00014 | B29: DOEF0214 | C29: Bushfire risk | D29: Spans
B31: DOEF03 | C31: TABLE 3.7.3 - SERVICE AREA FACTORS
A32: ED_OEF373_00001 | B32: DOEF0301 | C32: Route Line length | D32: km

Sheet 4.1 Public lighting
C1: =SheetHeader -> REGULATORY REPORTING STATEMENT
C2: =dms_TradingName -> Victorian DNSP Reset
C3: =FRCP_span -> 2016 to 2020
C4: 4.1 PUBLIC LIGHTING
C8: TABLE 4.1.2 - DESCRIPTOR METRICS ANNUALLY
C9: <<<GROUP-ROW>>>
E11: Unit of Measure | F11: VOLUMES & EXPENDITURE
A12: PUB412 | C12: SERVICE/SERVICE QUALITY | D12: DESCRIPTOR METRIC | F12: =CRCP_y5 -> 2015 | G12: =FRCP -> 2016 | H12: 2017 | I12: 2018 | J12: 2019 | K12: 2020
A13: ED_PUB412_00001 | C13: LIGHT INSTALLATION | D13: Number of lights installed | E13: 0's
A14: ED_PUB412_00002 | D14: Number of poles installed | E14: 0's
A15: ED_PUB412_00003 | D15: Total expenditure | E15: $0's
A16: ED_PUB412_00004 | C16: LIGHT REPLACEMENT | D16: Number of lights replaced | E16: 0's
A17: ED_PUB412_00005 | D17: Number of poles replaced | E17: 0's
A18: ED_PUB412_00006 | D18: Total expenditure | E18: $0's
A19: ED_PUB412_00007 | C19: LIGHT MAINTENANCE | D19: Number of lights maintained | E19: 0's
A20: ED_PUB412_00008 | D20: Number of poles maintained | E20: 0's
A21: ED_PUB412_00009 | D21: Total expenditure | E21: $0's
A22: ED_PUB412_00010 | C22: QUALITY OF SUPPLY | D22: Mean days to rectify/replace public lighting assets | E22: days
A23: ED_PUB412_00011 | D23: GSO breaches | E23: 0's
A24: ED_PUB412_00012 | D24: GSL payments | E24: $0's
A25: ED_PUB412_00013 | D25: Customer complaints | E25: 0's
C31: TABLE 4.1.3 - COST METRICS
C32: <<<GROUP-ROW>>>
F34: =CONCATENATE("AVERAGE UNIT COST ($0's, real ",dms_DollarReal, ")") -> AVERAGE UNIT COST ($0's, real December 2015)
A35: PUB413 | D35: LIGHT TYPE | F35: =CRCP_y5 -> 2015 | G35: =FRCP -> 2016 | H35: 2017 | I35: 2018 | J35: 2019 | K35: 2020
A36: ED_PUB413_00001 | C36: LIGHT INSTALLATION | D36: Mercury Vapour 80 watt
A37: ED_PUB413_00002 | D37: Sodium High Pressure 150 watt
A38: ED_PUB413_00003 | D38: Sodium High Pressure 250 watt
A39: ED_PUB413_00004 | D39: T5 (2X14W)
A40: ED_PUB413_00005 | D40: LED 18W
A41: ED_PUB413_00006
A42: ED_PUB413_00007
A43: ED_PUB413_00008
A44: ED_PUB413_00009
A45: ED_PUB413_00010
A46: ED_PUB413_00011
A47: ED_PUB413_00012
A48: ED_PUB413_00013
A49: ED_PUB413_00014
A50: ED_PUB413_00015
A51: ED_PUB413_00016
A52: ED_PUB413_00017
A53: ED_PUB413_00006
A54: ED_PUB413_00007
A55: ED_PUB413_00008
A56: ED_PUB413_00009
A57: ED_PUB413_00010
A58: ED_PUB413_00011
A59: ED_PUB413_00012
A60: ED_PUB413_00013
A61: ED_PUB413_00014
A62: ED_PUB413_00015
A63: ED_PUB413_00016
A64: ED_PUB413_00017
A65: ED_PUB413_00018
A66: ED_PUB413_00019
A67: ED_PUB413_00020
A68: ED_PUB413_00021
A69: ED_PUB413_00022
A70: ED_PUB413_00023
A71: ED_PUB413_00024
A72: ED_PUB413_00025
A73: ED_PUB413_00026
A74: ED_PUB413_00027
A75: ED_PUB413_00028
A76: ED_PUB413_00029 | C76: LIGHT REPLACEMENT | D76: Mercury Vapour 80 watt
A77: ED_PUB413_00030 | D77: Sodium High Pressure 150 watt
A78: ED_PUB413_00031 | D78: Sodium High Pressure 250 watt
A79: ED_PUB413_00032 | D79: T5 (2X14W)
A80: ED_PUB413_00033 | D80: LED18W
A81: ED_PUB413_00034
A82: ED_PUB413_00035
A83: ED_PUB413_00036
A84: ED_PUB413_00037
A85: ED_PUB413_00038
A86: ED_PUB413_00039
A87: ED_PUB413_00040
A88: ED_PUB413_00041
A89: ED_PUB413_00042
A90: ED_PUB413_00031
A91: ED_PUB413_00032
A92: ED_PUB413_00033
A93: ED_PUB413_00034
A94: ED_PUB413_00035
A95: ED_PUB413_00036
A96: ED_PUB413_00037
A97: ED_PUB413_00038
A98: ED_PUB413_00039
A99: ED_PUB413_00040
A100: ED_PUB413_00041
A101: ED_PUB413_00042
A102: ED_PUB413_00043
A103: ED_PUB413_00044
A104: ED_PUB413_00045
A105: ED_PUB413_00046
A106: ED_PUB413_00047
A107: ED_PUB413_00048
A108: ED_PUB413_00049
A109: ED_PUB413_00050
A110: ED_PUB413_00051
A111: ED_PUB413_00052
A112: ED_PUB413_00053
A113: ED_PUB413_00054
A114: ED_PUB413_00055
A115: ED_PUB413_00056
A116: ED_PUB413_00069 | C116: LIGHT MAINTENANCE | D116: Mercury Vapour 80 watt
A117: ED_PUB413_00070 | D117: Sodium High Pressure 150 watt
A118: ED_PUB413_00071 | D118: Sodium High Pressure 250 watt
A119: ED_PUB413_00072 | D119: 55W Ind
A120: ED_PUB413_00073 | D120: Fluorescent 20 watt
A121: ED_PUB413_00074 | D121: Fluorescent 40 watt
A122: ED_PUB413_00075 | D122: Fluorescent 80 watt
A123: ED_PUB413_00076 | D123: Mercury Vapour 50 watt
A124: ED_PUB413_00077 | D124: Mercury Vapour 125 watt
A125: ED_PUB413_00078 | D125: Mercury Vapour 250 watt
A126: ED_PUB413_00079 | D126: Mercury Vapour 400 watt
A127: ED_PUB413_00080 | D127: Sodium High Pressure 50 watt
A128: ED_PUB413_00081 | D128: Sodium Low Pressure 90 watt
A129: ED_PUB413_00082 | D129: Sodium High Pressure 100 watt
A130: ED_PUB413_00083 | D130: Sodium High Pressure 400 watt
A131: ED_PUB413_00084 | D131: Metal Halide 70 watt
A132: ED_PUB413_00085 | D132: Metal Halide 150 watt
A133: ED_PUB413_00086 | D133: Metal Halide 250 watt
A134: ED_PUB413_00087 | D134: Incandescent 100 watt
A135: ED_PUB413_00088 | D135: Incandescent 150 watt
A136: ED_PUB413_00089 | D136: Sodium High Pressure 250 watt (24 hrs)
A137: ED_PUB413_00090 | D137: Metal Halide 100 watt
A138: ED_PUB413_00091 | D138: T5 (2X14W)
A139: ED_PUB413_00092 | D139: T5 (2x24W)
A140: ED_PUB413_00093 | D140: LED 18W
A141: ED_PUB413_00094 | D141: Compact Fluoro 32W
A142: ED_PUB413_00095 | D142: Compact Fluoro 42W
A143: ED_PUB413_00096
A144: ED_PUB413_00097
A145: ED_PUB413_00098
A146: ED_PUB413_00099
A147: ED_PUB413_00100
A148: ED_PUB413_00101
A149: ED_PUB413_00102
A150: ED_PUB413_00103
A151: ED_PUB413_00104
A152: ED_PUB413_00105
A153: ED_PUB413_00106
A154: ED_PUB413_00107
A155: ED_PUB413_00108

Sheet 4.2 Metering
C1: =SheetHeader -> REGULATORY REPORTING STATEMENT
C2: =dms_TradingName -> Victorian DNSP Reset
C3: =FRCP_span -> 2016 to 2020
C4: 4.2 METERING
C7: TABLE 4.2.1 - METERING DESCRIPTOR METRIC | M7: TABLE 4.2.2 - COST METRICS
C8: <<<GROUP-ROW>>>
A10: NB: Codes in hidden column L | E10: VOLUMES (0's) | O10: =CONCATENATE("EXPENDITURE ($0's, real ",dms_DollarReal,")") -> EXPENDITURE ($0's, real December 2015) | U10: VOLUMES (0's)
C11: ASSET CATEGORY | D11: ASSET SUBCATEGORY | E11: =CRCP_y5 -> 2015 | F11: =FRCP -> 2016 | G11: 2017 | H11: 2018 | I11: 2019 | J11: 2020 | M11: SERVICE SUBCATEGORY | N11: METER TYPE | O11: =CRCP_y5 -> 2015 | P11: =FRCP -> 2016 | Q11: 2017 | R11: 2018 | S11: 2019 | T11: 2020 | U11: =CRCP_y5 -> 2015 | V11: =FRCP -> 2016 | W11: 2017 | X11: 2018 | Y11: 2019 | Z11: 2020
A12: ED_MET421_00001 | C12: Meter Type 4 | D12: Single phase meter population | L12: ED_MET422_00001 | M12: Meter purchase | N12: Meter Type 4
A13: ED_MET421_00002 | D13: Multi phase meter population | L13: ED_MET422_00002 | N13: Meter Type 5
A14: ED_MET421_00003 | D14: Current transformer connected meter population | L14: ED_MET422_00003 | N14: Meter Type 6
A15: ED_MET421_00004 | D15: Direct connect meter population | L15: ED_MET422_00004 | M15: Meter testing | N15: Meter Type 4
A16: ED_MET421_00005 | C16: Meter Type 5 | D16: Single phase meter population | L16: ED_MET422_00005 | N16: Meter Type 5
A17: ED_MET421_00006 | D17: Multi phase meter population | L17: ED_MET422_00006 | N17: Meter Type 6
A18: ED_MET421_00007 | D18: Current transformer connected meter population | L18: ED_MET422_00007 | M18: Meter investigation | N18: Meter Type 4
A19: ED_MET421_00008 | D19: Direct connect meter population | L19: ED_MET422_00008 | N19: Meter Type 5
A20: ED_MET421_00009 | C20: Meter Type 6 | D20: Single phase meter population | L20: ED_MET422_00009 | N20: Meter Type 6
A21: ED_MET421_00010 | D21: Multi phase meter population | L21: ED_MET422_00010 | M21: Scheduled meter reading | N21: Meter Type 4
A22: ED_MET421_00011 | D22: Current transformer connected meter population | L22: ED_MET422_00011 | N22: Meter Type 5
A23: ED_MET421_00012 | D23: Direct connect meter population | L23: ED_MET422_00012 | N23: Meter Type 6
L24: ED_MET422_00013 | M24: Special meter reading | N24: Meter Type 4
L25: ED_MET422_00014 | N25: Meter Type 5
L26: ED_MET422_00015 | N26: Meter Type 6
L27: ED_MET422_00016 | M27: New meter installation | N27: Meter Type 4
L28: ED_MET422_00017 | N28: Meter Type 5
L29: ED_MET422_00018 | N29: Meter Type 6
L30: ED_MET422_00019 | M30: Meter replacement | N30: Meter Type 4
L31: ED_MET422_00020 | N31: Meter Type 5
L32: ED_MET422_00021 | N32: Meter Type 6
L33: ED_MET422_00022 | M33: Meter maintenance | N33: Meter Type 4
L34: ED_MET422_00023 | N34: Meter Type 5
L35: ED_MET422_00024 | N35: Meter Type 6
L36: ED_MET422_00025 | M36: Remote meter reading | N36: Meter Type 4
L37: ED_MET422_00026 | M37: Remote meter re-configuration | N37: Meter Type 4
L38: ED_MET422_00027 | M38: Other metering | N38: Meter Type 4
L39: ED_MET422_00028 | N39: Meter Type 5
L40: ED_MET422_00029 | N40: Meter Type 6
L41: ED_MET422_00030 | N41: Meter Type 7
L42: ED_MET422_00031 | M42: IT infrastructure capex | N42: Meter Type 4
L43: ED_MET422_00032 | M43: IT infrastructure opex | N43: Meter Type 4
L44: ED_MET422_00033 | M44: Communications infrastructure capex | N44: Meter Type 4
L45: ED_MET422_00034 | M45: Communications infrastructure opex | N45: Meter Type 4

Sheet 4.3 Fee-based services
C1: =SheetHeader -> REGULATORY REPORTING STATEMENT
C2: =dms_TradingName -> Victorian DNSP Reset
C3: =FRCP_span -> 2016 to 2020
C4: 4.3 ANCILLARY SERVICES - FEE BASED SERVICES
C6: TABLE 4.3.1 - COST METRICS FOR FEE-BASED SERVICES
C9: SERVICE | D9: SERVICE SUBCATEGORY | E9: =CONCATENATE("EXPENDITURE ($0's, real ", dms_DollarReal, ")") -> EXPENDITURE ($0's, real December 2015) | K9: VOLUMES (0's)
E10: =CRCP_y5 -> 2015 | F10: =FRCP -> 2016 | G10: 2017 | H10: 2018 | I10: 2019 | J10: 2020 | K10: =CRCP_y5 -> 2015 | L10: =FRCP -> 2016 | M10: 2017 | N10: 2018 | O10: 2019 | P10: 2020
A11: ED_FEE431_00001 | C11: Common Fee-Based Services | D11: Energisation
A12: ED_FEE431_00002 | C12: Common Fee-Based Services | D12: De-energisation
A13: ED_FEE431_00003 | C13: Common Fee-Based Services | D13: Re-energisation
A14: ED_FEE431_00004 | C14: Miscellaneous Fee-Based Services | D14: Connection - single phase service connection to new premises - (JEN responsible)
A15: ED_FEE431_00005 | C15: Miscellaneous Fee-Based Services | D15: Connection - three phase service connection to new premises (less than 100amps) - (JEN responsible)
A16: ED_FEE431_00006 | C16: Miscellaneous Fee-Based Services | D16: Connection - single phase service connection to new premises - (JEN not responsible)
A17: ED_FEE431_00007 | C17: Miscellaneous Fee-Based Services | D17: Connection - three phase service connection to new premises (less than 100amps) - (JEN not responsible)
A18: ED_FEE431_00008 | C18: Miscellaneous Fee-Based Services | D18: Temporary supply services
A19: ED_FEE431_00009 | C19: Miscellaneous Fee-Based Services | D19: Temporary disconnect/reconnect services
A20: ED_FEE431_00010 | C20: Miscellaneous Fee-Based Services | D20: Remote de-energisation
A21: ED_FEE431_00011 | C21: Miscellaneous Fee-Based Services | D21: Remote re-energisation
A22: ED_FEE431_00012 | C22: Miscellaneous Fee-Based Services | D22: Special meter reading
A23: ED_FEE431_00013 | C23: Miscellaneous Fee-Based Services | D23: Re-test types 5, 6 and AMI smart metering installations less than 160 MWh
A24: ED_FEE431_00014 | C24: Miscellaneous Fee-Based Services | D24: Re-test types 5, 6 and AMI smart metering installations greater than 160 MWh
A25: ED_FEE431_00015 | C25: Miscellaneous Fee-Based Services | D25: Remote meter re-configuration
A26: ED_FEE431_00016 | C26: Miscellaneous Fee-Based Services | D26: Type 7 metering (meter data service)
A27: ED_FEE431_00017 | C27: Miscellaneous Fee-Based Services | D27: Fault response - not DNSP fault
A28: ED_FEE431_00018 | C28: Miscellaneous Fee-Based Services | D28: Wasted attendance - not DNSP fault
A29: ED_FEE431_00019 | C29: Miscellaneous Fee-Based Services | D29: Service truck visits
A30: ED_FEE431_00020 | C30: Miscellaneous Fee-Based Services | D30: Reserve feeder per KW
A31: ED_FEE431_00021 | C31: Miscellaneous Fee-Based Services
A32: ED_FEE431_00022 | C32: Miscellaneous Fee-Based Services
A33: ED_FEE431_00023 | C33: Miscellaneous Fee-Based Services
A34: ED_FEE431_00024 | C34: Miscellaneous Fee-Based Services
A35: ED_FEE431_00025 | C35: Miscellaneous Fee-Based Services
A36: ED_FEE431_00026 | C36: Miscellaneous Fee-Based Services
A37: ED_FEE431_00027 | C37: Miscellaneous Fee-Based Services
A38: ED_FEE431_00028 | C38: Miscellaneous Fee-Based Services
A39: ED_FEE431_00029 | C39: Miscellaneous Fee-Based Services
A40: ED_FEE431_00030 | C40: Miscellaneous Fee-Based Services
A41: ED_FEE431_00031 | C41: Miscellaneous Fee-Based Services
A42: ED_FEE431_00032 | C42: Miscellaneous Fee-Based Services
A43: ED_FEE431_00033 | C43: Miscellaneous Fee-Based Services
A44: ED_FEE431_00034 | C44: Miscellaneous Fee-Based Services
A45: ED_FEE431_00035 | C45: Miscellaneous Fee-Based Services
A46: ED_FEE431_00036 | C46: Miscellaneous Fee-Based Services
A47: ED_FEE431_00037 | C47: Miscellaneous Fee-Based Services
A48: ED_FEE431_00038 | C48: Miscellaneous Fee-Based Services
A49: ED_FEE431_00039 | C49: Miscellaneous Fee-Based Services
A50: ED_FEE431_00040 | C50: Miscellaneous Fee-Based Services
A51: ED_FEE431_00041 | C51: Miscellaneous Fee-Based Services
A52: ED_FEE431_00042 | C52: Miscellaneous Fee-Based Services
A53: ED_FEE431_00043 | C53: Miscellaneous Fee-Based Services
A54: ED_FEE431_00044 | C54: Miscellaneous Fee-Based Services
A55: ED_FEE431_00045 | C55: Miscellaneous Fee-Based Services
A56: ED_FEE431_00046 | C56: Miscellaneous Fee-Based Services
A57: ED_FEE431_00047 | C57: Miscellaneous Fee-Based Services
A58: ED_FEE431_00048 | C58: Miscellaneous Fee-Based Services
A59: ED_FEE431_00049 | C59: Miscellaneous Fee-Based Services
A60: ED_FEE431_00050 | C60: Miscellaneous Fee-Based Services
A61: ED_FEE431_00051 | C61: Miscellaneous Fee-Based Services
A62: ED_FEE431_00052 | C62: Miscellaneous Fee-Based Services
A63: ED_FEE431_00053 | C63: Miscellaneous Fee-Based Services
A64: ED_FEE431_00054 | C64: Miscellaneous Fee-Based Services
A65: ED_FEE431_00055 | C65: Miscellaneous Fee-Based Services
A66: ED_FEE431_00056 | C66: Miscellaneous Fee-Based Services
A67: ED_FEE431_00057 | C67: Miscellaneous Fee-Based Services
A68: ED_FEE431_00058 | C68: Miscellaneous Fee-Based Services
A69: ED_FEE431_00059 | C69: Miscellaneous Fee-Based Services
A70: ED_FEE431_00060 | C70: Miscellaneous Fee-Based Services
A71: ED_FEE431_00061 | C71: Miscellaneous Fee-Based Services
A72: ED_FEE431_00062 | C72: Miscellaneous Fee-Based Services
A73: ED_FEE431_00063 | C73: Miscellaneous Fee-Based Services
A74: ED_FEE431_00064 | C74: Miscellaneous Fee-Based Services
A75: ED_FEE431_00065 | C75: Miscellaneous Fee-Based Services
A76: ED_FEE431_00066 | C76: Miscellaneous Fee-Based Services
A77: ED_FEE431_00067 | C77: Miscellaneous Fee-Based Services
A78: ED_FEE431_00068 | C78: Miscellaneous Fee-Based Services
A79: ED_FEE431_00069 | C79: Miscellaneous Fee-Based Services
A80: ED_FEE431_00070 | C80: Miscellaneous Fee-Based Services
A81: ED_FEE431_00071 | C81: Miscellaneous Fee-Based Services
A82: ED_FEE431_00072 | C82: Miscellaneous Fee-Based Services
A83: ED_FEE431_00073 | C83: Miscellaneous Fee-Based Services
A84: ED_FEE431_00074 | C84: Miscellaneous Fee-Based Services
A85: ED_FEE431_00075 | C85: Miscellaneous Fee-Based Services
A86: ED_FEE431_00076 | C86: Miscellaneous Fee-Based Services
A87: ED_FEE431_00077 | C87: Miscellaneous Fee-Based Services
A88: ED_FEE431_00078 | C88: Miscellaneous Fee-Based Services
A89: ED_FEE431_00079 | C89: Miscellaneous Fee-Based Services
A90: ED_FEE431_00080 | C90: Miscellaneous Fee-Based Services
A91: ED_FEE431_00081 | C91: Miscellaneous Fee-Based Services
A92: ED_FEE431_00082 | C92: Miscellaneous Fee-Based Services
A93: ED_FEE431_00083 | C93: Miscellaneous Fee-Based Services
A94: ED_FEE431_00084 | C94: Miscellaneous Fee-Based Services
A95: ED_FEE431_00085 | C95: Miscellaneous Fee-Based Services
A96: ED_FEE431_00086 | C96: Miscellaneous Fee-Based Services
A97: ED_FEE431_00087 | C97: Miscellaneous Fee-Based Services
A98: ED_FEE431_00088 | C98: Miscellaneous Fee-Based Services
A99: ED_FEE431_00089 | C99: Miscellaneous Fee-Based Services
A100: ED_FEE431_00090 | C100: Miscellaneous Fee-Based Services
A101: ED_FEE431_00091 | C101: Miscellaneous Fee-Based Services
A102: ED_FEE431_00092 | C102: Miscellaneous Fee-Based Services
A103: ED_FEE431_00093 | C103: Miscellaneous Fee-Based Services
A104: ED_FEE431_00094 | C104: Miscellaneous Fee-Based Services
A105: ED_FEE431_00095 | C105: Miscellaneous Fee-Based Services
A106: ED_FEE431_00096 | C106: Miscellaneous Fee-Based Services
A107: ED_FEE431_00097 | C107: Miscellaneous Fee-Based Services
A108: ED_FEE431_00098 | C108: Miscellaneous Fee-Based Services
A109: ED_FEE431_00099 | C109: Miscellaneous Fee-Based Services
A110: ED_FEE431_00100 | C110: Miscellaneous Fee-Based Services
A111: ED_FEE431_00101 | C111: Miscellaneous Fee-Based Services
A112: ED_FEE431_00102 | C112: Miscellaneous Fee-Based Services
A113: ED_FEE431_00103 | C113: Miscellaneous Fee-Based Services
A114: ED_FEE431_00104 | C114: Miscellaneous Fee-Based Services
A115: ED_FEE431_00105 | C115: Miscellaneous Fee-Based Services
A116: ED_FEE431_00106 | C116: Miscellaneous Fee-Based Services
A117: ED_FEE431_00107 | C117: Miscellaneous Fee-Based Services
A118: ED_FEE431_00108 | C118: Miscellaneous Fee-Based Services
A119: ED_FEE431_00109 | C119: Miscellaneous Fee-Based Services
A120: ED_FEE431_00110 | C120: Miscellaneous Fee-Based Services
A121: ED_FEE431_00111 | C121: Miscellaneous Fee-Based Services
A122: ED_FEE431_00112 | C122: Miscellaneous Fee-Based Services
A123: ED_FEE431_00113 | C123: Miscellaneous Fee-Based Services
A124: ED_FEE431_00114 | C124: Miscellaneous Fee-Based Services
A125: ED_FEE431_00115 | C125: Miscellaneous Fee-Based Services
A126: ED_FEE431_00116 | C126: Miscellaneous Fee-Based Services
A127: ED_FEE431_00117 | C127: Miscellaneous Fee-Based Services
A128: ED_FEE431_00118 | C128: Miscellaneous Fee-Based Services
A129: ED_FEE431_00119 | C129: Miscellaneous Fee-Based Services
A130: ED_FEE431_00120 | C130: Miscellaneous Fee-Based Services
A131: ED_FEE431_00121 | C131: Miscellaneous Fee-Based Services
A132: ED_FEE431_00122 | C132: Miscellaneous Fee-Based Services
A133: ED_FEE431_00123 | C133: Miscellaneous Fee-Based Services
A134: ED_FEE431_00124 | C134: Miscellaneous Fee-Based Services
A135: ED_FEE431_00125 | C135: Miscellaneous Fee-Based Services
A136: ED_FEE431_00126 | C136: Miscellaneous Fee-Based Services
A137: ED_FEE431_00127 | C137: Miscellaneous Fee-Based Services
A138: ED_FEE431_00128 | C138: Miscellaneous Fee-Based Services
A139: ED_FEE431_00129 | C139: Miscellaneous Fee-Based Services
A140: ED_FEE431_00130 | C140: Miscellaneous Fee-Based Services
A141: ED_FEE431_00131 | C141: Miscellaneous Fee-Based Services
A142: ED_FEE431_00132 | C142: Miscellaneous Fee-Based Services
A143: ED_FEE431_00133 | C143: Miscellaneous Fee-Based Services
A144: ED_FEE431_00134 | C144: Miscellaneous Fee-Based Services
A145: ED_FEE431_00135 | C145: Miscellaneous Fee-Based Services
A146: ED_FEE431_00136 | C146: Miscellaneous Fee-Based Services
A147: ED_FEE431_00137 | C147: Miscellaneous Fee-Based Services
A148: ED_FEE431_00138 | C148: Miscellaneous Fee-Based Services
A149: ED_FEE431_00139 | C149: Miscellaneous Fee-Based Services
A150: ED_FEE431_00140 | C150: Miscellaneous Fee-Based Services
A151: ED_FEE431_00141 | C151: Miscellaneous Fee-Based Services
A152: ED_FEE431_00142 | C152: Miscellaneous Fee-Based Services
A153: ED_FEE431_00143 | C153: Miscellaneous Fee-Based Services
A154: ED_FEE431_00144 | C154: Miscellaneous Fee-Based Services
A155: ED_FEE431_00145 | C155: Miscellaneous Fee-Based Services
A156: ED_FEE431_00146 | C156: Miscellaneous Fee-Based Services
A157: ED_FEE431_00147 | C157: Miscellaneous Fee-Based Services
A158: ED_FEE431_00148 | C158: Miscellaneous Fee-Based Services
A159: ED_FEE431_00149 | C159: Miscellaneous Fee-Based Services
A160: ED_FEE431_00150 | C160: Miscellaneous Fee-Based Services
A161: ED_FEE431_00151 | C161: Miscellaneous Fee-Based Services
A162: ED_FEE431_00152 | C162: Miscellaneous Fee-Based Services
A163: ED_FEE431_00153 | C163: Miscellaneous Fee-Based Services
A164: ED_FEE431_00154 | C164: Miscellaneous Fee-Based Services
A165: ED_FEE431_00155 | C165: Miscellaneous Fee-Based Services
A166: ED_FEE431_00156 | C166: Miscellaneous Fee-Based Services
A167: ED_FEE431_00157 | C167: Miscellaneous Fee-Based Services
A168: ED_FEE431_00158 | C168: Miscellaneous Fee-Based Services
A169: ED_FEE431_00159 | C169: Miscellaneous Fee-Based Services
A170: ED_FEE431_00160 | C170: Miscellaneous Fee-Based Services
A171: ED_FEE431_00161 | C171: Miscellaneous Fee-Based Services
A172: ED_FEE431_00162 | C172: Miscellaneous Fee-Based Services
A173: ED_FEE431_00163 | C173: Miscellaneous Fee-Based Services
A174: ED_FEE431_00164 | C174: Miscellaneous Fee-Based Services
A175: ED_FEE431_00165 | C175: Miscellaneous Fee-Based Services
A176: ED_FEE431_00166 | C176: Miscellaneous Fee-Based Services
A177: ED_FEE431_00167 | C177: Miscellaneous Fee-Based Services
A178: ED_FEE431_00168 | C178: Miscellaneous Fee-Based Services
A179: ED_FEE431_00169 | C179: Miscellaneous Fee-Based Services
A180: ED_FEE431_00170 | C180: Miscellaneous Fee-Based Services
A181: ED_FEE431_00171 | C181: Miscellaneous Fee-Based Services
A182: ED_FEE431_00172 | C182: Miscellaneous Fee-Based Services
A183: ED_FEE431_00173 | C183: Miscellaneous Fee-Based Services
A184: ED_FEE431_00174 | C184: Miscellaneous Fee-Based Services
A185: ED_FEE431_00175 | C185: Miscellaneous Fee-Based Services
A186: ED_FEE431_00176 | C186: Miscellaneous Fee-Based Services
A187: ED_FEE431_00177 | C187: Miscellaneous Fee-Based Services
A188: ED_FEE431_00178 | C188: Miscellaneous Fee-Based Services
A189: ED_FEE431_00179 | C189: Miscellaneous Fee-Based Services
A190: ED_FEE431_00180 | C190: Miscellaneous Fee-Based Services
A191: ED_FEE431_00181 | C191: Miscellaneous Fee-Based Services
A192: ED_FEE431_00182 | C192: Miscellaneous Fee-Based Services
A193: ED_FEE431_00183 | C193: Miscellaneous Fee-Based Services
A194: ED_FEE431_00184 | C194: Miscellaneous Fee-Based Services
A195: ED_FEE431_00185 | C195: Miscellaneous Fee-Based Services
A196: ED_FEE431_00186 | C196: Miscellaneous Fee-Based Services
A197: ED_FEE431_00187 | C197: Miscellaneous Fee-Based Services
A198: ED_FEE431_00188 | C198: Miscellaneous Fee-Based Services
A199: ED_FEE431_00189 | C199: Miscellaneous Fee-Based Services
A200: ED_FEE431_00190 | C200: Miscellaneous Fee-Based Services
A201: ED_FEE431_00191 | C201: Miscellaneous Fee-Based Services
A202: ED_FEE431_00192 | C202: Miscellaneous Fee-Based Services
A203: ED_FEE431_00193 | C203: Miscellaneous Fee-Based Services
... 278 more rows

Sheet 4.4 Quoted services.
C1: =SheetHeader -> REGULATORY REPORTING STATEMENT
C2: =dms_TradingName -> Victorian DNSP Reset
C3: =FRCP_span -> 2016 to 2020
C4: 4.4 ANCILLARY SERVICES - QUOTED SERVICES
C6: TABLE 4.4.1 - COST METRICS FOR QUOTED SERVICES
C10: SERVICE | D10: SERVICE SUBCATEGORY | E10: =CONCATENATE("EXPENDITURE ($0's, real ", dms_DollarReal, ")") -> EXPENDITURE ($0's, real December 2015) | K10: VOLUMES (0's)
E11: =CRCP_y5 -> 2015 | F11: =FRCP -> 2016 | G11: 2017 | H11: 2018 | I11: 2019 | J11: 2020 | K11: =CRCP_y5 -> 2015 | L11: =FRCP -> 2016 | M11: 2017 | N11: 2018 | O11: 2019 | P11: 2020
A12: ED_QUO441_00001 | C12: Quoted Services | D12: Elective underground service
A13: ED_QUO441_00002 | C13: Quoted Services | D13: After hours truck by appointment
A14: ED_QUO441_00003 | C14: Quoted Services | D14: Recoverable works
A15: ED_QUO441_00004 | C15: Quoted Services | D15: Routine Connections -customers >100 amps
A16: ED_QUO441_00005 | C16: Quoted Services | D16: Temporary covering of low voltage mains and service lines
A17: ED_QUO441_00006 | C17: Quoted Services | D17: Supply abolishment
A18: ED_QUO441_00007 | C18: Quoted Services | D18: Supply abolishment > 100 amps
A19: ED_QUO441_00008 | C19: Quoted Services | D19: Restoration of overhead service cables pulled down by transport vehicles transporting high loads
A20: ED_QUO441_00009 | C20: Quoted Services | D20: High load escorts--lifting of overhead lines
A21: ED_QUO441_00010 | C21: Quoted Services | D21: Re-arrangement of network assets at customer request, excluding alteration and relocation of existing public lighting services
A22: ED_QUO441_00011 | C22: Quoted Services | D22: Auditing design and construction
A23: ED_QUO441_00012 | C23: Quoted Services | D23: Specification and design enquiry
A24: ED_QUO441_00013 | C24: Quoted Services
A25: ED_QUO441_00014 | C25: Quoted Services
A26: ED_QUO441_00015 | C26: Quoted Services
A27: ED_QUO441_00016 | C27: Quoted Services
A28: ED_QUO441_00017 | C28: Quoted Services
A29: ED_QUO441_00018 | C29: Quoted Services
A30: ED_QUO441_00019 | C30: Quoted Services
A31: ED_QUO441_00020 | C31: Quoted Services
A32: ED_QUO441_00021 | C32: Quoted Services
A33: ED_QUO441_00022 | C33: Quoted Services
A34: ED_QUO441_00023 | C34: Quoted Services
A35: ED_QUO441_00024 | C35: Quoted Services
A36: ED_QUO441_00025 | C36: Quoted Services
A37: ED_QUO441_00026 | C37: Quoted Services
A38: ED_QUO441_00027 | C38: Quoted Services
A39: ED_QUO441_00028 | C39: Quoted Services
A40: ED_QUO441_00029 | C40: Quoted Services
A41: ED_QUO441_00030 | C41: Quoted Services
A42: ED_QUO441_00031 | C42: Quoted Services
A43: ED_QUO441_00032 | C43: Quoted Services
A44: ED_QUO441_00033 | C44: Quoted Services
A45: ED_QUO441_00034 | C45: Quoted Services
A46: ED_QUO441_00035 | C46: Quoted Services
A47: ED_QUO441_00036 | C47: Quoted Services
A48: ED_QUO441_00037 | C48: Quoted Services
A49: ED_QUO441_00038 | C49: Quoted Services
A50: ED_QUO441_00039 | C50: Quoted Services
A51: ED_QUO441_00040 | C51: Quoted Services
A52: ED_QUO441_00041 | C52: Quoted Services
A53: ED_QUO441_00042 | C53: Quoted Services
A54: ED_QUO441_00043 | C54: Quoted Services
A55: ED_QUO441_00044 | C55: Quoted Services
A56: ED_QUO441_00045 | C56: Quoted Services
A57: ED_QUO441_00046 | C57: Quoted Services
A58: ED_QUO441_00047 | C58: Quoted Services
A59: ED_QUO441_00048 | C59: Quoted Services
A60: ED_QUO441_00049 | C60: Quoted Services
A61: ED_QUO441_00050 | C61: Quoted Services
A62: ED_QUO441_00051 | C62: Quoted Services
A63: ED_QUO441_00052 | C63: Quoted Services
A64: ED_QUO441_00053 | C64: Quoted Services
A65: ED_QUO441_00054 | C65: Quoted Services
A66: ED_QUO441_00055 | C66: Quoted Services
A67: ED_QUO441_00056 | C67: Quoted Services
A68: ED_QUO441_00057 | C68: Quoted Services
A69: ED_QUO441_00058 | C69: Quoted Services
A70: ED_QUO441_00059 | C70: Quoted Services
A71: ED_QUO441_00060 | C71: Quoted Services
A72: ED_QUO441_00061 | C72: Quoted Services
A73: ED_QUO441_00062 | C73: Quoted Services
A74: ED_QUO441_00063 | C74: Quoted Services
A75: ED_QUO441_00064 | C75: Quoted Services
A76: ED_QUO441_00065 | C76: Quoted Services
A77: ED_QUO441_00066 | C77: Quoted Services
A78: ED_QUO441_00067 | C78: Quoted Services
A79: ED_QUO441_00068 | C79: Quoted Services
A80: ED_QUO441_00069 | C80: Quoted Services
A81: ED_QUO441_00070 | C81: Quoted Services
A82: ED_QUO441_00071 | C82: Quoted Services
A83: ED_QUO441_00072 | C83: Quoted Services
A84: ED_QUO441_00073 | C84: Quoted Services
A85: ED_QUO441_00074 | C85: Quoted Services
A86: ED_QUO441_00075 | C86: Quoted Services
A87: ED_QUO441_00076 | C87: Quoted Services
A88: ED_QUO441_00077 | C88: Quoted Services
A89: ED_QUO441_00078 | C89: Quoted Services
A90: ED_QUO441_00079 | C90: Quoted Services
A91: ED_QUO441_00080 | C91: Quoted Services
A92: ED_QUO441_00081 | C92: Quoted Services
A93: ED_QUO441_00082 | C93: Quoted Services
A94: ED_QUO441_00083 | C94: Quoted Services
A95: ED_QUO441_00084 | C95: Quoted Services
A96: ED_QUO441_00085 | C96: Quoted Services
A97: ED_QUO441_00086 | C97: Quoted Services
A98: ED_QUO441_00087 | C98: Quoted Services
A99: ED_QUO441_00088 | C99: Quoted Services
A100: ED_QUO441_00089 | C100: Quoted Services
A101: ED_QUO441_00090 | C101: Quoted Services
A102: ED_QUO441_00091 | C102: Quoted Services
A103: ED_QUO441_00092 | C103: Quoted Services
A104: ED_QUO441_00093 | C104: Quoted Services
A105: ED_QUO441_00094 | C105: Quoted Services
A106: ED_QUO441_00095 | C106: Quoted Services
A107: ED_QUO441_00096 | C107: Quoted Services
A108: ED_QUO441_00097 | C108: Quoted Services
A109: ED_QUO441_00098 | C109: Quoted Services
A110: ED_QUO441_00099 | C110: Quoted Services
A111: ED_QUO441_00100 | C111: Quoted Services
A112: ED_QUO441_00101 | C112: Quoted Services
A113: ED_QUO441_00102 | C113: Quoted Services
A114: ED_QUO441_00103 | C114: Quoted Services
A115: ED_QUO441_00104 | C115: Quoted Services
A116: ED_QUO441_00105 | C116: Quoted Services
A117: ED_QUO441_00106 | C117: Quoted Services
A118: ED_QUO441_00107 | C118: Quoted Services
A119: ED_QUO441_00108 | C119: Quoted Services
A120: ED_QUO441_00109 | C120: Quoted Services
A121: ED_QUO441_00110 | C121: Quoted Services
A122: ED_QUO441_00111 | C122: Quoted Services
A123: ED_QUO441_00112 | C123: Quoted Services
A124: ED_QUO441_00113 | C124: Quoted Services
A125: ED_QUO441_00114 | C125: Quoted Services
A126: ED_QUO441_00115 | C126: Quoted Services
A127: ED_QUO441_00116 | C127: Quoted Services
A128: ED_QUO441_00117 | C128: Quoted Services
A129: ED_QUO441_00118 | C129: Quoted Services
A130: ED_QUO441_00119 | C130: Quoted Services
A131: ED_QUO441_00120 | C131: Quoted Services
A132: ED_QUO441_00121 | C132: Quoted Services
A133: ED_QUO441_00122 | C133: Quoted Services
A134: ED_QUO441_00123 | C134: Quoted Services
A135: ED_QUO441_00124 | C135: Quoted Services
A136: ED_QUO441_00125 | C136: Quoted Services
A137: ED_QUO441_00126 | C137: Quoted Services
A138: ED_QUO441_00127 | C138: Quoted Services
A139: ED_QUO441_00128 | C139: Quoted Services
A140: ED_QUO441_00129 | C140: Quoted Services
A141: ED_QUO441_00130 | C141: Quoted Services
A142: ED_QUO441_00131 | C142: Quoted Services
A143: ED_QUO441_00132 | C143: Quoted Services
A144: ED_QUO441_00133 | C144: Quoted Services
A145: ED_QUO441_00134 | C145: Quoted Services
A146: ED_QUO441_00135 | C146: Quoted Services
A147: ED_QUO441_00136 | C147: Quoted Services
A148: ED_QUO441_00137 | C148: Quoted Services
A149: ED_QUO441_00138 | C149: Quoted Services
A150: ED_QUO441_00139 | C150: Quoted Services
A151: ED_QUO441_00140 | C151: Quoted Services
A152: ED_QUO441_00141 | C152: Quoted Services
A153: ED_QUO441_00142 | C153: Quoted Services
A154: ED_QUO441_00143 | C154: Quoted Services
A155: ED_QUO441_00144 | C155: Quoted Services
A156: ED_QUO441_00145 | C156: Quoted Services
A157: ED_QUO441_00146 | C157: Quoted Services
A158: ED_QUO441_00147 | C158: Quoted Services
A159: ED_QUO441_00148 | C159: Quoted Services
A160: ED_QUO441_00149 | C160: Quoted Services
A161: ED_QUO441_00150 | C161: Quoted Services
A162: ED_QUO441_00151 | C162: Quoted Services
A163: ED_QUO441_00152 | C163: Quoted Services
A164: ED_QUO441_00153 | C164: Quoted Services
A165: ED_QUO441_00154 | C165: Quoted Services
A166: ED_QUO441_00155 | C166: Quoted Services
A167: ED_QUO441_00156 | C167: Quoted Services
A168: ED_QUO441_00157 | C168: Quoted Services
A169: ED_QUO441_00158 | C169: Quoted Services
A170: ED_QUO441_00159 | C170: Quoted Services
A171: ED_QUO441_00160 | C171: Quoted Services
A172: ED_QUO441_00161 | C172: Quoted Services
A173: ED_QUO441_00162 | C173: Quoted Services
A174: ED_QUO441_00163 | C174: Quoted Services
A175: ED_QUO441_00164 | C175: Quoted Services
A176: ED_QUO441_00165 | C176: Quoted Services
A177: ED_QUO441_00166 | C177: Quoted Services
A178: ED_QUO441_00167 | C178: Quoted Services
A179: ED_QUO441_00168 | C179: Quoted Services
A180: ED_QUO441_00169 | C180: Quoted Services
A181: ED_QUO441_00170 | C181: Quoted Services
A182: ED_QUO441_00171 | C182: Quoted Services
A183: ED_QUO441_00172 | C183: Quoted Services
A184: ED_QUO441_00173 | C184: Quoted Services
A185: ED_QUO441_00174 | C185: Quoted Services
A186: ED_QUO441_00175 | C186: Quoted Services
A187: ED_QUO441_00176 | C187: Quoted Services
A188: ED_QUO441_00177 | C188: Quoted Services
A189: ED_QUO441_00178 | C189: Quoted Services
A190: ED_QUO441_00179 | C190: Quoted Services
A191: ED_QUO441_00180 | C191: Quoted Services
A192: ED_QUO441_00181 | C192: Quoted Services
A193: ED_QUO441_00182 | C193: Quoted Services
A194: ED_QUO441_00183 | C194: Quoted Services
A195: ED_QUO441_00184 | C195: Quoted Services
A196: ED_QUO441_00185 | C196: Quoted Services
A197: ED_QUO441_00186 | C197: Quoted Services
A198: ED_QUO441_00187 | C198: Quoted Services
A199: ED_QUO441_00188 | C199: Quoted Services
A200: ED_QUO441_00189 | C200: Quoted Services
A201: ED_QUO441_00190 | C201: Quoted Services
A202: ED_QUO441_00191 | C202: Quoted Services
A203: ED_QUO441_00192 | C203: Quoted Services
A204: ED_QUO441_00193 | C204: Quoted Services
... 270 more rows

Sheet 5.3 MD - Network level
C1: =SheetHeader -> REGULATORY REPORTING STATEMENT
C2: =dms_TradingName -> Victorian DNSP Reset
C3: =FRCP_span -> 2016 to 2020
C4: 5.3 MAXIMUM DEMAND AT NETWORK LEVEL
C7: TABLE 5.3.1 - RAW AND WEATHER CORRECTED COINCIDENT MD AT NETWORK LEVEL (SUMMED AT METERED CONNECTION POINT)
F9: Forthcoming Period
D10: UNIT | E10: =CRCP_y5 -> 2015 | F10: =FRCP -> 2016 | G10: 2017 | H10: 2018 | I10: 2019 | J10: 2020
A11: ED_MDN531_00001 | C11: Raw Network Coincident MD | D11: MW
A12: ED_MDN531_00002 | C12: Date MD Occurred
A13: ED_MDN531_00003 | C13: Half hour time period MD occurred
A14: ED_MDN531_00004 | C14: Winter/Summer Peaking
A15: ED_MDN531_00005 | C15: Embedded Generation | D15: MW
A16: ED_MDN531_00006 | C16: Weather Corrected (50% POE) Network Coincident MD | D16: MW
A17: ED_MDN531_00007 | C17: Weather Corrected (10% POE) Network Coincident MD | D17: MW

Sheet 5.4 MD & utilisation-Spatial
C1: =SheetHeader -> REGULATORY REPORTING STATEMENT | H1: Worksheet navigation
C2: =dms_TradingName -> Victorian DNSP Reset
C3: =FRCP_span -> 2016 to 2020
C4: 5.4 MAXIMUM DEMAND AND UTILISATION AT SPATIAL LEVEL
C8: TABLE 5.4.1 - NON-COINCIDENT & COINCIDENT MAXIMUM DEMAND
I10: Forthcoming Period
C11: NETWORK LEVEL | D11: SUBSTATION | E11: FORECASTING ELEMENTS | F11: UNIT | G11: MAX DEMAND | H11: =CRCP_y5 -> 2015 | I11: =FRCP -> 2016 | J11: 2017 | K11: 2018 | L11: 2019 | M11: 2020
A12: ED_MDU541_00001 | C12: SUBSTRANSMISSION SUBSTATION | D12: BTS | E12: Substation Rating | F12: MVA | G12: Non-Coincident
A13: ED_MDU541_00002 | G13: Coincident
A14: ED_MDU541_00003 | E14: Raw Adjusted MD | F14: MW | G14: Non-Coincident
A15: ED_MDU541_00004 | G15: Coincident
A16: ED_MDU541_00005 | E16: Raw Adjusted MD | F16: MVA | G16: Non-Coincident
A17: ED_MDU541_00006 | G17: Coincident
A18: ED_MDU541_00007 | E18: Date MD occurred | G18: Non-Coincident
A19: ED_MDU541_00008 | G19: Coincident
A20: ED_MDU541_00009 | E20: Half hour time period MD occurred | G20: Non-Coincident
A21: ED_MDU541_00010 | G21: Coincident
A22: ED_MDU541_00011 | E22: Winter/Summer Peaking | G22: Non-Coincident
A23: ED_MDU541_00012 | G23: Coincident
A24: ED_MDU541_00013 | E24: Adjustments - Embedded generation | F24: MW | G24: Non-Coincident
A25: ED_MDU541_00014 | G25: Coincident
A26: ED_MDU541_00015 | E26: Weather Corrected 10% POE | F26: MW | G26: Non-Coincident
A27: ED_MDU541_00016 | G27: Coincident
A28: ED_MDU541_00017 | E28: Weather Corrected MD 10% POE | F28: MVA | G28: Non-Coincident
A29: ED_MDU541_00018 | G29: Coincident
A30: ED_MDU541_00019 | E30: Weather Corrected MD 50% POE | F30: MW | G30: Non-Coincident
A31: ED_MDU541_00020 | G31: Coincident
A32: ED_MDU541_00021 | E32: Weather Corrected MD 50% POE | F32: MVA | G32: Non-Coincident
A33: ED_MDU541_00022 | G33: Coincident
A34: ED_MDU541_00023 | D34: BLTS 22 | E34: Substation Rating | F34: MVA | G34: Non-Coincident
A35: ED_MDU541_00024 | G35: Coincident
A36: ED_MDU541_00025 | E36: Raw Adjusted MD | F36: MW | G36: Non-Coincident
A37: ED_MDU541_00026 | G37: Coincident
A38: ED_MDU541_00027 | E38: Raw Adjusted MD | F38: MVA | G38: Non-Coincident
A39: ED_MDU541_00028 | G39: Coincident
A40: ED_MDU541_00029 | E40: Date MD occurred | G40: Non-Coincident
A41: ED_MDU541_00030 | G41: Coincident
A42: ED_MDU541_00031 | E42: Half hour time period MD occurred | G42: Non-Coincident
A43: ED_MDU541_00032 | G43: Coincident
A44: ED_MDU541_00033 | E44: Winter/Summer Peaking | G44: Non-Coincident
A45: ED_MDU541_00034 | G45: Coincident
A46: ED_MDU541_00035 | E46: Adjustments - Embedded generation | F46: MW | G46: Non-Coincident
A47: ED_MDU541_00036 | G47: Coincident
A48: ED_MDU541_00037 | E48: Weather Corrected 10% POE | F48: MW | G48: Non-Coincident
A49: ED_MDU541_00038 | G49: Coincident
A50: ED_MDU541_00039 | E50: Weather Corrected MD 10% POE | F50: MVA | G50: Non-Coincident
A51: ED_MDU541_00040 | G51: Coincident
A52: ED_MDU541_00041 | E52: Weather Corrected MD 50% POE | F52: MW | G52: Non-Coincident
A53: ED_MDU541_00042 | G53: Coincident
A54: ED_MDU541_00043 | E54: Weather Corrected MD 50% POE | F54: MVA | G54: Non-Coincident
A55: ED_MDU541_00044 | G55: Coincident
A56: ED_MDU541_00023 | D56: BLTS 66 | E56: Substation Rating | F56: MVA | G56: Non-Coincident
A57: ED_MDU541_00024 | G57: Coincident
A58: ED_MDU541_00025 | E58: Raw Adjusted MD | F58: MW | G58: Non-Coincident
A59: ED_MDU541_00026 | G59: Coincident
A60: ED_MDU541_00027 | E60: Raw Adjusted MD | F60: MVA | G60: Non-Coincident
A61: ED_MDU541_00028 | G61: Coincident
A62: ED_MDU541_00029 | E62: Date MD occurred | G62: Non-Coincident
A63: ED_MDU541_00030 | G63: Coincident
A64: ED_MDU541_00031 | E64: Half hour time period MD occurred | G64: Non-Coincident
A65: ED_MDU541_00032 | G65: Coincident
A66: ED_MDU541_00033 | E66: Winter/Summer Peaking | G66: Non-Coincident
A67: ED_MDU541_00034 | G67: Coincident
A68: ED_MDU541_00035 | E68: Adjustments - Embedded generation | F68: MW | G68: Non-Coincident
A69: ED_MDU541_00036 | G69: Coincident
A70: ED_MDU541_00037 | E70: Weather Corrected 10% POE | F70: MW | G70: Non-Coincident
A71: ED_MDU541_00038 | G71: Coincident
A72: ED_MDU541_00039 | E72: Weather Corrected MD 10% POE | F72: MVA | G72: Non-Coincident
A73: ED_MDU541_00040 | G73: Coincident
A74: ED_MDU541_00041 | E74: Weather Corrected MD 50% POE | F74: MW | G74: Non-Coincident
A75: ED_MDU541_00042 | G75: Coincident
A76: ED_MDU541_00043 | E76: Weather Corrected MD 50% POE | F76: MVA | G76: Non-Coincident
A77: ED_MDU541_00044 | G77: Coincident
A78: ED_MDU541_00023 | D78: KTS B1-B2 | E78: Substation Rating | F78: MVA | G78: Non-Coincident
A79: ED_MDU541_00024 | G79: Coincident
A80: ED_MDU541_00025 | E80: Raw Adjusted MD | F80: MW | G80: Non-Coincident
A81: ED_MDU541_00026 | G81: Coincident
A82: ED_MDU541_00027 | E82: Raw Adjusted MD | F82: MVA | G82: Non-Coincident
A83: ED_MDU541_00028 | G83: Coincident
A84: ED_MDU541_00029 | E84: Date MD occurred | G84: Non-Coincident
A85: ED_MDU541_00030 | G85: Coincident
A86: ED_MDU541_00031 | E86: Half hour time period MD occurred | G86: Non-Coincident
A87: ED_MDU541_00032 | G87: Coincident
A88: ED_MDU541_00033 | E88: Winter/Summer Peaking | G88: Non-Coincident
A89: ED_MDU541_00034 | G89: Coincident
A90: ED_MDU541_00035 | E90: Adjustments - Embedded generation | F90: MW | G90: Non-Coincident
A91: ED_MDU541_00036 | G91: Coincident
A92: ED_MDU541_00037 | E92: Weather Corrected 10% POE | F92: MW | G92: Non-Coincident
A93: ED_MDU541_00038 | G93: Coincident
A94: ED_MDU541_00039 | E94: Weather Corrected MD 10% POE | F94: MVA | G94: Non-Coincident
A95: ED_MDU541_00040 | G95: Coincident
A96: ED_MDU541_00041 | E96: Weather Corrected MD 50% POE | F96: MW | G96: Non-Coincident
A97: ED_MDU541_00042 | G97: Coincident
A98: ED_MDU541_00043 | E98: Weather Corrected MD 50% POE | F98: MVA | G98: Non-Coincident
A99: ED_MDU541_00044 | G99: Coincident
A100: ED_MDU541_00023 | D100: KTS B3-B4 | E100: Substation Rating | F100: MVA | G100: Non-Coincident
A101: ED_MDU541_00024 | G101: Coincident
A102: ED_MDU541_00025 | E102: Raw Adjusted MD | F102: MW | G102: Non-Coincident
A103: ED_MDU541_00026 | G103: Coincident
A104: ED_MDU541_00027 | E104: Raw Adjusted MD | F104: MVA | G104: Non-Coincident
A105: ED_MDU541_00028 | G105: Coincident
A106: ED_MDU541_00029 | E106: Date MD occurred | G106: Non-Coincident
A107: ED_MDU541_00030 | G107: Coincident
A108: ED_MDU541_00031 | E108: Half hour time period MD occurred | G108: Non-Coincident
A109: ED_MDU541_00032 | G109: Coincident
A110: ED_MDU541_00033 | E110: Winter/Summer Peaking | G110: Non-Coincident
A111: ED_MDU541_00034 | G111: Coincident
A112: ED_MDU541_00035 | E112: Adjustments - Embedded generation | F112: MW | G112: Non-Coincident
A113: ED_MDU541_00036 | G113: Coincident
A114: ED_MDU541_00037 | E114: Weather Corrected 10% POE | F114: MW | G114: Non-Coincident
A115: ED_MDU541_00038 | G115: Coincident
A116: ED_MDU541_00039 | E116: Weather Corrected MD 10% POE | F116: MVA | G116: Non-Coincident
A117: ED_MDU541_00040 | G117: Coincident
A118: ED_MDU541_00041 | E118: Weather Corrected MD 50% POE | F118: MW | G118: Non-Coincident
A119: ED_MDU541_00042 | G119: Coincident
A120: ED_MDU541_00043 | E120: Weather Corrected MD 50% POE | F120: MVA | G120: Non-Coincident
A121: ED_MDU541_00044 | G121: Coincident
A122: ED_MDU541_00023 | D122: SMTS | E122: Substation Rating | F122: MVA | G122: Non-Coincident
A123: ED_MDU541_00024 | G123: Coincident
A124: ED_MDU541_00025 | E124: Raw Adjusted MD | F124: MW | G124: Non-Coincident
A125: ED_MDU541_00026 | G125: Coincident
A126: ED_MDU541_00027 | E126: Raw Adjusted MD | F126: MVA | G126: Non-Coincident
A127: ED_MDU541_00028 | G127: Coincident
A128: ED_MDU541_00029 | E128: Date MD occurred | G128: Non-Coincident
A129: ED_MDU541_00030 | G129: Coincident
A130: ED_MDU541_00031 | E130: Half hour time period MD occurred | G130: Non-Coincident
A131: ED_MDU541_00032 | G131: Coincident
A132: ED_MDU541_00033 | E132: Winter/Summer Peaking | G132: Non-Coincident
A133: ED_MDU541_00034 | G133: Coincident
A134: ED_MDU541_00035 | E134: Adjustments - Embedded generation | F134: MW | G134: Non-Coincident
A135: ED_MDU541_00036 | G135: Coincident
A136: ED_MDU541_00037 | E136: Weather Corrected 10% POE | F136: MW | G136: Non-Coincident
A137: ED_MDU541_00038 | G137: Coincident
A138: ED_MDU541_00039 | E138: Weather Corrected MD 10% POE | F138: MVA | G138: Non-Coincident
A139: ED_MDU541_00040 | G139: Coincident
A140: ED_MDU541_00041 | E140: Weather Corrected MD 50% POE | F140: MW | G140: Non-Coincident
A141: ED_MDU541_00042 | G141: Coincident
A142: ED_MDU541_00043 | E142: Weather Corrected MD 50% POE | F142: MVA | G142: Non-Coincident
A143: ED_MDU541_00044 | G143: Coincident
A144: ED_MDU541_00023 | D144: TSTS | E144: Substation Rating | F144: MVA | G144: Non-Coincident
A145: ED_MDU541_00024 | G145: Coincident
A146: ED_MDU541_00025 | E146: Raw Adjusted MD | F146: MW | G146: Non-Coincident
A147: ED_MDU541_00026 | G147: Coincident
A148: ED_MDU541_00027 | E148: Raw Adjusted MD | F148: MVA | G148: Non-Coincident
A149: ED_MDU541_00028 | G149: Coincident
A150: ED_MDU541_00029 | E150: Date MD occurred | G150: Non-Coincident
A151: ED_MDU541_00030 | G151: Coincident
A152: ED_MDU541_00031 | E152: Half hour time period MD occurred | G152: Non-Coincident
A153: ED_MDU541_00032 | G153: Coincident
A154: ED_MDU541_00033 | E154: Winter/Summer Peaking | G154: Non-Coincident
A155: ED_MDU541_00034 | G155: Coincident
A156: ED_MDU541_00035 | E156: Adjustments - Embedded generation | F156: MW | G156: Non-Coincident
A157: ED_MDU541_00036 | G157: Coincident
A158: ED_MDU541_00037 | E158: Weather Corrected 10% POE | F158: MW | G158: Non-Coincident
A159: ED_MDU541_00038 | G159: Coincident
A160: ED_MDU541_00039 | E160: Weather Corrected MD 10% POE | F160: MVA | G160: Non-Coincident
A161: ED_MDU541_00040 | G161: Coincident
A162: ED_MDU541_00041 | E162: Weather Corrected MD 50% POE | F162: MW | G162: Non-Coincident
A163: ED_MDU541_00042 | G163: Coincident
A164: ED_MDU541_00043 | E164: Weather Corrected MD 50% POE | F164: MVA | G164: Non-Coincident
A165: ED_MDU541_00044 | G165: Coincident
A166: ED_MDU541_00023 | D166: TTS B1-B2 | E166: Substation Rating | F166: MVA | G166: Non-Coincident
A167: ED_MDU541_00024 | G167: Coincident
A168: ED_MDU541_00025 | E168: Raw Adjusted MD | F168: MW | G168: Non-Coincident
A169: ED_MDU541_00026 | G169: Coincident
A170: ED_MDU541_00027 | E170: Raw Adjusted MD | F170: MVA | G170: Non-Coincident
A171: ED_MDU541_00028 | G171: Coincident
A172: ED_MDU541_00029 | E172: Date MD occurred | G172: Non-Coincident
A173: ED_MDU541_00030 | G173: Coincident
A174: ED_MDU541_00031 | E174: Half hour time period MD occurred | G174: Non-Coincident
A175: ED_MDU541_00032 | G175: Coincident
A176: ED_MDU541_00033 | E176: Winter/Summer Peaking | G176: Non-Coincident
A177: ED_MDU541_00034 | G177: Coincident
A178: ED_MDU541_00035 | E178: Adjustments - Embedded generation | F178: MW | G178: Non-Coincident
A179: ED_MDU541_00036 | G179: Coincident
A180: ED_MDU541_00037 | E180: Weather Corrected 10% POE | F180: MW | G180: Non-Coincident
A181: ED_MDU541_00038 | G181: Coincident
A182: ED_MDU541_00039 | E182: Weather Corrected MD 10% POE | F182: MVA | G182: Non-Coincident
A183: ED_MDU541_00040 | G183: Coincident
A184: ED_MDU541_00041 | E184: Weather Corrected MD 50% POE | F184: MW | G184: Non-Coincident
A185: ED_MDU541_00042 | G185: Coincident
A186: ED_MDU541_00043 | E186: Weather Corrected MD 50% POE | F186: MVA | G186: Non-Coincident
A187: ED_MDU541_00044 | G187: Coincident
A188: ED_MDU541_00023 | D188: TTS B3-B4 | E188: Substation Rating | F188: MVA | G188: Non-Coincident
A189: ED_MDU541_00024 | G189: Coincident
A190: ED_MDU541_00025 | E190: Raw Adjusted MD | F190: MW | G190: Non-Coincident
A191: ED_MDU541_00026 | G191: Coincident
A192: ED_MDU541_00027 | E192: Raw Adjusted MD | F192: MVA | G192: Non-Coincident
A193: ED_MDU541_00028 | G193: Coincident
A194: ED_MDU541_00029 | E194: Date MD occurred | G194: Non-Coincident
A195: ED_MDU541_00030 | G195: Coincident
A196: ED_MDU541_00031 | E196: Half hour time period MD occurred | G196: Non-Coincident
A197: ED_MDU541_00032 | G197: Coincident
A198: ED_MDU541_00033 | E198: Winter/Summer Peaking | G198: Non-Coincident
A199: ED_MDU541_00034 | G199: Coincident
A200: ED_MDU541_00035 | E200: Adjustments - Embedded generation | F200: MW | G200: Non-Coincident
A201: ED_MDU541_00036 | G201: Coincident
A202: ED_MDU541_00037 | E202: Weather Corrected 10% POE | F202: MW | G202: Non-Coincident
A203: ED_MDU541_00038 | G203: Coincident
A204: ED_MDU541_00039 | E204: Weather Corrected MD 10% POE | F204: MVA | G204: Non-Coincident
... 10810 more rows

Sheet 6.1 Telephone answering
C1: =SheetHeader -> REGULATORY REPORTING STATEMENT
C2: =dms_TradingName -> Victorian DNSP Reset
C3: =FRCP_span -> 2016 to 2020
C4: 6.1 TELEPHONE ANSWERING
C7: TABLE 6.1.1 - TELEPHONE ANSWERING DATA
A9: C10 starts at first day of PRCP_y5 and goes for 5 full years | C9: Date | D9: Total number of calls received | E9: calls to payment lines and automated interactive services | F9: calls abandoned by the customer within 30 seconds of the call being queued for response by a human operator | G9: Sub-total number of calls received | H9: Calls to the fault line answered in 30 seconds
A10: TEL611_001 | C10: =DATE(PRCP_y5, 1,1) -> 2010-01-01 | G10: =D10-E10-F10 -> 0
A11: TEL611_002 | C11: =C10+1 -> 2010-01-02 | G11: 0
A12: TEL611_003 | C12: 2010-01-03 | G12: 0
A13: TEL611_004 | C13: 2010-01-04 | G13: 0
A14: TEL611_005 | C14: 2010-01-05 | G14: 0
A15: TEL611_006 | C15: 2010-01-06 | G15: 0
A16: TEL611_007 | C16: 2010-01-07 | G16: 0
A17: TEL611_008 | C17: =C16+1 -> 2010-01-08 | G17: 0
A18: TEL611_009 | C18: 2010-01-09 | G18: 0
A19: TEL611_010 | C19: 2010-01-10 | G19: 0
A20: TEL611_011 | C20: 2010-01-11 | G20: 0
A21: TEL611_012 | C21: 2010-01-12 | G21: 0
A22: TEL611_013 | C22: 2010-01-13 | G22: 0
A23: TEL611_014 | C23: 2010-01-14 | G23: 0
A24: TEL611_015 | C24: 2010-01-15 | G24: 0
A25: TEL611_016 | C25: 2010-01-16 | G25: 0
A26: TEL611_017 | C26: 2010-01-17 | G26: 0
A27: TEL611_018 | C27: 2010-01-18 | G27: 0
A28: TEL611_019 | C28: 2010-01-19 | G28: 0
A29: TEL611_020 | C29: 2010-01-20 | G29: 0
A30: TEL611_021 | C30: 2010-01-21 | G30: =D30-E30-F30 -> 0
A31: TEL611_022 | C31: 2010-01-22 | G31: 0
A32: TEL611_023 | C32: 2010-01-23 | G32: 0
A33: TEL611_024 | C33: 2010-01-24 | G33: 0
A34: TEL611_025 | C34: 2010-01-25 | G34: 0
A35: TEL611_026 | C35: 2010-01-26 | G35: 0
A36: TEL611_027 | C36: 2010-01-27 | G36: 0
A37: TEL611_028 | C37: 2010-01-28 | G37: 0
A38: TEL611_029 | C38: 2010-01-29 | G38: 0
A39: TEL611_030 | C39: 2010-01-30 | G39: 0
A40: TEL611_031 | C40: 2010-01-31 | G40: 0
A41: TEL611_032 | C41: 2010-02-01 | G41: 0
A42: TEL611_033 | C42: 2010-02-02 | G42: 0
A43: TEL611_034 | C43: 2010-02-03 | G43: 0
A44: TEL611_035 | C44: 2010-02-04 | G44: 0
A45: TEL611_036 | C45: 2010-02-05 | G45: 0
A46: TEL611_037 | C46: 2010-02-06 | G46: 0
A47: TEL611_038 | C47: 2010-02-07 | G47: 0
A48: TEL611_039 | C48: 2010-02-08 | G48: 0
A49: TEL611_040 | C49: 2010-02-09 | G49: 0
A50: TEL611_041 | C50: 2010-02-10 | G50: 0
A51: TEL611_042 | C51: 2010-02-11 | G51: 0
A52: TEL611_043 | C52: 2010-02-12 | G52: 0
A53: TEL611_044 | C53: 2010-02-13 | G53: 0
A54: TEL611_045 | C54: 2010-02-14 | G54: 0
A55: TEL611_046 | C55: 2010-02-15 | G55: 0
A56: TEL611_047 | C56: 2010-02-16 | G56: 0
A57: TEL611_048 | C57: 2010-02-17 | G57: 0
A58: TEL611_049 | C58: 2010-02-18 | G58: 0
A59: TEL611_050 | C59: 2010-02-19 | G59: 0
A60: TEL611_051 | C60: 2010-02-20 | G60: 0
A61: TEL611_052 | C61: 2010-02-21 | G61: 0
A62: TEL611_053 | C62: 2010-02-22 | G62: 0
A63: TEL611_054 | C63: 2010-02-23 | G63: 0
A64: TEL611_055 | C64: 2010-02-24 | G64: 0
A65: TEL611_056 | C65: 2010-02-25 | G65: 0
A66: TEL611_057 | C66: 2010-02-26 | G66: 0
A67: TEL611_058 | C67: 2010-02-27 | G67: 0
A68: TEL611_059 | C68: 2010-02-28 | G68: 0
A69: TEL611_060 | C69: 2010-03-01 | G69: 0
A70: TEL611_061 | C70: 2010-03-02 | G70: 0
A71: TEL611_062 | C71: 2010-03-03 | G71: 0
A72: TEL611_063 | C72: 2010-03-04 | G72: 0
A73: TEL611_064 | C73: 2010-03-05 | G73: 0
A74: TEL611_065 | C74: 2010-03-06 | G74: 0
A75: TEL611_066 | C75: 2010-03-07 | G75: 0
A76: TEL611_067 | C76: 2010-03-08 | G76: 0
A77: TEL611_068 | C77: 2010-03-09 | G77: 0
A78: TEL611_069 | C78: 2010-03-10 | G78: 0
A79: TEL611_070 | C79: 2010-03-11 | G79: 0
A80: TEL611_071 | C80: 2010-03-12 | G80: 0
A81: TEL611_072 | C81: =C80+1 -> 2010-03-13 | G81: 0
A82: TEL611_073 | C82: 2010-03-14 | G82: 0
A83: TEL611_074 | C83: 2010-03-15 | G83: 0
A84: TEL611_075 | C84: 2010-03-16 | G84: 0
A85: TEL611_076 | C85: 2010-03-17 | G85: 0
A86: TEL611_077 | C86: 2010-03-18 | G86: 0
A87: TEL611_078 | C87: 2010-03-19 | G87: 0
A88: TEL611_079 | C88: 2010-03-20 | G88: 0
A89: TEL611_080 | C89: 2010-03-21 | G89: 0
A90: TEL611_081 | C90: 2010-03-22 | G90: 0
A91: TEL611_082 | C91: 2010-03-23 | G91: 0
A92: TEL611_083 | C92: 2010-03-24 | G92: 0
A93: TEL611_084 | C93: 2010-03-25 | G93: 0
A94: TEL611_085 | C94: 2010-03-26 | G94: =D94-E94-F94 -> 0
A95: TEL611_086 | C95: 2010-03-27 | G95: 0
A96: TEL611_087 | C96: 2010-03-28 | G96: 0
A97: TEL611_088 | C97: 2010-03-29 | G97: 0
A98: TEL611_089 | C98: 2010-03-30 | G98: 0
A99: TEL611_090 | C99: 2010-03-31 | G99: 0
A100: TEL611_091 | C100: 2010-04-01 | G100: 0
A101: TEL611_092 | C101: 2010-04-02 | G101: 0
A102: TEL611_093 | C102: 2010-04-03 | G102: 0
A103: TEL611_094 | C103: 2010-04-04 | G103: 0
A104: TEL611_095 | C104: 2010-04-05 | G104: 0
A105: TEL611_096 | C105: 2010-04-06 | G105: 0
A106: TEL611_097 | C106: 2010-04-07 | G106: 0
A107: TEL611_098 | C107: 2010-04-08 | G107: 0
A108: TEL611_099 | C108: 2010-04-09 | G108: 0
A109: TEL611_100 | C109: 2010-04-10 | G109: 0
A110: TEL611_101 | C110: 2010-04-11 | G110: 0
A111: TEL611_102 | C111: 2010-04-12 | G111: 0
A112: TEL611_103 | C112: 2010-04-13 | G112: 0
A113: TEL611_104 | C113: 2010-04-14 | G113: 0
A114: TEL611_105 | C114: 2010-04-15 | G114: 0
A115: TEL611_106 | C115: 2010-04-16 | G115: 0
A116: TEL611_107 | C116: 2010-04-17 | G116: 0
A117: TEL611_108 | C117: 2010-04-18 | G117: 0
A118: TEL611_109 | C118: 2010-04-19 | G118: 0
A119: TEL611_110 | C119: 2010-04-20 | G119: 0
A120: TEL611_111 | C120: 2010-04-21 | G120: 0
A121: TEL611_112 | C121: 2010-04-22 | G121: 0
A122: TEL611_113 | C122: 2010-04-23 | G122: 0
A123: TEL611_114 | C123: 2010-04-24 | G123: 0
A124: TEL611_115 | C124: 2010-04-25 | G124: 0
A125: TEL611_116 | C125: 2010-04-26 | G125: 0
A126: TEL611_117 | C126: 2010-04-27 | G126: 0
A127: TEL611_118 | C127: 2010-04-28 | G127: 0
A128: TEL611_119 | C128: 2010-04-29 | G128: 0
A129: TEL611_120 | C129: 2010-04-30 | G129: 0
A130: TEL611_121 | C130: 2010-05-01 | G130: 0
A131: TEL611_122 | C131: 2010-05-02 | G131: 0
A132: TEL611_123 | C132: 2010-05-03 | G132: 0
A133: TEL611_124 | C133: 2010-05-04 | G133: 0
A134: TEL611_125 | C134: 2010-05-05 | G134: 0
A135: TEL611_126 | C135: 2010-05-06 | G135: 0
A136: TEL611_127 | C136: 2010-05-07 | G136: 0
A137: TEL611_128 | C137: 2010-05-08 | G137: 0
A138: TEL611_129 | C138: 2010-05-09 | G138: 0
A139: TEL611_130 | C139: 2010-05-10 | G139: 0
A140: TEL611_131 | C140: 2010-05-11 | G140: 0
A141: TEL611_132 | C141: 2010-05-12 | G141: 0
A142: TEL611_133 | C142: 2010-05-13 | G142: 0
A143: TEL611_134 | C143: 2010-05-14 | G143: 0
A144: TEL611_135 | C144: 2010-05-15 | G144: 0
A145: TEL611_136 | C145: =C144+1 -> 2010-05-16 | G145: 0
A146: TEL611_137 | C146: 2010-05-17 | G146: 0
A147: TEL611_138 | C147: 2010-05-18 | G147: 0
A148: TEL611_139 | C148: 2010-05-19 | G148: 0
A149: TEL611_140 | C149: 2010-05-20 | G149: 0
A150: TEL611_141 | C150: 2010-05-21 | G150: 0
A151: TEL611_142 | C151: 2010-05-22 | G151: 0
A152: TEL611_143 | C152: 2010-05-23 | G152: 0
A153: TEL611_144 | C153: 2010-05-24 | G153: 0
A154: TEL611_145 | C154: 2010-05-25 | G154: 0
A155: TEL611_146 | C155: 2010-05-26 | G155: 0
A156: TEL611_147 | C156: 2010-05-27 | G156: 0
A157: TEL611_148 | C157: 2010-05-28 | G157: 0
A158: TEL611_149 | C158: 2010-05-29 | G158: =D158-E158-F158 -> 0
A159: TEL611_150 | C159: 2010-05-30 | G159: 0
A160: TEL611_151 | C160: 2010-05-31 | G160: 0
A161: TEL611_152 | C161: 2010-06-01 | G161: 0
A162: TEL611_153 | C162: 2010-06-02 | G162: 0
A163: TEL611_154 | C163: 2010-06-03 | G163: 0
A164: TEL611_155 | C164: 2010-06-04 | G164: 0
A165: TEL611_156 | C165: 2010-06-05 | G165: 0
A166: TEL611_157 | C166: 2010-06-06 | G166: 0
A167: TEL611_158 | C167: 2010-06-07 | G167: 0
A168: TEL611_159 | C168: 2010-06-08 | G168: 0
A169: TEL611_160 | C169: 2010-06-09 | G169: 0
A170: TEL611_161 | C170: 2010-06-10 | G170: 0
A171: TEL611_162 | C171: 2010-06-11 | G171: 0
A172: TEL611_163 | C172: 2010-06-12 | G172: 0
A173: TEL611_164 | C173: 2010-06-13 | G173: 0
A174: TEL611_165 | C174: 2010-06-14 | G174: 0
A175: TEL611_166 | C175: 2010-06-15 | G175: 0
A176: TEL611_167 | C176: 2010-06-16 | G176: 0
A177: TEL611_168 | C177: 2010-06-17 | G177: 0
A178: TEL611_169 | C178: 2010-06-18 | G178: 0
A179: TEL611_170 | C179: 2010-06-19 | G179: 0
A180: TEL611_171 | C180: 2010-06-20 | G180: 0
A181: TEL611_172 | C181: 2010-06-21 | G181: 0
A182: TEL611_173 | C182: 2010-06-22 | G182: 0
A183: TEL611_174 | C183: 2010-06-23 | G183: 0
A184: TEL611_175 | C184: 2010-06-24 | G184: 0
A185: TEL611_176 | C185: 2010-06-25 | G185: 0
A186: TEL611_177 | C186: 2010-06-26 | G186: 0
A187: TEL611_178 | C187: 2010-06-27 | G187: 0
A188: TEL611_179 | C188: 2010-06-28 | G188: 0
A189: TEL611_180 | C189: 2010-06-29 | G189: 0
A190: TEL611_181 | C190: 2010-06-30 | G190: 0
A191: TEL611_182 | C191: 2010-07-01 | G191: 0
A192: TEL611_183 | C192: 2010-07-02 | G192: 0
A193: TEL611_184 | C193: 2010-07-03 | G193: 0
A194: TEL611_185 | C194: 2010-07-04 | G194: 0
A195: TEL611_186 | C195: 2010-07-05 | G195: 0
A196: TEL611_187 | C196: 2010-07-06 | G196: 0
A197: TEL611_188 | C197: 2010-07-07 | G197: 0
A198: TEL611_189 | C198: 2010-07-08 | G198: 0
A199: TEL611_190 | C199: 2010-07-09 | G199: 0
A200: TEL611_191 | C200: 2010-07-10 | G200: 0
A201: TEL611_192 | C201: 2010-07-11 | G201: 0
A202: TEL611_193 | C202: 2010-07-12 | G202: 0
A203: TEL611_194 | C203: 2010-07-13 | G203: 0
... 1632 more rows

Sheet 6.2 Reliability & Cust serv
C1: =SheetHeader -> REGULATORY REPORTING STATEMENT
C2: =dms_TradingName -> Victorian DNSP Reset
C3: =FRCP_span -> 2016 to 2020
C4: 6.2 RELIABILITY AND CUSTOMER SERVICE PERFORMANCE
C8: Instructions
C9: This regulatory template requires the input of performance Historicals and proposed targets for the forthcoming regulatory control period under the STPIS.
C10: Performance targets for some parameters may cross feeder classifications in tables 6.2.1, 6.2.2 and 6.2.3. However, where a single target for the whole network is prescribed, this should be entered in the "whole network (system)" cell. DNSPs must define each of the parameters which apply to it. If common definitions exist for the parameter, please attach a reference to the definition.
C11: DNSPs should insert "n/a" against parameters which do not apply to it. Do not delete inapplicable fields.
C12: If parts of this template are unsuitable to record any of the requested information, the DNSP must provide this information in an alternative format, within it's accompanying regulatory proposal and indicate the section of the regulatory proposal containing the information in the 'addressed at chapter/section of regulatory proposal' column.
C13: The DNSP must provide detail of historical unplanned minutes off supply, unplanned interruptions, momentary interruptions, customer numbers and customer service in accordance with tables 6.2.1, 6.2.2, 6.2.4 and 6.2.5. Table 6.2.3 is not compulsory - those businesses who want to include MAIFI in the s-factor calcuation may make such a proposal and submit the relevant MAIFI information necessary to establish the MAIFI targets, including the estimated performance for 2015.
C14: Definitions of parameters under the AER's STPIS apply. Where exclusions apply, data provided below must exclude all events outlined under clause 3.3 of the AER's STPIS.
C18: TABLE 6.2.1 - UNPLANNED MINUTES OFF SUPPLY (SAIDI) - Historical, TARGET AND PROPOSED RELIABILTY
E20: Historical | J20: Target | K20: Proposed target
C21: SAIDI | E21: =PRCP_y5 -> 2010 | F21: =CRCP -> 2011 | G21: 2012 | H21: 2013 | I21: 2014 | J21: 2015 | K21: =FRCP -> 2016 | L21: 2017 | M21: 2018 | N21: 2019 | O21: 2020
A22: ED_REL621_00001 | C22: Total sustained minutes off supply | D22: CBD
A23: ED_REL621_00002 | D23: Urban
A24: ED_REL621_00003 | D24: Short rural
A25: ED_REL621_00004 | D25: Long rural
D26: Total | E26: =IFERROR((E22*(E$87/E$91))+(E23*(E$88/E$91))+(E24*(E$89/E$91))+(E25*(E$90/E$91)),"") ->  | F26: =IFERROR((F22*(F$87/F$91))+(F23*(F$88/F$91))+(F24*(F$89/F$91))+(F25*(F$90/F$91)),"") ->  | G26: =IFERROR((G22*(G$87/G$91))+(G23*(G$88/G$91))+(G24*(G$89/G$91))+(G25*(G$90/G$91)),"") -> 
A27: ED_REL621_00006 | C27: Total value of excluded events* *see 3.3 of STPIS | D27: CBD
A28: ED_REL621_00007 | D28: Urban
A29: ED_REL621_00008 | D29: Short rural
A30: ED_REL621_00009 | D30: Long rural
D31: Total | E31: =IFERROR((E27*(E$87/E$91))+(E28*(E$88/E$91))+(E29*(E$89/E$91))+(E30*(E$90/E$91)),"") ->  | F31: =IFERROR((F27*(F$87/F$91))+(F28*(F$88/F$91))+(F29*(F$89/F$91))+(F30*(F$90/F$91)),"") ->  | G31: =IFERROR((G27*(G$87/G$91))+(G28*(G$88/G$91))+(G29*(G$89/G$91))+(G30*(G$90/G$91)),"") -> 
A32: ED_REL621_00011 | C32: Total sustained minutes off supply after removing excluded events | D32: CBD
A33: ED_REL621_00012 | D33: Urban
A34: ED_REL621_00013 | D34: Short rural
A35: ED_REL621_00014 | D35: Long rural
D36: Total | E36: =IFERROR(E26-E31,"") ->  | F36: =IFERROR(F26-F31,"") ->  | G36: =IFERROR(G26-G31,"") -> 
C39: TABLE 6.2.2 - UNPLANNED INTERRUPTIONS TO SUPPLY (SAIFI) - Historical, TARGET AND PROPOSED RELIABILITY
E41: Historical | J41: Target | K41: Proposed target
C42: SAIFI | E42: =PRCP_y5 -> 2010 | F42: =CRCP -> 2011 | G42: 2012 | H42: 2013 | I42: 2014 | J42: 2015 | K42: =FRCP -> 2016 | L42: 2017 | M42: 2018 | N42: 2019 | O42: 2020
A43: ED_REL622_00001 | C43: Total sustained customer interruptions | D43: CBD
A44: ED_REL622_00002 | D44: Urban
A45: ED_REL622_00003 | D45: Short rural
A46: ED_REL622_00004 | D46: Long rural
D47: Total | E47: =IFERROR((E43*(E$87/E$91))+(E44*(E$88/E$91))+(E45*(E$89/E$91))+(E46*(E$90/E$91)),"") ->  | F47: =IFERROR((F43*(F$87/F$91))+(F44*(F$88/F$91))+(F45*(F$89/F$91))+(F46*(F$90/F$91)),"") ->  | G47: =IFERROR((G43*(G$87/G$91))+(G44*(G$88/G$91))+(G45*(G$89/G$91))+(G46*(G$90/G$91)),"") -> 
A48: ED_REL622_00006 | C48: Total value of excluded events* *see 3.3 of STPIS | D48: CBD
A49: ED_REL622_00007 | D49: Urban
A50: ED_REL622_00008 | D50: Short rural
A51: ED_REL622_00009 | D51: Long rural
D52: Total | E52: =IFERROR((E48*(E$87/E$91))+(E49*(E$88/E$91))+(E50*(E$89/E$91))+(E51*(E$90/E$91)),"") ->  | F52: =IFERROR((F48*(F$87/F$91))+(F49*(F$88/F$91))+(F50*(F$89/F$91))+(F51*(F$90/F$91)),"") ->  | G52: =IFERROR((G48*(G$87/G$91))+(G49*(G$88/G$91))+(G50*(G$89/G$91))+(G51*(G$90/G$91)),"") -> 
A53: ED_REL622_00011 | C53: Total sustained customer interruptions after removing excluded events | D53: CBD
A54: ED_REL622_00012 | D54: Urban
A55: ED_REL622_00013 | D55: Short rural
A56: ED_REL622_00014 | D56: Long rural
D57: Total | E57: =IFERROR(E47-E52,"") ->  | F57: =IFERROR(F47-F52,"") ->  | G57: =IFERROR(G47-G52,"") -> 
C60: Table 6.2.3 - Unplanned momentary interruptions to supply (MAIFI) - Historical, target and proposed reliability
E62: Historical | J62: Estimate | K62: Proposed target
C63: MAIFI | E63: =PRCP_y5 -> 2010 | F63: =CRCP -> 2011 | G63: 2012 | H63: 2013 | I63: 2014 | J63: 2015 | K63: =FRCP -> 2016 | L63: 2017 | M63: 2018 | N63: 2019 | O63: 2020
A64: ED_REL623_00001 | C64: Total sustained customer interruptions | D64: CBD
A65: ED_REL623_00002 | D65: Urban
A66: ED_REL623_00003 | D66: Short rural
A67: ED_REL623_00004 | D67: Long rural
A68: ED_REL623_00005 | D68: Total
A69: ED_REL623_00006 | C69: Total value of excluded events* *see 3.3 of STPIS | D69: CBD
A70: ED_REL623_00007 | D70: Urban
A71: ED_REL623_00008 | D71: Short rural
A72: ED_REL623_00009 | D72: Long rural
A73: ED_REL623_00010 | D73: Total
A74: ED_REL623_00011 | C74: Total sustained customer interruptions after removing excluded events | D74: CBD
A75: ED_REL623_00012 | D75: Urban
A76: ED_REL623_00013 | D76: Short rural
A77: ED_REL623_00014 | D77: Long rural
A78: ED_REL623_00015 | D78: Total
C81: TABLE 6.2.4 - CUSTOMER NUMBERS
C83: The number of distribution customers is calculated as the average of the number of customers at the beginning of the reporting period and the number of customers at the end of the reporting period.
E85: Historical | J85: Estimate | K85: Forecast
C86: Average customer numbers | E86: =PRCP_y5 -> 2010 | F86: =CRCP -> 2011 | G86: 2012 | H86: 2013 | I86: 2014 | J86: 2015 | K86: =FRCP -> 2016 | L86: 2017 | M86: 2018 | N86: 2019 | O86: 2020
A87: ED_REL624_00001 | D87: CBD
A88: ED_REL624_00002 | D88: Urban
A89: ED_REL624_00003 | D89: Short rural
A90: ED_REL624_00004 | D90: Long rural
D91: Total | E91: =SUM(E87:E90) -> 0 | F91: =SUM(F87:F90) -> 0 | G91: 0 | H91: 0 | I91: 0 | J91: 0 | K91: 0 | L91: 0 | M91: 0 | N91: 0 | O91: 0
C93: TABLE 6.2.5 - CUSTOMER SERVICE
C95: The AER's definition of calls answered within 30 seconds is as follows: Calls to the fault line answered in 30 seconds where the time to answer a call is measured from when the call enters the telephone system of the call centre (including that time when it may be ringing unanswered by any response) and the caller speaks with a human operator, but excluding the time that the caller is connected to an automated interactive service that provides substantive information. This measure does not apply to: - calls to payment lines and automated interactive services; - calls abandoned by the customer within 30 seconds of the call being queued for response by a human operator. Where the time in which a telephone call is abandoned is not measured, then an estimate of the number of calls abandoned within 30 seconds will be determined by taking 20 per cent of all calls abandoned. Note: Being placed in a queuing system (automated or otherwise) does not constitute a response. 'Calls answered within 30 seconds' and 'Calls received' should be calculated excluding calls abandoned within 30 seconds of being queued for a human operator; and calls to payment lines and automated interactive services.
E97: Historical | J97: Target | K97: Proposed target
C98: Customer service | E98: =PRCP_y5 -> 2010 | F98: =CRCP -> 2011 | G98: 2012 | H98: 2013 | I98: 2014 | J98: 2015 | K98: =FRCP -> 2016 | L98: 2017 | M98: 2018 | N98: 2019 | O98: 2020
A99: ED_REL625_00001 | C99: Number of calls received
A100: ED_REL625_00002 | C100: Number of calls answered within 30 seconds
A101: ED_REL625_00003 | C101: Percentage of calls answered within 30 seconds | E101: =IFERROR((E100/E99),"") ->  | F101: =IFERROR((F100/F99),"") ->  | G101: =IFERROR((G100/G99),"") -> 

Sheet 6.4 Historical MEDs
B1: =SheetHeader -> REGULATORY REPORTING STATEMENT
B2: =dms_TradingName -> Victorian DNSP Reset
B3: =FRCP_span -> 2016 to 2020
B4: 6.4 HISTORICAL MAJOR EVENT DAY
B6: =CONCATENATE("Instructions This regulatory template requires the input of historical daily performance data for the calculation of the major event day (MED) boundaries for the regulatory years ", PRCP_y5, " to ", CRCP_y4, ". The MED boundary is calculated at the end of each reporting period (typically one regulatory year) for use during the next reporting period. The MED boundary is calculated from the daily unplanned SAIDI over five sequential regulatory", " years ending on the last day of the last complete reporting period — these values should reflect any exclusions permitted under clause 3.3(a) and 5.4 of the scheme.", " Note: The AER started collecting the historical daily performance data", " in the 2012-13 annual RINs and therefore will not seek to collect this data in future Reset RINs. However, the daily performance data collected in table 6.4.1 below is for the required period up to 2013.") -> Instructions This regulatory template requires the input of historical daily performance data for the calculation of the major event day (MED) boundaries for the regulatory years 2010 to 2014. The MED boundary is calculated at the end of each reporting period (typically one regulatory year) for use during the next reporting period. The MED boundary is calculated from the daily unplanned SAIDI over five sequential regulatory years ending on the last day of the last complete reporting period — these values should reflect any exclusions permitted under clause 3.3(a) and 5.4 of the scheme. Note: The AER started collecting the historical daily performance data in the 2012-13 annual RINs and therefore will not seek to collect this data in future Reset RINs. However, the daily performance data collected in table 6.4.1 below is for the required period up to 2013.
B8: TABLE 6.4.1 - HISTORICAL DAILY SAIDI
B10: Date | C10: Network SAIDI (after removing the impact of events excluded under 3.3(a))
B11: =DATE((PRCP_y1-1), 1,1) -> 2005-01-01 | C11: 0.000484890528
B12: =B11+1 -> 2005-01-02 | C12: 0.00849089326
B13: =B12+1 -> 2005-01-03 | C13: 0.001468828972
B14: =B13+1 -> 2005-01-04 | C14: 0.3832298664
B15: 2005-01-05 | C15: 0.001507761788
B16: 2005-01-06 | C16: 0.07176733749
B17: 2005-01-07 | C17: 0.002162540968
B18: 2005-01-08 | C18: 0.01602262351
B19: 2005-01-09 | C19: 0.01050478166
B20: 2005-01-10 | C20: 3.008391792
B21: 2005-01-11 | C21: 0.5654177491
B22: 2005-01-12 | C22: 2.917175743
B23: 2005-01-13 | C23: 0.03580757279
B24: 2005-01-14 | C24: 0.2651891073
B25: 2005-01-15 | C25: 0.001390963339
B26: 2005-01-16 | C26: 0.05670033765
B27: 2005-01-17 | C27: 0.0009379269337
B28: 2005-01-18 | C28: 0.146065308
B29: 2005-01-19 | C29: 0.0007255661185
B30: 2005-01-20 | C30: 0.6241461326
B31: 2005-01-21 | C31: 0.002105911417
B32: 2005-01-22 | C32: 0.01058618664
B33: 2005-01-23 | C33: 0.06142890514
B34: 2005-01-24 | C34: 0.6026269033
B35: 2005-01-25 | C35: 0.1973292088
B36: 2005-01-26 | C36: 0.15353333
B37: 2005-01-27 | C37: 0.8167609313
B38: 2005-01-28 | C38: 0.08451252575
B39: 2005-01-29 | C39: 0.00545767295
B40: 2005-01-30 | C40: 0.8274108262
B41: 2005-01-31 | C41: 0.1733465941
B42: 2005-02-01 | C42: 2.274232832
B43: 2005-02-02 | C43: 1.118653474
B44: 2005-02-03 | C44: 19.82978957
B45: 2005-02-04 | C45: 0.2549002973
B46: 2005-02-05 | C46: 0.0331116932
B47: 2005-02-06 | C47: 0.0007175908742
B48: 2005-02-07 | C48: 2.443022224
B49: 2005-02-08 | C49: 0.5675613576
B50: 2005-02-09 | C50: 0.05424350722
B51: 2005-02-10 | C51: 0.04565009138
B52: 2005-02-11 | C52: 0.002948131966
B53: 2005-02-12 | C53: 0.01804581977
B54: 2005-02-13 | C54: 0.001346808488
B55: 2005-02-14 | C55: 0.02387492002
B56: 2005-02-15 | C56: 0.01058004673
B57: 2005-02-16 | C57: 0.03402724017
B58: 2005-02-17 | C58: 0.01698534064
B59: 2005-02-18 | C59: 0.007426888802
B60: 2005-02-19 | C60: 0.01422102506
B61: 2005-02-20 | C61: 0.007935918781
B62: 2005-02-21 | C62: 0.005776076298
B63: 2005-02-22 | C63: 0.727456865
B64: 2005-02-23 | C64: 0.4849464988
B65: 2005-02-24 | C65: 0.01775242054
B66: 2005-02-25 | C66: 0.001838163816
B67: 2005-02-26 | C67: 0.001322063975
B68: 2005-02-27 | C68: 0.4280694685
B69: 2005-02-28 | C69: 0.0281026968
B70: 2005-03-01 | C70: 0.06378783015
B71: 2005-03-02 | C71: 0.0499416166
B72: 2005-03-03 | C72: 0.001400495994
B73: 2005-03-04 | C73: 0.002913878316
B74: 2005-03-05 | C74: 0.02714916164
B75: 2005-03-06 | C75: 0.0007231780323
B76: 2005-03-07 | C76: 0.001859096698
B77: 2005-03-08 | C77: 0.01355341464
B78: =B77+1 -> 2005-03-09 | C78: 0.01295017833
B79: 2005-03-10 | C79: 0.00286096285
B80: 2005-03-11 | C80: 0.5816291614
B81: 2005-03-12 | C81: 1.061434856
B82: 2005-03-13 | C82: 0.04248759132
B83: 2005-03-14 | C83: 0.0003174927947
B84: 2005-03-15 | C84: 0.006028835401
B85: 2005-03-16 | C85: 0.02359677004
B86: 2005-03-17 | C86: 0.002201283376
B87: 2005-03-18 | C87: 0.1463324291
B88: 2005-03-19 | C88: 0.001478105344
B89: 2005-03-20 | C89: 0.001090058595
B90: 2005-03-21 | C90: 0.3645240607
B91: 2005-03-22 | C91: 0.0002927989106
B92: 2005-03-23 | C92: 0.2825191995
B93: 2005-03-24 | C93: 0.01666837172
B94: 2005-03-25 | C94: 0.01303131537
B95: 2005-03-26 | C95: 0.001326414342
B96: 2005-03-27 | C96: 0.07780690088
B97: 2005-03-28 | C97: 0.000613819403
B98: 2005-03-29 | C98: 0.0265917854
B99: 2005-03-30 | C99: 0.1068574916
B100: 2005-03-31 | C100: 0.002557580846
B101: 2005-04-01 | C101: 0.02636246542
B102: 2005-04-02 | C102: 0.00800270276
B103: 2005-04-03 | C103: 1.253116268
B104: 2005-04-04 | C104: 0.001826474377
B105: 2005-04-05 | C105: 0.002737951956
B106: 2005-04-06 | C106: 0.0528692188
B107: 2005-04-07 | C107: 0.01045911724
B108: 2005-04-08 | C108: 0.003892255608
B109: 2005-04-09 | C109: 0.02869218804
B110: 2005-04-10 | C110: 0.5419314879
B111: 2005-04-11 | C111: 0.05173954968
B112: 2005-04-12 | C112: 0.1798637359
B113: 2005-04-13 | C113: 0.003396045806
B114: 2005-04-14 | C114: 0.5706940603
B115: 2005-04-15 | C115: 0.002329722615
B116: 2005-04-16 | C116: 0.04942742316
B117: 2005-04-17 | C117: 0.0005454788601
B118: 2005-04-18 | C118: 0.03180669637
B119: 2005-04-19 | C119: 0.00302300865
B120: 2005-04-20 | C120: 0.2393314893
B121: 2005-04-21 | C121: 0.01003329181
B122: 2005-04-22 | C122: 0.01021277195
B123: 2005-04-23 | C123: 0.001668109546
B124: 2005-04-24 | C124: 0.007985106668
B125: 2005-04-25 | C125: 0.0006369785398
B126: 2005-04-26 | C126: 0.02698536709
B127: 2005-04-27 | C127: 0.002076338887
B128: 2005-04-28 | C128: 0.001925012493
B129: 2005-04-29 | C129: 0.01110665343
B130: 2005-04-30 | C130: 0.00113670756
B131: 2005-05-01 | C131: 0.001965664061
B132: 2005-05-02 | C132: 0.000933690429
B133: 2005-05-03 | C133: 0.0006563913918
B134: 2005-05-04 | C134: 0.004180546244
B135: 2005-05-05 | C135: 0.001762077426
B136: 2005-05-06 | C136: 0.001063564662
B137: 2005-05-07 | C137: 0.0008073263108
B138: 2005-05-08 | C138: 0.0007511644805
B139: 2005-05-09 | C139: 0.03595410174
B140: 2005-05-10 | C140: 0.006672727464
B141: 2005-05-11 | C141: 1.024019713
B142: =B141+1 -> 2005-05-12 | C142: 1.810134402
B143: 2005-05-13 | C143: 0.01381932037
B144: 2005-05-14 | C144: 0.8587880979
B145: 2005-05-15 | C145: 0.01366838545
B146: 2005-05-16 | C146: 0.008420764433
B147: 2005-05-17 | C147: 0.08964832164
B148: 2005-05-18 | C148: 0.01375613831
B149: 2005-05-19 | C149: 0.003840065148
B150: 2005-05-20 | C150: 0.01637819377
B151: 2005-05-21 | C151: 0.0007757352812
B152: 2005-05-22 | C152: 0.0006809621926
B153: 2005-05-23 | C153: 0.003906757321
B154: 2005-05-24 | C154: 0.2280872334
B155: 2005-05-25 | C155: 0.01033377678
B156: 2005-05-26 | C156: 0.02448655802
B157: 2005-05-27 | C157: 0.008508517293
B158: 2005-05-28 | C158: 0.1360099126
B159: 2005-05-29 | C159: 0.003095920896
B160: 2005-05-30 | C160: 0.03034844906
B161: 2005-05-31 | C161: 1.209058903
B162: 2005-06-01 | C162: 0.0367597386
B163: 2005-06-02 | C163: 0.001620620736
B164: 2005-06-03 | C164: 0.03453007249
B165: 2005-06-04 | C165: 4.986509995
B166: 2005-06-05 | C166: 0.0003465258162
B167: 2005-06-06 | C167: 0.6057271267
B168: 2005-06-07 | C168: 0.007119530405
B169: 2005-06-08 | C169: 0.0138295303
B170: 2005-06-09 | C170: 0.02842561771
B171: 2005-06-10 | C171: 0.03568865881
B172: 2005-06-11 | C172: 0.1030371763
B173: 2005-06-12 | C173: 0.001732629081
B174: 2005-06-13 | C174: 0.002534188797
B175: 2005-06-14 | C175: 0.002016150203
B176: 2005-06-15 | C176: 0.1000549541
B177: 2005-06-16 | C177: 0.4721396744
B178: 2005-06-17 | C178: 0.02279719839
B179: 2005-06-18 | C179: 0.001309097528
B180: 2005-06-19 | C180: 0.01433006759
B181: 2005-06-20 | C181: 0.02450882591
B182: 2005-06-21 | C182: 0.01032576927
B183: 2005-06-22 | C183: 0.5494639351
B184: 2005-06-23 | C184: 0.002628695838
B185: 2005-06-24 | C185: 0.004802357776
B186: 2005-06-25 | C186: 0.3077674287
B187: 2005-06-26 | C187: 0.005306395326
B188: 2005-06-27 | C188: 0.01301046928
B189: 2005-06-28 | C189: 0.003027725566
B190: 2005-06-29 | C190: 0.003951794409
B191: 2005-06-30 | C191: 0.01710927464
B192: 2005-07-01 | C192: 0.0138085177
B193: 2005-07-02 | C193: 0.004333932843
B194: 2005-07-03 | C194: 0.02145663448
B195: 2005-07-04 | C195: 0.003055754422
B196: 2005-07-05 | C196: 0.04385618747
B197: 2005-07-06 | C197: 0.007990361277
B198: 2005-07-07 | C198: 0.08015505771
B199: 2005-07-08 | C199: 0.003003370061
B200: 2005-07-09 | C200: 0.003310691648
B201: 2005-07-10 | C201: 0.002343327105
B202: 2005-07-11 | C202: 0.003143061691
B203: 2005-07-12 | C203: 0.302533657
... 3094 more rows

Sheet 7.1 Policies and Procedures
C1: =SheetHeader -> REGULATORY REPORTING STATEMENT
C2: =dms_TradingName -> Victorian DNSP Reset
C3: =FRCP_span -> 2016 to 2020
C4: 7.1 PLANS, POLICIES, PROCEDURES AND STRATEGIES
C7: Instructions
C8: List and provide a brief description of key internal plans, policies, procedures or strategies that are used to plan and conduct day to day operations and that have been relied upon in the development of the regulatory proposal. Identify any internal plans, policies, procedures and strategies that have changed in the current regulatory control period or that are expected to change before the next regulatory control period where the change has been identified as a step change.
C14: TABLE 7.1.1 - PLANS, POLICIES, PROCEDURES AND STRATEGIES
D16: Brief description | E16: Relevance to regulatory proposal | F16: Expenditure impact
D17: Description of the plan, policy, procedure or strategy. | E17: Identify the element of the proposal/supporting documents that the policy, plan, procedure or strategy is relevant to e.g. replacement capex, capacity utilisation thresholds, opex | F17: Is this policy, plan or procedure identified in the response to section 4 'Step Changes' of the notice (yes or no)?
C18: Corporate
C19: Jemena Business Plan | D19: The Jemena Business Plan outlines Jemena Vision, Values, and Strategic Objectives for the next 5 years from 2015-2020. | E19: The business plan is a result of our extensive planning and governance processes, and reflects our focus on safety, people, performance, customers and growth. This document is relevant to all element of the regulatory proposal. | F19: no
C22: Governance framework
C23: JEN MA 0001 -JEN Asset Management System | D23: Provides overview of the asset management system including references to key documents. | E23: This document is relevant to all elements of the regulatory proposal. | F23: no
C24: JEM PL 0002 Asset Management System Framework | D24: Diagram representation of the Asset Management Framework | E24: This document is relevant to all elements of the regulatory proposal. | F24: no
C25: JAA PO 0050 - Risk Management Policy | D25: The Risk Management Policy ensures that there is a systematic and strategic approach to identifying and managing risk acros our business and ensuring that we meet business, regulatory and statutory objectives. | E25: This document is relevant to all elements of the regulatory proposal. | F25: no
C26: Risk Management Manual | D26: 0 | E26: This document is relevant to all elements of the regulatory proposal. | F26: no
C27: Compliance Management Framework | D27: Outlines the compliance management framework for ensuring JEN meets its requirements with internal governing bodies, compliance with the law policy, process and procedures, reporting, and legislation. | E27: This document is relevant to all elements of the regulatory proposal. | F27: no
C28: Compliance with the Law Policy | D28: Outlines the compliance management framework for ensuring JEN meets its requirements with internal governing bodies, compliance with the law policy, process and procedures, reporting, and legislation. | E28: This document is relevant to all elements of the regulatory proposal. | F28: no
C29: JEM PO 0003 - Contracting and Procuring Entity Policy | D29: This document outlines Jemena's contracting and procuring entity policy. | E29: This document is relevant to all elements of the regulatory proposal. | F29: no
C40: Accounting policies, procedures and methodologies (including a capitalisation policy, depreciation policy and an approved expenditure allocation methodology)
C41: CAPEX, OPEX and Project Accounting Policy | D41: Provides the accounting principles SGSP (Australia) Assets Pty Ltd (SGSPAA) and its controlled entities (SGSPAA Group) should apply when faced with decisions to either capitalise or expense costs incurred in relation to the acquisition or construction of assets. To identify the process and controls related to CAPEX and Capital Projects. To prescribe the procedures to be followed when dealing with additional, unexpected or unbudgeted costs. | E41: This document is relevant to all elements of the regulatory proposal. | F41: no
C42: Jemena Cost Allocation Methodology | D42: Establishes a method of attributing or allocating costs to services provided by Jemena to assets owned and managed. Costs of services cover both direct and indirect costs applying to capital, operating and maintenance expenditure. | E42: This document is relevant to all elements of the regulatory proposal. | F42: no
C43: Jemena Cost Allocation Methodology | D43: Establishes a method of attributing or allocating costs to services provided by Jemena to assets owned and managed. Costs of services cover both direct and indirect costs applying to capital, operating and maintenance expenditure. | E43: This document is relevant to all elements of the regulatory proposal. | F43: no
C44: Asset management plan or equivalent documentation
C45: Asset Management Policies | D45: please refer to bottom of table for an additional policy (health and safety) which could not be added due to locked Excel file
C46: Asset Management Policy | D46: Provides the asset management policy commitments | E46: Network CAPEX and OPEX | F46: no
C47: Environmental Policy | D47: Provides the environmental policy commitments | E47: Network CAPEX and OPEX | F47: no
C48: Asset Management Strategies
C49: Asset Management Strategy and Objectives | D49: Defines the asset management strategy and objectives across all of the asset classes consistent with the business plan. | E49: Network CAPEX | F49: no
C50: JEN PL 0028 Automatic Circuit Recloser | D50: Defines the asset strategy for the specific asset class in consideration of full lifecycle costs. | E50: Network CAPEX and OPEX | F50: no
C51: JEN PL 0009 JEN Communications Network Devices | D51: Defines the asset strategy for the specific asset class in consideration of full lifecycle costs. | E51: Network CAPEX and OPEX | F51: no
C52: JEN PL 0026 Conductors and Connectors | D52: Defines the asset strategy for the specific asset class in consideration of full lifecycle costs. | E52: Network CAPEX and OPEX | F52: no
C53: Asset Management Plans
C54: ELE PL 0019 Asset Management Plan | D54: Outlines the CAPEX Plans for the Network. | E54: Network CAPEX and OPEX | F54: no
C55: ELE PL 0004 Strategic Asset Management Plan | D55: Provides the longer term (20 Year) forecast for the network. | E55: Network CAPEX and OPEX | F55: no
C56: ELE PL 0005 Capital and Operational Work Plan | D56: Provides the detailed capital and operation work plan for the following two years. | E56: Network CAPEX and OPEX | F56: no
C57: JEN PL 0100 Bushfire Mitigation Plan | D57: It is the policy of Jemena Electricity Networks (JEN) to achieve high levels of public safety and supply reliability through preventative and corrective maintenance programs which are designed to minimise the risk of fire ignition from the JEN supply networks. This plan details the policies and procedures that are to be followed by these programs in order to achieve compliance with Electricity Safety Act 1998, the Electricity Safety (Bushfire Mitigation) Regulations 2013 and the Electricity Safety (Electric Line Clearance) Regulations 2010. | E57: Network CAPEX and OPEX | F57: no
C58: JEN PL 0101 Electric Line Clearance Plan | D58: It is the policy of Jemena Electricity Networks (Vic) Ltd. (JEN), to achieve compliance with the Electricity Safety (Electric Line Clearance) Regulations 2010, thus achieving high levels of public safety and supply reliability through preventive and corrective maintenance programs. | E58: Network CAPEX and OPEX | F58: no
C59: ELE PL 0018 High Voltage Installations Replacement Program - Transformer Platform Heights Rectification | D59: Outlines specific strategic plans for tranformer platform height rectification | E59: Network CAPEX and OPEX | F59: no
C60: ELE PL 0052 High Voltage Installations Replacement Program - Enclosed Switches | D60: Outlines specific strategic plans for Enclosed switches | E60: Network CAPEX and OPEX | F60: no
C61: ELE PL 0053 High Voltage Installations Replacement Program - Overhead Switches | D61: Outlines specific strategic plans for overhead switches | E61: Network CAPEX and OPEX | F61: no
C62: ELE PL 0003 Bushfire Mitigation Strategic Plan 2016-2020 | D62: It is the policy of Jemena Electricity Networks (JEN) to achieve high levels of public safety and supply reliability through preventative and corrective maintenance programs which are designed to minimise the risk of fire ignition from the JEN supply networks. This plan details the policies and procedures that are to be followed by these programs in order to achieve compliance with Electricity Safety Act 1998, the Electricity Safety (Bushfire Mitigation) Regulations 2013 and the Electricity Safety (Electric Line Clearance) Regulations 2010. | E62: Network CAPEX and OPEX | F62: no
C63: ELE PL 00016 Electric Line Clearance Engineering Solutions -Strategic Planning Paper | D63: It is the policy of Jemena Electricity Networks (Vic) Ltd. (JEN), to achieve compliance with the Electricity Safety (Electric Line Clearance) Regulations 2010, thus achieving high levels of public safety and supply reliability through preventive and corrective maintenance programs. | E63: Network CAPEX and OPEX | F63: no
C64: ELE PL 0010 Non Preferred Service Replacement - Strategic Planning Paper | D64: This outlines the strategic plans for this category of asset. | E64: Network CAPEX and OPEX | F64: no
C65: ELE PL 0020 Environmental, Safety and Legal Program - Strategic Planning Paper | D65: This outlines the strategic plans for this category of asset. | E65: Network CAPEX and OPEX | F65: no
C66: ELE PL 0014 LV Mains Removal in the HBRA - Strategic Planning Paper | D66: This outlines the strategic plans for this category of asset. | E66: Network CAPEX and OPEX | F66: no
C67: ELE PL 0015 Pole Top Fire Mitigation - Strategic Planning Paper | D67: This outlines the strategic plans for this category of asset. | E67: Network CAPEX and OPEX | F67: no
C68: ELE PL 0011 Pole Replacement and Reinforcement - Strategic Planning Paper | D68: This outlines the strategic plans for this category of asset. | E68: Network CAPEX and OPEX | F68: no
C69: ELE PL 0012 Pole Top Structure Replacement - Strategic Planning Paper | D69: This outlines the strategic plans for this category of asset. | E69: Network CAPEX and OPEX | F69: no
C70: ELE PL 0013 Public Lighting Switch Wire Removal - Strategic Planning Paper | D70: This outlines the strategic plans for this category of asset. | E70: Network CAPEX and OPEX | F70: no
C71: ELE PL 0021 Adopting Fault Current Limiter Technology to Reduce the Risk of Bushfire Ignition in JEN -Strategic Planning Paper | D71: This outlines the strategic plans for this category of asset. | E71: Network CAPEX and OPEX | F71: no
C72: ELE PL 0012 Network Asset Useful Lives Procedure | D72: This outlines the strategic plans for this category of asset. | E72: Network CAPEX and OPEX | F72: no
C73: ELE PL 0002 Electric Line Clearance Strategic Plan 2016-2020 | D73: It is the policy of Jemena Electricity Networks (Vic) Ltd. (JEN), to achieve compliance with the Electricity Safety (Electric Line Clearance) Regulations 2010, thus achieving high levels of public safety and supply reliability through preventive and corrective maintenance programs. | E73: Network CAPEX and OPEX | F73: no
C77: Capital expenditure policies and procedures (including capex approval policies and procedures and replacement policy)
C78: <insert relevant policy, plan, strategy etc>
C79: Internal standards for network planning, design, maintenance and operation
C80: JEN PL 0007 Network Planning Criteria | D80: Provides the criteria used for probabilistic planning of the network | E80: Network CAPEX and OPEX | F80: no
C81: Zone substation primary design standard | D81: Standard designs for primary substation equipment. | E81: Network CAPEX and OPEX | F81: no
C82: JEN Assurance Plan | E82: Network CAPEX and OPEX | F82: no
C83: Service Inspection Manual | D83: Provides the inspection criteria for services. | E83: Network CAPEX and OPEX | F83: no
C84: Asset Inspection Manual | D84: Provides the inspection criteria for all assets. | E84: Network CAPEX and OPEX | F84: no
C85: Overhead Line Design Manual | D85: Design manual | E85: Network CAPEX and OPEX | F85: no
C86: Distribution Construction Manual | D86: Design manual | E86: Network CAPEX and OPEX | F86: no
C87: Distribution Design Drafting standards | D87: Design standard | E87: Network CAPEX and OPEX | F87: no
C88: Protection and Control Settings Standard | D88: Design standard | E88: Network CAPEX and OPEX | F88: no
C89: Public Lighting Policy and Technical Standard | D89: Design standard | E89: Network CAPEX and OPEX | F89: no
C90: Communications design, construction and installation standard | D90: Design standard | E90: Network CAPEX and OPEX | F90: no
C91: JEN Auto Reclose Policy | D91: Network policy | E91: Network CAPEX and OPEX | F91: no
C92: JEN Feeder Protection Policy | D92: Network policy | E92: Network CAPEX and OPEX | F92: no
C93: JEN Zone Substation & SubTransmission Protection Policy | D93: Network policy | E93: Network CAPEX and OPEX | F93: no
C94: Overhead Service Replacement Policy | D94: Network policy | E94: Network CAPEX and OPEX | F94: no
C95: Overhead Service Attachment Policy | D95: Network policy | E95: Network CAPEX and OPEX | F95: no
C96: Overhead Service Supplies Policy - Customer Initiated | D96: Network policy | E96: Network CAPEX and OPEX | F96: no
C97: Overhead Service Supplies Policy - Network Initiated | D97: Network policy | E97: Network CAPEX and OPEX | F97: no
C98: Overhead Service Height Policy | D98: Network policy | E98: Network CAPEX and OPEX | F98: no
C99: Service Installation and Testing Policy | D99: Network policy | E99: Network CAPEX and OPEX | F99: no
C100: LV Service Breakaway Device Policy | D100: Network policy | E100: Network CAPEX and OPEX | F100: no
C101: Independent Audits for Overhead Services Policy | D101: Network policy | E101: Network CAPEX and OPEX | F101: no
C102: Large LV Supply Protection Policy | D102: Network policy | E102: Network CAPEX and OPEX | F102: no
C103: Underground Cable Warning Sign Policy | D103: Network policy | E103: Network CAPEX and OPEX | F103: no
C104: Standard Nomenclature Policy | D104: Network policy | E104: Network CAPEX and OPEX | F104: no
C105: Design and Planning Earthing Policy | D105: Network policy | E105: Network CAPEX and OPEX | F105: no
C106: Asset Performance Unauthorised Climbing Policy | D106: Network policy | E106: Network CAPEX and OPEX | F106: no
C107: HV Distribution Equipment Earth Test Maintenance Policy | D107: Network policy | E107: Network CAPEX and OPEX | F107: no
C108: Sulphur Hexafluoride Insulated Switchgear Policy | D108: Network policy | E108: Network CAPEX and OPEX | F108: no
C109: Zone Substations Underground Assets Records Policy | D109: Network policy | E109: Network CAPEX and OPEX | F109: no
C110: Transformer Mounting Policy | D110: Network policy | E110: Network CAPEX and OPEX | F110: no
C111: JEN Zone Substation Configuration Policy | D111: Network policy | E111: Network CAPEX and OPEX | F111: no
C112: Network Construction and Design Policy | D112: Network policy | E112: Network CAPEX and OPEX | F112: no
C113: High Voltage Customer Connection Policy | D113: Network policy | E113: Network CAPEX and OPEX | F113: no
C114: ELE PL 0012 Network Asset Useful Lives Procedure | D114: Network procedure | E114: Network CAPEX and OPEX | F114: no
C159: Procurement and contracting out policies
C160: JEM PO 0026 Procurement Policy | D160: Board policy for purchasing | E160: All contracted expenditure, relating to both CAPEX and OPEX | F160: no
C161: Information technology policies or strategies
C162: IT AMP | D162: Provides the forecast IT plans for the next 5 years. | E162: IT CAPEX and OPEX | F162: no
C198: Demand management policies or strategies
C199: Distribution Annual Planning Report | D199: The JEN DAPR provides advance information to National Electricity Market participants and interested parties on the emerging constraints on the Jemena electricity network, thereby facilitating the proposal of demand management options for managing constraints on the network. | E199: - | F199: no
C200: Demand management innovation allowance - projects and proposals | D200: This outlines Jemena's demand management proposals. | E200: - | F200: no
C201: Demand Side Engagement Strategy | D201: This outlines Jemena's demand side engagemement strategy. | E201: -
C202: Self insurance guidelines or policy
C203: <insert relevant policy, plan, strategy etc>
C204: Land and easement acquisition polices
C205: <insert relevant policy, plan, strategy etc>
C207: Asset Management Strategies (continued from above)
C208: JEN PL 0021 Zone Substation Protection and Control Equipment | D208: Defines the asset strategy for the specific asset class in consideration of full lifecycle costs. | E208: Network CAPEX and OPEX | F208: no
C209: JEN PL 0037 Grounds/Domestic Management of Zone and Non-Pole Type Substations | D209: Defines the asset strategy for the specific asset class in consideration of full lifecycle costs. | E209: Network CAPEX and OPEX | F209: no
C210: JEN PL 0042 Zone Substation Transformers | D210: Defines the asset strategy for the specific asset class in consideration of full lifecycle costs. | E210: Network CAPEX and OPEX | F210: no
C211: ELE PL 0025 Northern Growth Corridor | D211: Defines the network development strategy for a specific region in accordance with the asset management strategy and objectives, and the network planning criteria. | E211: Network CAPEX and OPEX | F211: no
C212: ELE PL 0026 Fairfield/Alphington | D212: Defines the network development strategy for a specific region in accordance with the asset management strategy and objectives, and the network planning criteria. | E212: Network CAPEX and OPEX | F212: no
C213: ELE PL 0027 Flemington | D213: Defines the network development strategy for a specific region in accordance with the asset management strategy and objectives, and the network planning criteria. | E213: Network CAPEX and OPEX | F213: no
C214: ELE PL 0028 Melbourne Airport | D214: Defines the network development strategy for a specific region in accordance with the asset management strategy and objectives, and the network planning criteria. | E214: Network CAPEX and OPEX | F214: no
C215: ELE PL 0029 Preston Area Conversion | D215: Defines the network development strategy for a specific region in accordance with the asset management strategy and objectives, and the network planning criteria. | E215: Network CAPEX and OPEX | F215: no
C216: ELE PL 0030 Sunbury / Diggers Rest | D216: Defines the network development strategy for a specific region in accordance with the asset management strategy and objectives, and the network planning criteria. | E216: Network CAPEX and OPEX | F216: no
C217: ELE PL 0031 Plumpton | D217: Defines the network development strategy for a specific region in accordance with the asset management strategy and objectives, and the network planning criteria. | E217: Network CAPEX and OPEX | F217: no
C218: ELE PL 0017 Distribution Substations | D218: Defines the network development strategy for distribution substations in accordance with the asset management strategy and objectives, and the network planning criteria. | E218: Network CAPEX and OPEX | F218: no
C219: ELE PL 0017 Distribution Feeders | D219: Defines the network development strategy for distribution feeders in accordance with the asset management strategy and objectives, and the network planning criteria. | E219: Network CAPEX and OPEX | F219: no
C220: Disaster recovery policy
C221: JEM PL 0050 Emergency Management Framework | D221: This outlines Jemena's Emergency Management Framework | E221: OPEX | F221: no
C222: Alerts, Triggers & Notification Process | D222: This outlines Jemena's alerts, triggers and notification process. | E222: OPEX | F222: no
C223: IT Disaster Recovery Plan | D223: This outlines Jemena's disaster recovery plans. | E223: OPEX | F223: no
C224: Asset Management Policies (continued from above)
C225: Health and Safety Policy | D225: Provides the health and safety policy commitments. | E225: Network CAPEX and OPEX | F225: no
C226: Asset Management Strategies (continued from above)
C227: JEN PL 0034 Earthing Systems | D227: Defines the asset strategy for the specific asset class in consideration of full lifecycle costs. | E227: Network CAPEX and OPEX | F227: no
C228: JEN PL 0045 Electricity Metering and Associated Communications Assets | D228: Defines the asset strategy for the specific asset class in consideration of full lifecycle costs. | E228: Network CAPEX and OPEX | F228: no
C229: JEN PL 0010 GPS Clocks | D229: Defines the asset strategy for the specific asset class in consideration of full lifecycle costs. | E229: Network CAPEX and OPEX | F229: no
C230: JEN PL 0030 High Voltage Outdoor Overhead Fuse | D230: Defines the asset strategy for the specific asset class in consideration of full lifecycle costs. | E230: Network CAPEX and OPEX | F230: no
C231: JEN PL 0036 Low Voltage Overhead Services | D231: Defines the asset strategy for the specific asset class in consideration of full lifecycle costs. | E231: Network CAPEX and OPEX | F231: no
C232: JEN PL 0004 Metallic Supervisory Cables and Fibre Optic Cables | D232: Defines the asset strategy for the specific asset class in consideration of full lifecycle costs. | E232: Network CAPEX and OPEX | F232: no
C233: JEN PL 0006 Multiplexers and Voice Frequency Equipment | D233: Defines the asset strategy for the specific asset class in consideration of full lifecycle costs. | E233: Network CAPEX and OPEX | F233: no
C234: JEN PL 0033 Non Pole Type Distribution Substations | D234: Defines the asset strategy for the specific asset class in consideration of full lifecycle costs. | E234: Network CAPEX and OPEX | F234: no
C235: JEN PL 0027 Overhead Line Switchgear | D235: Defines the asset strategy for the specific asset class in consideration of full lifecycle costs. | E235: Network CAPEX and OPEX | F235: no
C236: JEN PL 0024 Poles | D236: Defines the asset strategy for the specific asset class in consideration of full lifecycle costs. | E236: Network CAPEX and OPEX | F236: no
C237: JEN PL 0025 Pole top structures | D237: Defines the asset strategy for the specific asset class in consideration of full lifecycle costs. | E237: Network CAPEX and OPEX | F237: no
C238: JEN PL 0032 Pole Type Transformers | D238: Defines the asset strategy for the specific asset class in consideration of full lifecycle costs. | E238: Network CAPEX and OPEX | F238: no
C239: JEN PL 0022 JEN PQM System | D239: Defines the asset strategy for the specific asset class in consideration of full lifecycle costs. | E239: Network CAPEX and OPEX | F239: no
C240: JEJN PL 0029 Public Lighting | D240: Defines the asset strategy for the specific asset class in consideration of full lifecycle costs. | E240: Network CAPEX and OPEX | F240: no
C241: JEN PL 0044 Real Time Systems | D241: Defines the asset strategy for the specific asset class in consideration of full lifecycle costs. | E241: Network CAPEX and OPEX | F241: no
C242: JEN PL 0007 JEN Remote Terminal Unit | D242: Defines the asset strategy for the specific asset class in consideration of full lifecycle costs. | E242: Network CAPEX and OPEX | F242: no
C243: JEN PL 0031 Distribution Surge Arresters | D243: Defines the asset strategy for the specific asset class in consideration of full lifecycle costs. | E243: Network CAPEX and OPEX | F243: no
C244: JEN PL 0035 Underground Distribution Systems | D244: Defines the asset strategy for the specific asset class in consideration of full lifecycle costs. | E244: Network CAPEX and OPEX | F244: no
C245: JEN PL 0005 JEN iNet Radio and 3G Communications Systems | D245: Defines the asset strategy for the specific asset class in consideration of full lifecycle costs. | E245: Network CAPEX and OPEX | F245: no
C246: JEN PL 0038 Zone Substations Capacitor Banks | D246: Defines the asset strategy for the specific asset class in consideration of full lifecycle costs. | E246: Network CAPEX and OPEX | F246: no
C247: JEN PL 0039 Zone Substation Circuit Breakers | D247: Defines the asset strategy for the specific asset class in consideration of full lifecycle costs. | E247: Network CAPEX and OPEX | F247: no
C248: JEN PL 0023 JEN Zone Substation DC Supply System | D248: Defines the asset strategy for the specific asset class in consideration of full lifecycle costs. | E248: Network CAPEX and OPEX | F248: no
C249: JEN PL 0041 Zone Substation Disconnectors and Buses | D249: Defines the asset strategy for the specific asset class in consideration of full lifecycle costs. | E249: Network CAPEX and OPEX | F249: no
C250: JEN PL 0040 Zone Substation Instrument Transformer | D250: Defines the asset strategy for the specific asset class in consideration of full lifecycle costs. | E250: Network CAPEX and OPEX | F250: no

Sheet 7.2 Contingent projects
C1: =SheetHeader -> REGULATORY REPORTING STATEMENT
C2: =dms_TradingName -> Victorian DNSP Reset
C3: =FRCP_span -> 2016 to 2020
C4: 7.2 CONTINGENT PROJECTS
C6: TABLE 7.2.1 - PROPOSED CONTINGENT PROJECTS FOR THE FORTHCOMING REGULATORY CONTROL PERIOD
C8: Proposed contingent project name | D8: Proposed contingent capital expenditure ($0's, nominal) | E8: Proposed trigger events | F8: =CONCATENATE("Proposed annual revenue requirement for ", FRCP_y1, " ($0's, nominal)") -> Proposed annual revenue requirement for 2016 ($0's, nominal) | G8: =CONCATENATE("5% of the annual revenue requirement for ",FRCP_y1,"") -> 5% of the annual revenue requirement for 2016
A9: CON721_1 | G9: =+F9*0.05 -> 0
A10: CON721_2 | F10: =+$F$9 -> 0 | G10: =+F10*0.05 -> 0
A11: CON721_3 | F11: =+$F$9 -> 0 | G11: 0
A12: CON721_4 | F12: 0 | G12: 0
A13: CON721_5 | F13: 0 | G13: 0
A14: CON721_6 | F14: 0 | G14: 0
A15: CON721_7 | F15: 0 | G15: 0
A16: CON721_8 | F16: 0 | G16: 0
A17: CON721_9 | F17: 0 | G17: 0
A18: CON721_10 | F18: 0 | G18: 0
A19: CON721_11 | F19: 0 | G19: 0
A20: CON721_12 | F20: 0 | G20: 0
A21: CON721_13 | F21: 0 | G21: 0
A22: CON721_14 | F22: 0 | G22: 0
A23: CON721_15 | F23: 0 | G23: 0
A24: CON721_16 | F24: 0 | G24: 0
A25: CON721_17 | F25: 0 | G25: 0
A26: CON721_18 | F26: 0 | G26: 0
A27: CON721_19 | F27: 0 | G27: 0
A28: CON721_20 | F28: 0 | G28: 0
A29: CON721_21 | F29: 0 | G29: 0
A30: CON721_22 | F30: 0 | G30: 0
A31: CON721_23 | F31: 0 | G31: 0
A32: CON721_24 | F32: 0 | G32: 0
A33: CON721_25 | F33: 0 | G33: 0
A34: CON721_26 | F34: 0 | G34: 0
A35: CON721_27 | F35: 0 | G35: 0
A36: CON721_28 | F36: 0 | G36: 0
A37: CON721_29 | F37: 0 | G37: 0
A38: CON721_30 | F38: 0 | G38: 0
A39: CON721_31 | F39: 0 | G39: 0
A40: CON721_32 | F40: 0 | G40: 0
A41: CON721_33 | F41: 0 | G41: 0
A42: CON721_34 | F42: 0 | G42: 0
A43: CON721_35 | F43: 0 | G43: 0
A44: CON721_36 | F44: 0 | G44: 0
A45: CON721_37 | F45: 0 | G45: 0
A46: CON721_38 | F46: 0 | G46: 0

Sheet 7.3 Obligations
C1: =SheetHeader -> REGULATORY REPORTING STATEMENT
C2: =dms_TradingName -> Victorian DNSP Reset
C3: =FRCP_span -> 2016 to 2020
C4: 7.3 OBLIGATIONS, REQUIREMENTS & STANDARDS
C6: Instructions
C7: Outline those obligations and requirements that have been relied upon in the development of the regulatory proposal.
C11: TABLE 7.3.1 - OBLIGATIONS OR REQUIREMENTS
D13: Brief description | E13: Relevance to regulatory proposal | F13: Expenditure impact | G13: EE Additional Data (not required by the AER)
D14: Description of relevant obligations or requirements within the instrument (e.g. safety obligations, reliability targets) | E14: Identify what element of the proposal/supporting documents the obligation or requirement is relevant to e.g. replacement capex, capacity utilisation thresholds, opex | F14: Is the obligation or requirement identified in the response to section 4 'Step Changes' of the notice (yes or no)? | G14: Location (cut and paste location into browser)
C15: Legislation
C16: Victorian Government | D16: Building Act 1993 (Vic) Building Regulations 2006 (Vic) | E16: Capex | F16: No
C17: Victorian Government | D17: Coastal Management Act 1995 (Vic) | E17: Capex | F17: No
C18: Victorian Government | D18: Conservation, Forests and Lands Act 1987 (Vic) | E18: Capex | F18: No
C19: Victorian Government | D19: Dangerous Goods Act 1985 (Vic) (and various regulations) | E19: Opex | F19: No
C20: Victorian Government | D20: Duties Act 2000 (Vic) | E20: Business as usual | F20: No
C21: Victorian Government | D21: Electricity Industry Act 2000 (Vic) (and various regulations) | E21: Capex and Opex | F21: No
C22: Victorian Government | D22: Electricity Safety Act 1998 (Vic) (and various regulations) | E22: Capex and Opex | F22: Yes
C23: Victorian Government | D23: Emergency Management Act 1986 (Vic) Emergency Management Regulations 2003 (Vic) | E23: Opex | F23: No
C24: Victorian Government | D24: Emergency Management Act 2013 (Vic) | E24: Opex | F24: No
C25: Victorian Government | D25: Energy Safe Victoria Act 2005 (Vic) | F25: No
C26: Victorian Government | D26: Environment Protection Act 1970 (Vic) (and various regulations) | E26: Capex and Opex | F26: No
C27: Victorian Government | D27: Equipment (Public Safety) Act 1994 (Vic) (and various regulations) | E27: Capex and Opex | F27: No
C28: Victorian Government | D28: Essential Services Act 1958 (Vic) | F28: No
C29: Victorian Government | D29: Essential Services Commission Act 2001 (Vic) Essential Services Commission Regulations 2011 (Vic) | F29: No
C30: Victorian Government | D30: Fences Act 1968 (Vic) | E30: Capex and Opex | F30: No
C31: Victorian Government | D31: Freedom of Information Act 1982 (Vic) (and various regulations) | E31: Business as usual | F31: No
C32: Victorian Government | D32: Heavy Vehicle National Law Application Act 2013 (Vic) Heavy Vehicle National Law Application (Infringements) Regulations 2013 (Vic) | E32: Opex | F32: No
C33: Victorian Government | D33: Land Acquisition and Compensation Act 1986 (Vic) Land Acquisition and Compensation Act 1986 No. 121 (Vic) | E33: Capex and Opex | F33: No
C34: Victorian Government | D34: Land Act 1958 (Vic) Land Tax Regulations 2005 (Vic) | E34: Business as usual | F34: No
C35: Victorian Government | D35: Land Tax Act 2005 (Vic) | F35: No
C36: Victorian Government | D36: National Electricity (Victoria) Act 2005 (Vic) | F36: No
C37: Victorian Government | D37: Occupational Health And Safety Act 2004 (Vic) (and various regulations) | E37: Capex and Opex | F37: No
C38: Victorian Government | D38: Payroll Tax Act 2007 (Vic) | F38: No
C39: Victorian Government | D39: Privacy and Data Protection Act 2014 (Vic) | E39: Business as usual | F39: No
C40: Victorian Government | D40: Property Law Act 1958 (Vic) Property Law (Fees) Regulations 2004 (Vic) | E40: Capex and Opex | F40: No
C41: Victorian Government | D41: Retail Leases Act 2003 (Vic) Retail Leases Regulations 2013 (Vic) | E41: Capex and Opex | F41: No
C42: Victorian Government | D42: Road Safety Act 1986 (Vic) (and various regulations) | E42: Capex and Opex | F42: No
C43: Victorian Government | D43: Sustainability Victoria Act 2005 (Vic) | E43: Business as usual | F43: No
C44: Victorian Government | D44: Victorian Energy Efficiency Target Act 2007 (Vic) Victorian Energy Efficiency Target Regulations 2008 (Vic) | F44: No
C45: Victorian Government | D45: Victorian Renewable Energy Act 1976 (Vic) | F45: No
C46: Victorian Government | D46: Water Act 1989 (Vic) (and various regulations) | E46: Capex and Opex | F46: No
C47: Victorian Government | D47: Workers Compensation Act 1958 (Vic) Workers Compensation Regulations 1995 (Vic) | E47: Business as usual | F47: No
C48: Victorian Government | D48: Workplace Injury Rehabilitation and Compensation Act 2013 (Vic) Workplace Injury Rehabilitation and Compensation Regulations 2014 (VIC) | E48: Business as usual | F48: No
C49: Commonwealth legislation and regulations
C50: Commonwealth Government | D50: A New Tax System (Goods and Services Tax) Act 1999 (Cth) A New Tax System (Goods and Services Tax) Regulations 1999 (Cth) | E50: Capex and Opex | F50: No
C51: Commonwealth Government | D51: Competition and Consumer Act 2010 (Cth) Competition and Consumer Regulations 2010 (Cth) | E51: Business as usual | F51: No
C52: Commonwealth Government | D52: Corporations Act 2001 (Cth) | E52: Business as usual | F52: No
C53: Commonwealth Government | D53: Corporations Regulations 2001 (Cth) | E53: Business as usual | F53: No
C54: Commonwealth Government | D54: Environment Protection and Biodiversity Conservation Act 1999 (Cth) Environment Protection and Biodiversity Conservation Regulations 2000 (Cth) | E54: Capex and Opex | F54: No
C55: Commonwealth Government | D55: Fair Work Act 2009 (Cth) Fair Work Regulations 2009 (Cth) | E55: Business as usual | F55: No
C56: Commonwealth Government | D56: Fringe Benefits Tax Act 1986 (Cth) Fringe Benefits Tax Assessment Act 1986 (Cth) Fringe Benefits Tax Regulations 1992 (Cth) | E56: Opex | F56: No
C57: Commonwealth Government | D57: Fuel Tax Act 2006 (Cth) | E57: Opex | F57: No
C58: Commonwealth Government | D58: National Harmonisation of Work Health and Safety Regulations 2011 (Cth) | E58: Capex and Opex | F58: No
C59: Commonwealth Government | D59: Independent Contractors Act 2006 (Cth) Independent Contractors Regulations 2007 (Cth) | E59: Capex and Opex | F59: No
C60: Commonwealth Government | D60: Income Tax Act 1986 (Cth) | E60: Opex | F60: No
C61: Commonwealth Government | D61: Income Tax Assessment Act 1936 (Cth) Income Tax Assessment Act 1997 (Cth) Income Tax Assessment Regulations 1997 (Cth) Income Tax Regulations 1936 (Cth) | E61: Opex | F61: No
C62: Commonwealth Government | D62: National Greenhouse and Energy Reporting Act 2007 (Cth) National Greenhouse and Energy Reporting Regulations 2008 (Cth) | E62: Business as usual | F62: No
C63: Commonwealth Government | D63: Native Title Act 1993 (Cth) Native Title (Indigenous Land Use Agreements) Regulations 1999 (Cth) | E63: Opex | F63: No
C64: Commonwealth Government | D64: Privacy Act 1988 (Cth) Privacy Regulation 2013 (Cth) | E64: Business as usual | F64: No
C65: Commonwealth Government | D65: Superannuation Guarantee (Administration) Act 1992 (Cth) Superannuation Guarantee (Administration) Regulations 1993 (Cth) | E65: Business as usual | F65: No
C66: Commonwealth Government | D66: Superannuation Industry (Supervision) Act 1993 (Cth) Superannuation Industry (Supervision) Regulations 1994 (Cth) | E66: Business as usual | F66: No
C67: Commonwealth Government | D67: Telecommunications (Interception and Access) Act 1979 (Cth) Telecommunications (Interception and Access) Regulations 1987 (Cth) | E67: Opex | F67: No
C68: Commonwealth Government | D68: Telecommunications Act 1997 (Cth) Telecommunications Regulations 2001 (Cth) | E68: Opex | F68: No
C69: Commonwealth Government | D69: Workplace Relations Acts and Regulations (Cth) | E69: Business as usual | F69: No
C70: National Electricity Law / Rules
C71: South Australian and Victorian Governments | D71: National Electricity Law | E71: Capex and Opex | F71: No
C72: AEMC | D72: National Electricity Rules | E72: Capex and Opex | F72: Yes
C73: AER guidelines
C74: AER | D74: Capital expenditure incentive guideline | E74: Capex | F74: No
C75: AER | D75: Confidentiality guideline (19 Nov 2013) | E75: Confidentiality template | F75: No
C76: AER | D76: Cost allocation guideline (1 Jan 2008) | E76: Capex and Opex | F76: No
C77: AER | D77: Consumer engagement guideline for network service providers (1 Aug 2013) | E77: Discussed through out regulatory proposal including capex and opex. | F77: Yes
C78: AER | D78: Efficiency benefit sharing scheme (1 Jan 2008) | E78: Opex | F78: No
C79: AER | D79: Expenditure forecast assessment guideline - Regulatory information notices for economic benchmarking (28 Feb 2014) | E79: Capex and Opex | F79: No
C80: AER | D80: Expenditure forecast assessment guideline - Regulatory information notices for category analysis (7 Mar 2014) | E80: Capex and Opex | F80: No
C81: AER | D81: Expenditure forecast assessment guideline (29 Nov 2013) | E81: Capex and Opex | F81: No
C82: AER | D82: Expenditure incentives guideline (29 Nov 2013) | E82: Capex and Opex | F82: No
C83: AER | D83: Forecast assessment guideline | E83: Capex and Opex | F83: No
C84: AER | D84: Rate of Return Guideline (17 Dec 2013) | E84: Rate of Return | F84: No
C85: AER | D85: Regulatory Investment Test for Distribution and application guidelines (1 Jan 2014) | E85: Capex | F85: No
C86: AER | D86: Service target performance incentive scheme (21 Sept 2009) | E86: Capex and Opex | F86: No
C87: AER | D87: Shared asset guideline (29 Nov 2013) | E87: Rate of Return | F87: No
C88: Licences, codes and Orders in Council
C89: AEMO | D89: National Metrology Procedures | E89: Opex | F89: No
C90: AEMO | D90: MSATS | E90: Opex | F90: No
C91: ESC of Vic | D91: Electricity Distribution Licence - Jemena Electricity Network (as varied on 24 Sept 2008) | E91: Capex and Opex | F91: No
C92: ESC of Vic | D92: Electricity Distribution Code (22 May 2012) | E92: Capex and Opex | F92: No
C93: ESC of Vic | D93: Electricity Customer Metering Code (April 2011) | E93: Capex and Opex | F93: No
C94: ESC of Vic | D94: Electricity Guideline No 11 – Voltage Variation Compensation | E94: Opex | F94: No
C95: ESC of Vic | D95: Electricity Guideline No 14 – Provision of Services by Electricity Distributors | E95: Capex and Opex | F95: No
C96: ESC of Vic | D96: Electricity Guideline No 17 – Electricity ring-fencing | E96: Opex | F96: No
C97: Victorian Government | D97: Advanced Metering Infrastructure Order in Council 2014 | E97: Capex and Opex | F97: No
C98: ESV | D98: ESV Code of Practice for Electrical Safety | E98: Capex and Opex | F98: Yes
C99: Standards Australia | D99: AS/NZ 3000:2007 Electrical installations | E99: Capex and Opex | F99: No
C227: Licences
C232: Rules
C237: Orders
C239: Codes
C255: Guidelines
C294: Default agreements
C296: Other

Sheet 7.4 Shared Assets
C1: =SheetHeader -> REGULATORY REPORTING STATEMENT
C2: =dms_TradingName -> Victorian DNSP Reset
C3: =FRCP_span -> 2016 to 2020
C4: 7.4 SHARED ASSETS
C6: TABLE 7.4.1 - TOTAL UNREGULATED REVENUE EARNED WITH SHARED ASSETS
C8: Name of shared asset unregulated service | D8: Description of shared assets used to provide the service | E8: Shared asset unregulated revenue ($0's, nominal) | N8: =CONCATENATE("Shared asset unregulated revenue ($0's, real ", dms_DollarReal,")") -> Shared asset unregulated revenue ($0's, real December 2015)
E9: =PRCP -> 2006 | F9: 2007 | G9: 2008 | H9: 2009 | I9: 2010 | J9: =CRCP -> 2011 | K9: 2012 | L9: 2013 | M9: 2014 | N9: 2015 | O9: =CONCATENATE("Total ", PRCP_y1, "-", CRCP_y5) -> Total 2006-2015 | P9: =FRCP -> 2016 | Q9: 2017 | R9: 2018 | S9: 2019 | T9: 2020 | U9: =CONCATENATE("Total ",FRCP_y1, "-", FRCP_y5) -> Total 2016-2020
A10: ED_SHA741_00001 | C10: Joint Use of Poles | D10: Distribution poles | O10: =SUM(E10:N10) -> 0 | U10: =SUM(P10:T10) -> 0
A11: ED_SHA741_00002 | C11: Security Beam | D11: Distribution poles | O11: =SUM(E11:N11) -> 0 | U11: =SUM(P11:T11) -> 0
A12: ED_SHA741_00003 | C12: Dark fibre cables | D12: Distribution poles | O12: 0 | U12: 0
A13: ED_SHA741_00004 | O13: 0 | U13: 0
A14: ED_SHA741_00005 | O14: 0 | U14: 0
A15: ED_SHA741_00006 | O15: 0 | U15: 0
A16: ED_SHA741_00007 | O16: 0 | U16: 0
A17: ED_SHA741_00008 | O17: 0 | U17: 0
A18: ED_SHA741_00009 | O18: 0 | U18: 0
A19: ED_SHA741_00010 | O19: 0 | U19: 0
A20: ED_SHA741_00011 | O20: 0 | U20: 0
A21: ED_SHA741_00012 | O21: =SUM(E21:N21) -> 0 | U21: =SUM(P21:T21) -> 0
A22: ED_SHA741_00013 | O22: =SUM(E22:N22) -> 0 | U22: =SUM(P22:T22) -> 0
A23: ED_SHA741_00014 | O23: =SUM(E23:N23) -> 0 | U23: =SUM(P23:T23) -> 0
A24: ED_SHA741_00015 | O24: =SUM(E24:N24) -> 0 | U24: =SUM(P24:T24) -> 0
C26: TABLE 7.4.2 - SHARED ASSET UNREGULATED SERVICES - APPORTIONMENT METHODOLOGY
C28: Name of shared asset unregulated service for which revenues were apportioned | D28: Apportionment methodology
A30: ED_SHA742_00001
A31: ED_SHA742_00002
A32: ED_SHA742_00003
A33: ED_SHA742_00004
A34: ED_SHA742_00005
A35: ED_SHA742_00006
A36: ED_SHA742_00007
A37: ED_SHA742_00008
A38: ED_SHA742_00009
A39: ED_SHA742_00010
A40: ED_SHA742_00011
A41: ED_SHA742_00012
A42: ED_SHA742_00013
A43: ED_SHA742_00014
A44: ED_SHA742_00015

Sheet 7.5 EBSS
C1: REGULATORY REPORTING STATEMENT
C2: =dms_TradingName -> Victorian DNSP Reset
C3: =FRCP_span -> 2016 to 2020
C4: 7.5 EBSS
C7: Instructions The DNSP is required to populate all input cells (yellow) in table 7.5.1 presented below. Efficiency gains are calculated using the formulae below. Adjusted target and actual amounts are used to calculate the carry-over amounts. For the first application of the scheme, the efficiency carry forward amount for the first year of the regulatory period is expressed mathematically as: E1 = F1 – A1 where A1 is the actual operating cost for year 1 and F1 is the regulatory target operating cost for that year. For savings that arose in the second to fifth year of the regulatory period, the efficiency carry forward amount is calculated as: Et = (Ft – At) – (Ft-1 – At-1), where: Et is the efficiency benefit/loss in year t; At, At-1 is the actual operating cost for the years t and t-1 respectively; and Ft, Ft-1 is the forecast operating cost for the years t and t-1 respectively Because the revenue determination will occur prior to the completion of the current period, opex for the final year will be estimated as follows: A5 = F5 – (F4 – A4)
C10: CPI
D11: 2004-09-25 | E11: 2005-09-26 | F11: 2006-09-27 | G11: 2007-09-26 | H11: 2008-09-26 | I11: 2009-09-30 | J11: 2010-09-30 | K11: 2011-09-30 | L11: 2012-09-30 | M11: 2013-09-30 | N11: 2014-09-02
C12: ABS CPI index (old base) | D12: 145.4 | E12: 149.8 | F12: 155.7 | G12: 158.6 | H12: 166.5 | I12: 168.6 | J12: 173.3 | K12: 179.4
C13: ABS CPI index (rebased index) | J13: 96.5 | K13: 99.8 | L13: 101.8 | M13: 104 | N13: 106.4
C16: Actual and estimated inflation
D17: Actual | N17: Estimated
D18: =PRCP_y1-2 -> 2004 | E18: =PRCP_y1-1 -> 2005 | F18: =PRCP -> 2006 | G18: 2007 | H18: 2008 | I18: 2009 | J18: 2010 | K18: =CRCP -> 2011 | L18: 2012 | M18: 2013 | N18: 2014 | O18: 2015
C19: ABS CPI index - September (old base), one year lagged | E19: =D12 -> 145.4 | F19: 149.8 | G19: 155.7 | H19: 158.6 | I19: 166.5 | J19: 168.6 | K19: 173.3 | L19: 179.4
C20: ABS CPI index - September (rebased index in Sep 2012), one year lagged | L20: =K13 -> 99.8 | M20: =L13 -> 101.8 | N20: =M13 -> 104 | O20: =N13 -> 106.4
C21: Inflation rate (per cent) one year lagged | F21: =F19/E19-1 -> 0.03026134801 | G21: 0.0393858478 | H21: 0.01862556198 | I21: 0.04981084489 | J21: 0.01261261261 | K21: 0.02787663108 | L21: 0.03519907675 | M21: =M20/L20-1 -> 0.02004008016 | N21: =N20/M20-1 -> 0.02161100196 | O21: =O20/N20-1 -> 0.02307692308
C22: =CONCATENATE("Reconstructed cumulative index (",CRCP_y4,"=1)") -> Reconstructed cumulative index (2014=1) | E22: =F22/(1+F21) -> 0.7602052791 | F22: 0.7832101156 | G22: 0.81405751 | H22: 0.8292197886 | I22: 0.8705239269 | J22: 0.8815035079 | K22: 0.906076856 | L22: 0.9379699248 | M22: 0.9567669173 | N22: 0.977443609 | O22: 1
C26: =CONCATENATE("TABLE 7.5.1 - The carryover amounts that arise from applying the EBSS during the ", CRCP_Span, " regulatory control period") -> TABLE 7.5.1 - The carryover amounts that arise from applying the EBSS during the 2011 to 2015 regulatory control period
C28: Table 7.5.1.1 - Opex allowance applicable to EBSS (EBSS target)
D29: Previous period | F29: Current regulatory control period | L29: Previous period | N29: Current regulatory control period
D30: =CONCATENATE("$m, real ", (PRCP_y5-5)) -> $m, real 2005 | F30: =CONCATENATE("$m, real ", PRCP_y5) -> $m, real 2010 | L30: =CONCATENATE("$m, real ", (CRCP_y5)) -> $m, real 2015 | N30: =CONCATENATE("$m, real ", CRCP_y5) -> $m, real 2015
D31: =PRCP_y4 -> 2009 | E31: =PRCP_y5 -> 2010 | F31: =CRCP -> 2011 | G31: 2012 | H31: 2013 | I31: 2014 | J31: 2015 | L31: =PRCP_y4 -> 2009 | M31: =PRCP_y5 -> 2010 | N31: =CRCP -> 2011 | O31: 2012 | P31: 2013 | Q31: 2014 | R31: 2015
A32: ED_EBS7511_00001 | C32: Total opex allowance | D32: 54.2651342 | E32: 55.5224505 | F32: 58.20986101 | G32: 57.114709 | H32: 57.33498005 | I32: 62.3125222 | J32: 61.33954822 | L32: =+D32/$E$22 -> 71.38221175 | M32: =+E32/$E$22 -> 73.03612857 | N32: =+F32/$J$22 -> 66.03474686 | O32: =+G32/$J$22 -> 64.79237857 | P32: =+H32/$J$22 -> 65.04225966 | Q32: =+I32/$J$22 -> 70.68891007 | R32: =+J32/$J$22 -> 69.58514364
C33: Approved excludable costs - allowance
A34: ED_EBS7511_00002 | C34: Debt raising costs | D34: 0 | E34: 0 | F34: 0.4470079335 | G34: 0.4762229785 | H34: 0.4995316107 | I34: 0.5201586851 | J34: 0.5410170689 | L34: =-D34/$E$22 -> 0 | M34: 0 | N34: =-F34/$J$22 -> -0.5070971692 | O34: -0.5402394594 | P34: -0.5666813645 | Q34: -0.5900812423 | R34: -0.6137435235
A35: ED_EBS7511_00003 | C35: Self insurance | D35: 0 | E35: 0 | F35: 0.1043 | G35: 0.1043 | H35: 0.1043 | I35: 0.1043 | J35: 0.1043 | L35: 0 | M35: 0 | N35: -0.1183205728 | O35: -0.1183205728 | P35: -0.1183205728 | Q35: -0.1183205728 | R35: -0.1183205728
A36: ED_EBS7511_00004 | C36: Defined benefit superannuation | D36: 0 | E36: 0 | F36: 0 | G36: 0 | H36: 0 | I36: 0 | J36: 0 | L36: 0 | M36: 0 | N36: 0 | O36: 0 | P36: 0 | Q36: 0 | R36: 0
A37: ED_EBS7511_00005 | C37: Non-network alternatives | D37: 0 | E37: 0 | F37: 0 | G37: 0 | H37: 0 | I37: 0 | J37: 0 | L37: 0 | M37: 0 | N37: 0 | O37: 0 | P37: 0 | Q37: 0 | R37: 0
A38: ED_EBS7511_00006 | C38: DMIA | D38: 0 | E38: 0 | F38: 0.2 | G38: 0.2 | H38: 0.2 | I38: 0.2 | J38: 0.2 | L38: 0 | M38: 0 | N38: -0.2268850869 | O38: -0.2268850869 | P38: -0.2268850869 | Q38: -0.2268850869 | R38: -0.2268850869
A39: ED_EBS7511_00007 | C39: GSL payments | D39: 0 | E39: 0 | F39: 0.0184177655 | G39: 0.01795543542 | H39: 0.01750471093 | I39: 0.01706530071 | J39: 0.01663692074 | L39: 0 | M39: 0 | N39: -0.02089358163 | O39: -0.02036910263 | P39: -0.01985778931 | Q39: -0.01935931118 | R39: -0.01887334604
A40: ED_EBS7511_00008 | C40: Capitalisation policy changes | D40: -3.976039092 | E40: -3.976039092 | F40: 0 | G40: 0 | H40: 0 | I40: 0 | J40: 0 | L40: 5.230217681 | M40: 5.230217681 | N40: 0 | O40: 0 | P40: 0 | Q40: 0 | R40: 0
A41: ED_EBS7511_00009 | C41: Network growth adjustment | D41: 0.3551692438 | E41: 0.4443708065 | F41: -0.01139798762 | G41: -0.01139798762 | H41: -0.01139798762 | I41: -0.01139798762 | J41: -0.01139798762 | L41: =D41/$E$22 -> 0.4672017593 | M41: =E41/$E$22 -> 0.5845405428 | N41: =F41/$J$22 -> -0.01293016705 | O41: =G41/$J$22 -> -0.01293016705 | P41: =H41/$J$22 -> -0.01293016705 | Q41: =I41/$J$22 -> -0.01293016705 | R41: =J41/$J$22 -> -0.01293016705
A42: ED_EBS7511_00010 | C42: Other adjustments or exclusions required by the EBSS | D42: 0 | E42: 0 | F42: 0 | G42: 0 | H42: 0 | I42: 0 | J42: 0 | L42: =-D42/$E$22 -> 0 | M42: =-E42/$E$22 -> 0 | N42: =-F42/$J$22 -> 0 | O42: =-G42/$J$22 -> 0 | P42: =-H42/$J$22 -> 0 | Q42: =-I42/$J$22 -> 0 | R42: =-J42/$J$22 -> 0
C43: Forecast opex for EBSS purposes | D43: =D32-SUM(D34:D40)+D41-D42 -> 58.59634254 | E43: 59.9428604 | F43: 57.42873732 | G43: 56.3048326 | H43: 56.50224574 | I43: 61.45960023 | J43: 60.46619625 | L43: =+SUM(L32:L42) -> 77.07963119 | M43: 78.8508868 | N43: 65.14862029 | O43: 63.87363418 | P43: 64.09758468 | Q43: 69.72133369 | R43: 68.59439095
C45: Table 7.5.1.2 - Actual and estimated opex applicable to EBSS
D46: Previous period | F46: Current regulatory control period | L46: Previous period | N46: Current regulatory control period
D47: $m, Actual | F47: $m, Actual | L47: =CONCATENATE("$m, real ", (CRCP_y5)) -> $m, real 2015 | N47: =CONCATENATE("$m, real ", CRCP_y5) -> $m, real 2015
D48: =PRCP_y4 -> 2009 | E48: =PRCP_y5 -> 2010 | F48: =CRCP -> 2011 | G48: 2012 | H48: 2013 | I48: 2014 | J48: 2015 | L48: =PRCP_y4 -> 2009 | M48: =PRCP_y5 -> 2010 | N48: =CRCP -> 2011 | O48: 2012 | P48: 2013 | Q48: 2014 | R48: 2015
A49: ED_EBS7512_0001 | C49: Total opex | D49: 50.44451827 | E49: 61.24178095 | F49: 62.62086391 | G49: 73.64223029 | H49: 72.62021594 | I49: 72.38338272 | L49: =+D49/I$22*(1+I$21)^0.5 -> 59.37297272 | M49: 69.91098693 | N49: 70.0687732 | O49: 79.88218904 | P49: 76.65844479 | Q49: 74.84967942
C50: Approved excludable costs
A51: ED_EBS7512_0002 | C51: =C34 -> Debt raising costs | D51: 0 | E51: 0 | F51: 0 | G51: 0 | H51: 0 | I51: 0 | L51: =-D51/I$22*(1+I$21)^0.5 -> 0 | M51: =-E51/J$22*(1+J$21)^0.5 -> 0 | N51: =-F51/K$22*(1+K$21)^0.5 -> 0 | O51: =-G51/L$22*(1+L$21)^0.5 -> 0 | P51: =-H51/M$22*(1+M$21)^0.5 -> 0 | Q51: =-I51/N$22*(1+N$21)^0.5 -> 0
A52: ED_EBS7512_0003 | C52: =C35 -> Self insurance | D52: 1.60688753 | E52: 0.28184121 | F52: 0.26254066 | G52: 0.80554526 | H52: 0.56675198 | I52: 0.37890019 | L52: -1.891299446 | M52: -0.3217378209 | N52: -0.2937663394 | O52: -0.8738018728 | P52: -0.5982676423 | Q52: -0.3918103394
A53: ED_EBS7512_0004 | C53: Defined benefit superannuation | D53: 0 | E53: 0 | F53: 0 | G53: 0 | H53: 0 | I53: 0 | L53: 0 | M53: 0 | N53: 0 | O53: 0 | P53: 0 | Q53: 0
A54: ED_EBS7512_0005 | C54: Non-network alternatives | D54: 0 | E54: 0 | F54: 0 | G54: 0 | H54: 0 | I54: 0 | L54: 0 | M54: 0 | N54: 0 | O54: 0 | P54: 0 | Q54: 0
A55: ED_EBS7512_0006 | C55: DMIA | D55: 0 | E55: 0 | F55: 0 | G55: 0 | H55: 0.04835607 | I55: 0.063864 | L55: 0 | M55: 0 | N55: 0 | O55: 0 | P55: -0.0510450303 | Q55: -0.0660400184
A56: ED_EBS7512_0007 | C56: GSL payments | D56: -0.3111235 | E56: 0.0708 | F56: 0.0282 | G56: 0.00881 | H56: 0.06693 | I56: 0.06797461 | L56: 0.36619097 | M56: -0.08082223929 | N56: -0.03155401061 | O56: -0.009556501517 | P56: -0.07065181016 | Q56: -0.07029068794
A57: ED_EBS7512_0008 | C57: Opex associated with approved cost pass through | D57: 0 | E57: 0 | F57: 0 | G57: 0 | H57: 0 | I57: 0 | L57: 0 | M57: 0 | N57: 0 | O57: 0 | P57: 0 | Q57: 0
A58: ED_EBS7512_0009 | C58: =C40 -> Capitalisation policy changes | D58: 0 | E58: 0 | F58: 0 | G58: 0 | H58: 0 | I58: 0 | L58: 0 | M58: 0 | N58: 0 | O58: 0 | P58: 0 | Q58: 0
A59: ED_EBS7512_0010 | C59: Movements in provisions related to opex | D59: 0 | E59: 0 | F59: 0 | G59: 0 | H59: 0 | I59: 0 | L59: 0 | M59: 0 | N59: 0 | O59: 0 | P59: 0 | Q59: 0
A60: ED_EBS7512_0011 | C60: Other adjustments or exclusions required by the EBSS | D60: 0 | E60: 0 | F60: 0 | G60: 0 | H60: 0 | I60: 0 | L60: 0 | M60: 0 | N60: 0 | O60: 0 | P60: 0 | Q60: 0
C61: Actual opex for EBSS purposes | D61: =+D49-SUM(D51:D60) -> 49.14875424 | E61: 60.88913974 | F61: 62.33012325 | G61: 72.82787503 | H61: 71.93817789 | I61: 71.87264392 | L61: =L49+SUM(L51:L60) -> 57.84786424 | M61: 69.50842687 | N61: 69.74345285 | O61: 78.99883067 | P61: 75.93848031 | Q61: 74.32153838 | R61: =+R43-(Q43-Q61) -> 73.19459564
L63: =CONCATENATE("Incremental gain ($m, ",CRCP_y5,")") -> Incremental gain ($m, 2015)
A64: ED_EBS7512_0012 | N64: =IF(dms_EBSS_status="No",(N43-N61)-(M43-M61)+(L43-L61),(N43-N61)) -> -4.594832563 | O64: =(O43-O61)-(N43-N61) -> -10.53036392 | P64: =(P43-P61)-(O43-O61) -> 3.284300849 | Q64: =(Q43-Q61)-(P43-P61) -> 7.240690949 | R64: =(R43-R61)-(Q43-Q61) -> 0
L66: Carryover
N67: Current regulatory control period | S67: Forthcoming regulatory control period
N68: =CONCATENATE("$m, real ", CRCP_y5) -> $m, real 2015
N69: =CRCP -> 2011 | O69: 2012 | P69: 2013 | Q69: 2014 | R69: 2015 | S69: =FRCP -> 2016 | T69: 2017 | U69: 2018 | V69: 2019 | W69: 2020
A70: ED_EBS7512_0013 | L70: =CRCP_y1 -> 2011 | N70: =$N$64 -> -4.594832563 | O70: =$N$64 -> -4.594832563 | P70: =$N$64 -> -4.594832563 | Q70: =$N$64 -> -4.594832563 | R70: =$N$64 -> -4.594832563
A71: ED_EBS7512_0014 | L71: =CRCP_y2 -> 2012 | O71: =$O$64 -> -10.53036392 | P71: =$O$64 -> -10.53036392 | Q71: =$O$64 -> -10.53036392 | R71: =$O$64 -> -10.53036392 | S71: =$O$64 -> -10.53036392
A72: ED_EBS7512_0015 | L72: =CRCP_y3 -> 2013 | P72: =$P$64 -> 3.284300849 | Q72: =$P$64 -> 3.284300849 | R72: =$P$64 -> 3.284300849 | S72: =$P$64 -> 3.284300849 | T72: =$P$64 -> 3.284300849
A73: ED_EBS7512_0016 | L73: =CRCP_y4 -> 2014 | Q73: =$Q$64 -> 7.240690949 | R73: =$Q$64 -> 7.240690949 | S73: =$Q$64 -> 7.240690949 | T73: =$Q$64 -> 7.240690949 | U73: =$Q$64 -> 7.240690949
A74: ED_EBS7512_0017 | L74: =CRCP_y5 -> 2015 | R74: =+$R$64 -> 0 | S74: =+$R$64 -> 0 | T74: =+$R$64 -> 0 | U74: =+$R$64 -> 0 | V74: =+$R$64 -> 0
L75: =CONCATENATE("Total Carryover Amount ($m, ",CRCP_y5,")") -> Total Carryover Amount ($m, 2015) | R75: =+SUM(R70:R74) -> -4.600204687 | S75: =+SUM(S70:S74) -> -0.005372123855 | T75: =+SUM(T70:T74) -> 10.5249918 | U75: =+SUM(U70:U74) -> 7.240690949 | V75: =+SUM(V70:V74) -> 0 | W75: =+SUM(R75:V75) -> 13.16010594
L77: =CONCATENATE("PTRM inputs ($m, ",CRCP_y5,")") -> PTRM inputs ($m, 2015) | R77: =R75 -> -4.600204687 | S77: =S75 -> -0.005372123855 | T77: =T75 -> 10.5249918 | U77: =U75 -> 7.240690949 | V77: =V75 -> 0 | W77: =+SUM(R77:V77) -> 13.16010594
C79: TABLE 7.5.2 - Proposed forecast opex for the EBSS for the forthcoming regulatory control period
D81: Forthcoming regulatory control period
D82: =CONCATENATE("$m, real ", CRCP_y5) -> $m, real 2015
D83: =FRCP -> 2016 | E83: 2017 | F83: 2018 | G83: 2019 | H83: 2020
A84: ED_EBS752_00001 | C84: Forecast opex | D84: 95.36918192 | E84: 95.35714475 | F84: 98.50551025 | G84: 103.1780878 | H84: 106.5997 | I84: =+SUM(D84:H84) -> 499.0096247
C85: Less excluded costs
A86: ED_EBS752_00002 | C86: Debt raising costs | D86: 1.271821916 | E86: 1.341737849 | F86: 1.428133726 | G86: 1.50466743 | H86: 1.580394837 | I86: =+SUM(D86:H86) -> 7.126755758
A87: ED_EBS752_00003 | C87: Self insurance | D87: 0 | E87: 0 | F87: 0 | G87: 0 | H87: 0 | I87: 0
A88: ED_EBS752_00004 | C88: Defined benefit superannuation | D88: 0 | E88: 0 | F88: 0 | G88: 0 | H88: 0 | I88: 0
A89: ED_EBS752_00005 | C89: Non-network alternatives | D89: 0 | E89: 0 | F89: 0 | G89: 0 | H89: 0 | I89: 0
A90: ED_EBS752_00006 | C90: DMIA | D90: 0.174617651 | E90: 0.2175316678 | F90: 0.2175316678 | G90: 0.2175316678 | H90: 0.2175316678 | I90: 1.044744322
A91: ED_EBS752_00007 | C91: GSL payments | D91: 0.07029068794 | E91: 0.07029068794 | F91: 0.07029068794 | G91: 0.07029068794 | H91: 0.07029068794 | I91: 0.3514534397
A92: ED_EBS752_00008 | C92: <category proposed for exclusion> | D92: 0 | E92: 0 | F92: 0 | G92: 0 | H92: 0 | I92: 0
A93: ED_EBS752_00009 | C93: <category proposed for exclusion> | D93: 0 | E93: 0 | F93: 0 | G93: 0 | H93: 0 | I93: 0
A94: ED_EBS752_00010 | C94: <category proposed for exclusion> | D94: 0 | E94: 0 | F94: 0 | G94: 0 | H94: 0 | I94: 0
A95: ED_EBS752_00011 | C95: <category proposed for exclusion> | D95: 0 | E95: 0 | F95: 0 | G95: 0 | H95: 0 | I95: 0
C96: =CONCATENATE("Adjusted forecast opex ($m, ",CRCP_y5,")") -> Adjusted forecast opex ($m, 2015) | D96: =+D84-SUM(D86:D95) -> 93.85245167 | E96: 93.72758455 | F96: 96.78955417 | G96: 101.385598 | H96: 104.7314828 | I96: 490.4866712

Sheet 7.6 Indicative bill impact
C1: =SheetHeader -> REGULATORY REPORTING STATEMENT
C2: =dms_TradingName -> Victorian DNSP Reset
C3: =FRCP_span -> 2016 to 2020
C4: 7.6 INDICATIVE IMPACT ON DISTRIBUTION CHARGES & ELECTRICITY BILLS
C7: Instructions
C8: The DNSP is required to populate all input cells (yellow) in table 7.6.1 presented below.
C10: TABLE 7.6.1 - Indicative impact of the regulatory proposal on the average residential electricity bills
A12: ED_IND761_00001 | C12: Distribution costs as a proportion of a typical customer's electricity bill (per cent)
C13: Source:
C15: Typical electricity bill - Residential customer
A16: IND762 | C16: Tariff type | D16: Description of tariff type | E16: =CONCATENATE("Annual bill amount ($", CRCP_y5,")") -> Annual bill amount ($2015)
A17: ED_IND762_00001 | C17: Residential | D17: Regulated tariff
A18: ED_IND762_00002
A19: ED_IND762_00003
A20: ED_IND762_00004
A21: ED_IND762_00005
A22: ED_IND762_00006
C23: Souce: | D23: Oakley Greenwood 2014 report
C25: Typical electricity bill - Business customer
A26: IND763 | C26: Tariff type | D26: Description of tariff type | E26: =CONCATENATE("Annual bill amount ($", CRCP_y5,")") -> Annual bill amount ($2015)
A27: ED_IND763_00001 | C27: Small Business
A28: ED_IND763_00002 | C28: Large Business - LV
A29: ED_IND763_00003
A30: ED_IND763_00004
A31: ED_IND763_00005
A32: ED_IND763_00006
C33: Souce: | D33: JEN's estimates
C35: Indicative annual average distribution price impact
A36: IND764 | D36: =CRCP_y5 -> 2015 | E36: =FRCP -> 2016 | F36: 2017 | G36: 2018 | H36: 2019 | I36: 2020 | J36: Average
A38: ED_IND764_00001 | C38: Forecast smoothed revenues ($nominal)
A39: ED_IND764_00002 | C39: =CONCATENATE("Forecast smoothed revenues ($ ",dms_DollarReal,")") -> Forecast smoothed revenues ($ December 2015)
A41: ED_IND764_00003 | C41: Energy delivered forecast (MWh)
A43: ED_IND764_00004 | C43: Annual price path ($/MWh, nominal) | D43: =+D38/D41 -> 
A44: ED_IND764_00005 | C44: =CONCATENATE("Annual price path ($/MWh, ",dms_DollarReal,")") -> Annual price path ($/MWh, December 2015) | D44: =+D39/D41 -> 
A46: ED_IND764_00006 | C46: Annual price path (per cent, nominal) | E46: =+E43/D43-1 ->  | J46: =+AVERAGE(E46:I46) -> 
A47: ED_IND764_00007 | C47: =CONCATENATE("Annual price path (per cent, $",dms_DollarReal,")") -> Annual price path (per cent, $December 2015) | J47: =+AVERAGE(E47:I47) -> 
C50: Distribution bill component - Residential customer | D50: Real December 2015
A51: IND765 | C51: Tariff typea | D51: =CRCP_y5 -> 2015 | E51: =FRCP -> 2016 | F51: 2017 | G51: 2018 | H51: 2019 | I51: 2020 | J51: =FRCP_span -> 2016 to 2020 | K51: Annual average | L51: Annual impact on customer bill (%)
A53: ED_IND765_00001 | C53: =+C17 -> Residential | D53: =+E17*$D$12 -> 0 | E53: =+D53*(1+IF($D$50="Nominal",E$46,E$47)) ->  | F53: =+E53*(1+IF($D$50="Nominal",F$46,F$47)) ->  | G53: =+F53*(1+IF($D$50="Nominal",G$46,G$47)) ->  | H53: =+G53*(1+IF($D$50="Nominal",H$46,H$47)) ->  | I53: =+H53*(1+IF($D$50="Nominal",I$46,I$47)) ->  | J53: =+SUM(E53:I53) ->  | K53: =+AVERAGE(E53:I53) -> 
A54: ED_IND765_00002 | C54: Annual change | E54: =+E53-D53 ->  | F54: =+F53-E53 ->  | G54: =+G53-F53 ->  | H54: =+H53-G53 ->  | I54: =+I53-H53 ->  | J54: =+SUM(E54:I54) ->  | K54: =+AVERAGE(E54:I54) ->  | L54: =+K54/E17 -> 
C57: Distribution bill component - Business customer | D57: Real December 2015
A58: IND766 | C58: Tariff typea | D58: =CRCP_y5 -> 2015 | E58: =FRCP -> 2016 | F58: 2017 | G58: 2018 | H58: 2019 | I58: 2020 | J58: =FRCP_span -> 2016 to 2020 | K58: Annual average | L58: Annual impact on customer bill (%)
A60: ED_IND766_00001 | C60: =+C27 -> Small Business | D60: =+E27*$D$12 -> 0 | E60: =+D60*(1+IF($D$57="Nominal",E$46,E$47)) ->  | F60: =+E60*(1+IF($D$57="Nominal",F$46,F$47)) ->  | G60: =+F60*(1+IF($D$57="Nominal",G$46,G$47)) ->  | H60: =+G60*(1+IF($D$57="Nominal",H$46,H$47)) ->  | I60: =+H60*(1+IF($D$57="Nominal",I$46,I$47)) ->  | J60: =+SUM(E60:I60) ->  | K60: =+AVERAGE(E60:I60) -> 
A61: ED_IND766_00002 | C61: Annual change | E61: =+E60-D60 ->  | F61: =+F60-E60 ->  | G61: =+G60-F60 ->  | H61: =+H60-G60 ->  | I61: =+I60-H60 ->  | J61: =+SUM(E61:I61) ->  | K61: =+AVERAGE(E61:I61) ->  | L61: =+K61/E27 -> 

Sheet Unprotected Worksheet
